Workbook

Sheet Рейтинг_ОД
A1: Ведомство | B1: Статус | C1: Балл 1 раунда | D1: Балл 2 раунда | E1: Итог | F1: Максимум | G1: Rate | H1: Индекс
A2: Главное управление специальных программ Президента Российской Федерации (ГУСП) | B2: През | C2: 0 | D2: 0 | E2: 0 | F2: 154 | G2: =E2/F2 -> 0 | H2: C
A3: Государственная фельдъегерская служба Российской Федерации (ГФС России) | B3: През | C3: 64 | D3: 63 | E3: 127 | F3: 154 | G3: =E3/F3 -> 0.8246753247 | H3: A
A4: Казначейство России | B4: Прав | C4: 70 | D4: 71 | E4: 141 | F4: 154 | G4: =E4/F4 -> 0.9155844156 | H4: A
A5: МВД России | B5: През | C5: 68 | D5: 69 | E5: 137 | F5: 154 | G5: =E5/F5 -> 0.8896103896 | H5: A
A6: МИД России | B6: През | C6: 63 | D6: 44 | E6: 107 | F6: 154 | G6: =E6/F6 -> 0.6948051948 | H6: B
A7: Минвостокразвития России | B7: Прав | C7: 65 | D7: 70 | E7: 135 | F7: 154 | G7: =E7/F7 -> 0.8766233766 | H7: A
A8: Минздрав России | B8: Прав | C8: 51 | D8: 64 | E8: 115 | F8: 154 | G8: =E8/F8 -> 0.7467532468 | H8: A
A9: Минкультуры России | B9: Прав | C9: 67 | D9: 66 | E9: 133 | F9: 154 | G9: =E9/F9 -> 0.8636363636 | H9: A
A10: Минобороны России | B10: През | C10: 0 | D10: 1 | E10: 1 | F10: 154 | G10: =E10/F10 -> 0.006493506494 | H10: C
A11: Минобрнауки России | B11: Прав | C11: 69 | D11: 64 | E11: 133 | F11: 154 | G11: =E11/F11 -> 0.8636363636 | H11: A
A12: Минприроды России | B12: Прав | C12: 66 | D12: 72 | E12: 138 | F12: 154 | G12: =E12/F12 -> 0.8961038961 | H12: A
A13: Минпромторг России | B13: Прав | C13: 56 | D13: 66 | E13: 122 | F13: 154 | G13: =E13/F13 -> 0.7922077922 | H13: A
A14: Минпросвещения России | B14: Прав | C14: 68 | D14: 68 | E14: 136 | F14: 154 | G14: =E14/F14 -> 0.8831168831 | H14: A
A15: Минсельхоз России | B15: Прав | C15: 56 | D15: 71 | E15: 127 | F15: 154 | G15: =E15/F15 -> 0.8246753247 | H15: A
A16: Минспорт России | B16: Прав | C16: 48 | D16: 47 | E16: 95 | F16: 154 | G16: =E16/F16 -> 0.6168831169 | H16: B
A17: Минстрой России | B17: Прав | C17: 66 | D17: 73 | E17: 139 | F17: 154 | G17: =E17/F17 -> 0.9025974026 | H17: A
A18: Минтранс России | B18: Прав | C18: 54 | D18: 61 | E18: 115 | F18: 154 | G18: =E18/F18 -> 0.7467532468 | H18: A
A19: Минтруд России | B19: Прав | C19: 65 | D19: 69 | E19: 134 | F19: 154 | G19: =E19/F19 -> 0.8701298701 | H19: A
A20: Минфин России | B20: Прав | C20: 70 | D20: 60 | E20: 130 | F20: 154 | G20: =E20/F20 -> 0.8441558442 | H20: A
A21: Минцифры России | B21: Прав | C21: 66 | D21: 60 | E21: 126 | F21: 154 | G21: =E21/F21 -> 0.8181818182 | H21: A
A22: Минэкономразвития России | B22: Прав | C22: 67 | D22: 55 | E22: 122 | F22: 154 | G22: =E22/F22 -> 0.7922077922 | H22: A
A23: Минэнерго России | B23: Прав | C23: 70 | D23: 69 | E23: 139 | F23: 154 | G23: =E23/F23 -> 0.9025974026 | H23: A
A24: Минюст России | B24: През | C24: 67 | D24: 53 | E24: 120 | F24: 154 | G24: =E24/F24 -> 0.7792207792 | H24: A
A25: МЧС России | B25: През | C25: 49 | D25: 52 | E25: 101 | F25: 154 | G25: =E25/F25 -> 0.6558441558 | H25: B
A26: Росавиация | B26: Прав | C26: 71 | D26: 64 | E26: 135 | F26: 154 | G26: =E26/F26 -> 0.8766233766 | H26: A
A27: Росавтодор | B27: Прав | C27: 57 | D27: 72 | E27: 129 | F27: 154 | G27: =E27/F27 -> 0.8376623377 | H27: A
A28: Росаккредитация | B28: Прав | C28: 46 | D28: 63 | E28: 109 | F28: 154 | G28: =E28/F28 -> 0.7077922078 | H28: A
A29: Росалкогольрегулирование | B29: Прав | C29: 66 | D29: 65 | E29: 131 | F29: 154 | G29: =E29/F29 -> 0.8506493506 | H29: A
A30: Росархив | B30: През | C30: 53 | D30: 61 | E30: 114 | F30: 154 | G30: =E30/F30 -> 0.7402597403 | H30: A
A31: Росводресурсы | B31: Прав | C31: 68 | D31: 53 | E31: 121 | F31: 154 | G31: =E31/F31 -> 0.7857142857 | H31: A
A32: Росгвардия | B32: През | C32: 63 | D32: 48 | E32: 111 | F32: 154 | G32: =E32/F32 -> 0.7207792208 | H32: A
A33: Росгидромет | B33: Прав | C33: 52 | D33: 57 | E33: 109 | F33: 154 | G33: =E33/F33 -> 0.7077922078 | H33: A
A34: Росжелдор | B34: Прав | C34: 65 | D34: 69 | E34: 134 | F34: 154 | G34: =E34/F34 -> 0.8701298701 | H34: A
A35: Росздравнадзор | B35: Прав | C35: 69 | D35: 69 | E35: 138 | F35: 154 | G35: =E35/F35 -> 0.8961038961 | H35: A
A36: Росимущество | B36: Прав | C36: 70 | D36: 73 | E36: 143 | F36: 154 | G36: =E36/F36 -> 0.9285714286 | H36: A
A37: Роскомнадзор | B37: Прав | C37: 49 | D37: 60 | E37: 109 | F37: 154 | G37: =E37/F37 -> 0.7077922078 | H37: A
A38: Рослесхоз | B38: Прав | C38: 58 | D38: 68 | E38: 126 | F38: 154 | G38: =E38/F38 -> 0.8181818182 | H38: A
A39: Росмолодёжь | B39: Прав | C39: 63 | D39: 62 | E39: 125 | F39: 154 | G39: =E39/F39 -> 0.8116883117 | H39: A
A40: Росморречфлот | B40: Прав | C40: 49 | D40: 59 | E40: 108 | F40: 154 | G40: =E40/F40 -> 0.7012987013 | H40: A
A41: Роснедра | B41: Прав | C41: 56 | D41: 46 | E41: 102 | F41: 154 | G41: =E41/F41 -> 0.6623376623 | H41: B
A42: Рособрнадзор | B42: Прав | C42: 56 | D42: 49 | E42: 105 | F42: 154 | G42: =E42/F42 -> 0.6818181818 | H42: B
A43: Роспатент | B43: Прав | C43: 56 | D43: 72 | E43: 128 | F43: 154 | G43: =E43/F43 -> 0.8311688312 | H43: A
A44: Роспотребнадзор | B44: Прав | C44: 67 | D44: 67 | E44: 134 | F44: 154 | G44: =E44/F44 -> 0.8701298701 | H44: A
A45: Росприроднадзор | B45: Прав | C45: 68 | D45: 57 | E45: 125 | F45: 154 | G45: =E45/F45 -> 0.8116883117 | H45: A
A46: Росреестр | B46: Прав | C46: 67 | D46: 56 | E46: 123 | F46: 154 | G46: =E46/F46 -> 0.7987012987 | H46: A
A47: Росрезерв | B47: Прав | C47: 54 | D47: 65 | E47: 119 | F47: 154 | G47: =E47/F47 -> 0.7727272727 | H47: A
A48: Росрыболовство | B48: Прав | C48: 57 | D48: 57 | E48: 114 | F48: 154 | G48: =E48/F48 -> 0.7402597403 | H48: A
A49: Россельхознадзор | B49: Прав | C49: 53 | D49: 72 | E49: 125 | F49: 154 | G49: =E49/F49 -> 0.8116883117 | H49: A
A50: Россотрудничество | B50: През | C50: 11 | D50: 11 | E50: 22 | F50: 154 | G50: =E50/F50 -> 0.1428571429 | H50: C
A51: Росстандарт | B51: Прав | C51: 58 | D51: 68 | E51: 126 | F51: 154 | G51: =E51/F51 -> 0.8181818182 | H51: A
A52: Росстат | B52: Прав | C52: 71 | D52: 56 | E52: 127 | F52: 154 | G52: =E52/F52 -> 0.8246753247 | H52: A
A53: Ростехнадзор | B53: Прав | C53: 66 | D53: 50 | E53: 116 | F53: 154 | G53: =E53/F53 -> 0.7532467532 | H53: A
A54: Ространснадзор | B54: Прав | C54: 64 | D54: 51 | E54: 115 | F54: 154 | G54: =E54/F54 -> 0.7467532468 | H54: A
A55: Роструд | B55: Прав | C55: 70 | D55: 65 | E55: 135 | F55: 154 | G55: =E55/F55 -> 0.8766233766 | H55: A
A56: Ростуризм | B56: Прав | C56: 55 | D56: 71 | E56: 126 | F56: 154 | G56: =E56/F56 -> 0.8181818182 | H56: A
A57: Росфинмониторинг | B57: През | C57: 37 | D57: 41 | E57: 78 | F57: 154 | G57: =E57/F57 -> 0.5064935065 | H57: B
A58: СВР России | B58: През | C58: 0 | D58: 0 | E58: 0 | F58: 154 | G58: =E58/F58 -> 0 | H58: C
A59: Управление делами Президента Российской Федерации | B59: През | C59: 47 | D59: 47 | E59: 94 | F59: 154 | G59: =E59/F59 -> 0.6103896104 | H59: B
A60: ФАДН России | B60: Прав | C60: 66 | D60: 65 | E60: 131 | F60: 154 | G60: =E60/F60 -> 0.8506493506 | H60: A
A61: ФАС России | B61: Прав | C61: 67 | D61: 55 | E61: 122 | F61: 154 | G61: =E61/F61 -> 0.7922077922 | H61: A
A62: Федеральная пробирная палата | B62: Прав | C62: 0 | D62: 0 | E62: 0 | F62: 154 | G62: =E62/F62 -> 0 | H62: C
A63: ФМБА России | B63: Прав | C63: 56 | D63: 62 | E63: 118 | F63: 154 | G63: =E63/F63 -> 0.7662337662 | H63: A
A64: ФНС России | B64: Прав | C64: 68 | D64: 69 | E64: 137 | F64: 154 | G64: =E64/F64 -> 0.8896103896 | H64: A
A65: ФСБ России | B65: През | C65: 0 | D65: 0 | E65: 0 | F65: 154 | G65: =E65/F65 -> 0 | H65: C
A66: ФСВТС России | B66: През | C66: 58 | D66: 63 | E66: 121 | F66: 154 | G66: =E66/F66 -> 0.7857142857 | H66: A
A67: ФСИН России | B67: През | C67: 56 | D67: 44 | E67: 100 | F67: 154 | G67: =E67/F67 -> 0.6493506494 | H67: B
A68: ФСО России | B68: През | C68: 0 | D68: 0 | E68: 0 | F68: 154 | G68: =E68/F68 -> 0 | H68: C
A69: ФССП России | B69: През | C69: 70 | D69: 69 | E69: 139 | F69: 154 | G69: =E69/F69 -> 0.9025974026 | H69: A
A70: ФСТЭК России | B70: През | C70: 70 | D70: 54 | E70: 124 | F70: 154 | G70: =E70/F70 -> 0.8051948052 | H70: A
A71: ФТС России | B71: Прав | C71: 70 | D71: 59 | E71: 129 | F71: 154 | G71: =E71/F71 -> 0.8376623377 | H71: A

Sheet Коды
A1: ОЦЕНКА ОТКРЫТОСТИ ДАННЫХ ФОИВ: ОБЩАЯ ОЦЕНКА
A2: Блок оценки | B2: Критерий | C2: Баллы | D2: Описание | E2: Источник информации
A3: Доступность открытых данных | B3: У ФОИВ есть портал или раздел открытых данных | C3: 0 - раздел не найден ни на сайте, ни через поисковик 1 - раздел есть | D3: Наличие у ФОИВ раздела (на официальном сайте) либо специализированного портала для публикации открытых данных. | E3: Официальный сайт, поисковые запросы
B4: Раздел открытых данных легко найти | C4: 0 - нельзя найти, не зная ссылку или не используя внешний поисковик 1 - можно найти на сайте (более 2 кликов) 2 - можно найти на сайте (нужно 2 или меньше кликов) | D4: Подсчитывается число кликов от главной страницы до портала/раздела открых данных | E4: Официальный сайт, поисковые запросы
B5: Раздел открытых данных доступен | C5: 0 - раздел не открывается или не заполнен 1 - раздел открывается и заполнен | D5: При переходе по ссылке на раздел открытых данных этот раздел открывается и содержит данные | E5: Раздел/портал открытых данных
A6: Содержательность данных | B6: Наличие наборов данных, связанных с основными полномочиями, функциями и госуслугами ведомства | C6: 0 - нет 3 - да | D6: В списке наборов данных, публикуемых ФОИВ в качестве открытых, присутствует хотя бы один набор, связанный с его основными полномочиями, функциями и госуслугами | E6: Раздел/портал открытых данных
A7: Обратная связь | B7: Пользователи могут давать оценку опубликованным наборам данных | C7: 0 - нет 1 - да | D7: В разделе открытых данных (в основном списке наборов либо на индивидуальных страницах отдельных наборов) есть функционирующая опция оценивания набора. | E7: Раздел/портал открытых данных
B8: Пользователи могут запросить данные через специальную форму | C8: 0 - нет 1 - да | D8: В разделе открытых данных (в основном списке наборов либо на индивидуальных страницах отдельных наборов) есть функционирующая опция отправить запрос на публикацию данных. | E8: Раздел/портал открытых данных
B9: Пользователи могут оставлять комментарии к наборам данных | C9: 0 - нет 1 - да | D9: В разделе открытых данных а индивидуальных страницах отдельных наборов есть функционирующая опция оставить комментарий к набору данных. | E9: Раздел/портал открытых данных
A10: Вывод дополнительной информации в списке наборов данных | B10: В списке наборов данных выводится информация о формате файлов | C10: 0 - нет 1 - да | D10: В списке наборов данных (именно в общем списке, а не на индивидуальной странице набора) выводится информация о том, в каких форматах предоставляется каждый набор. Это позволяет пользователю быстрее и эффективнее определять, насколько тот или иной набор данных отвечает его потребностям. | E10: Раздел/портал открытых данных
B11: В списке наборов данных выводится информация о количестве скачиваний / просмотров | C11: 0 - нет 1 - да | D11: В списке наборов данных (именно в общем списке, а не на индивидуальной странице набора) выводится информация о том, сколько раз был скачан или просмотрен набор. Это позволяет пользователю составить представление о значимости и полезности набора среди прочих наборов. | E11: Раздел/портал открытых данных
B12: В списке наборов данных выводится информация о размере файла | C12: 0 - нет 1 - да | D12: В списке наборов данных (именно в общем списке, а не на индивидуальной странице набора) выводится информация о том, какого размера набор данных. Это позволяет пользователю быстрее определить, насколько использование тех или иных наборов отвечает его ожиданиям, потребностям и возможностям | E12: Раздел/портал открытых данных
B13: В списке наборов данных выводится информация о дате последнего обновления | C13: 0 - нет 1 - да | D13: В списке наборов данных (именно в общем списке, а не на индивидуальной странице набора) выводится информация о дате последнего обновления набора данных. Это позволяет пользователю быстрее определить актуальность предоставленных данных. | E13: Раздел/портал открытых данных
A14: Заполненность метаданных | B14: Раздел открытых данных содержит сведения об условиях использования данных | C14: 0 - нет 3 - да | D14: Представленность в разделе открытых данных сведений об условиях использования. Это может быть текстовое описание или ссылка на внешний источник, описывающий правила использования данных | E14: Раздел/портал открытых данных
A18: ОЦЕНКА ОТКРЫТОСТИ ДАННЫХ ФОИВ: ОЦЕНКА ОТДЕЛЬНЫХ НАБОРОВ
A19: Блок оценки | B19: Критерий | C19: Баллы | D19: Описание | E19: Источник информации
A20: Заполненность метаданных | B20: Опубликованные данные снабжены паспортами | C20: 0 - нет 1 - да | D20: Наличие при опубликованных наборах паспорта данных, представляющего метаданные в соответствии с методическими рекомендациями. Во всех случаях, где идет проверка по конкретным наборам данных проверяются три произвольных набора. | E20: Раздел/портал открытых данных
B21: Паспорт содержит наименование набора данных | C21: 0 - нет 1 - да | D21: В соответствии с методическими рекомендациями | E21: Паспорт набора данных
B22: Паспорт содержит краткое описание набора данных | C22: 0 - нет 1 - да | D22: В соответствии с методическими рекомендациями | E22: Паспорт набора данных
B23: Паспорт содержит информацию о владельце набора данных | C23: 0 - нет 1 - да | D23: В соответствии с методическими рекомендациями | E23: Паспорт набора данных
B24: Паспорт содержит ФИО ответственного лица | C24: 0 - нет 1 - да | D24: В соответствии с методическими рекомендациями | E24: Паспорт набора данных
B25: Паспорт содержит телефон или электронный адрес ответственного лица | C25: 0 - нет 1 - да | D25: В соответствии с методическими рекомендациями | E25: Паспорт набора данных
B26: Паспорт содержит гиперссылку (URL) на набор данных | C26: 0 - нет 1 - да | D26: В соответствии с методическими рекомендациями | E26: Паспорт набора данных
B27: Паспорт содержит информацию о формате данных | C27: 0 - нет 1 - да | D27: Отсутствие такой информации (потенциально в сочетании с некорректным расширением публикуемого набора) может вызвать затруднения с использованием данных | E27: Паспорт набора данных
B28: Паспорт содержит документацию (описание структуры) набора данных | C28: 0 - нет 1 - да | D28: В соответствии с методическими рекомендациями | E28: Паспорт набора данных
B29: Паспорт содержит дату первой публикации набора данных | C29: 0 - нет 1 - да | D29: В соответствии с методическими рекомендациями | E29: Паспорт набора данных
B30: Паспорт содержит дату последнего обновления набора данных | C30: 0 - нет 1 - да | D30: Наличие такой информации позволяет судить об актуальности набора | E30: Паспорт набора данных
B31: Паспорт содержит информацию о регулярности обновления набора данных | C31: 0 - нет 1 - да | D31: Наличие такой информации позволяет судить об актуальности набора. Ее отсутствие принципиально препятствует использованию набора, так как его релевантность неочевидна | E31: Паспорт набора данных
B32: По гиперссылке открывается / скачивается набор данных, соответствующий описанию в паспорте | C32: 0 - нет 1 - да | D32: Гиперссылка на набор данных действительно ведет к файлу, содержащему данные в соответствии с представленным описанием | E32: Паспорт набора данных
A33: Доступность открытых данных | B33: Наборы данных скачиваются | C33: 0 - не скачиваются или скачиваются пустые файлы 1 - да | D33: Проверяются 3 произвольных набора данных. Попытка скачать не должна вызывать ошибку, скачанный файл не должен быть пустым. | E33: Паспорт набора данных
A34: Актуальность данных | B34: Дата последнего обновления данных соответствует заявленной периодичности обновления | C34: 0 - нет 5 - да | D34: Это главный ориентир, позволяющий судить о том, насколько актуален набор данных | E34: Паспорт набора данных

Sheet Оценка_Раунд1
A1: Ведомство | B1: Сайт | C1: Раздел ОД | D1: Раздел легко найти | E1: Раздел ОД доступен | F1: Есть профильные наборы | G1: Есть лицензия | H1: В списке выведен формат | I1: В списке выведено число просмотров / скачиваний | J1: В списке выведен размер файла | K1: В списке выведена дата обновления | L1: Можно оценивать наборы данных | M1: Можно запросить набор данных через форму | N1: Можно оставить комментарий к наборам | O1: Проверочный набор 1 | P1: Есть паспорт | Q1: В паспорте есть название набора | R1: В паспорте есть описание | S1: В паспорте указан владелец | T1: В паспорте указано ответственное лицо | U1: В паспорте указаны контакты | V1: В паспорте есть гиперссылка на набор | W1: В паспорте указан формат данных | X1: В паспорте есть описание структуры | Y1: В паспорте дата есть первой публикации | Z1: В паспорте дата последнего обновления | AA1: В паспорте есть дата актуальности либо периодичность обновления | AB1: Набор актуален | AC1: Набор нормально скачивается | AD1: Набор открывается и соответствует описанию | AE1: Проверочный набор 2 | AF1: Есть паспорт | AG1: В паспорте есть название набора | AH1: В паспорте есть описание | AI1: В паспорте указан владелец | AJ1: В паспорте указано ответственное лицо | AK1: В паспорте указаны контакты | AL1: В паспорте есть гиперссылка на набор | AM1: В паспорте указан формат данных | AN1: В паспорте есть описание структуры | AO1: В паспорте дата есть первой публикации | AP1: В паспорте дата последнего обновления | AQ1: В паспорте есть дата актуальности либо периодичность обновления | AR1: Набор актуален | AS1: Набор нормально скачивается | AT1: Набор открывается и соответствует описанию | AU1: Проверочный набор 3 | AV1: Есть паспорт | AW1: В паспорте есть название набора | AX1: В паспорте есть описание | AY1: В паспорте указан владелец | AZ1: В паспорте указано ответственное лицо | BA1: В паспорте указаны контакты | BB1: В паспорте есть гиперссылка на набор | BC1: В паспорте указан формат данных | BD1: В паспорте есть описание структуры | BE1: В паспорте дата есть первой публикации | BF1: В паспорте дата последнего обновления | BG1: В паспорте есть дата актуальности либо периодичность обновления | BH1: Набор актуален | BI1: Набор нормально скачивается | BJ1: Набор открывается и соответствует описанию | BK1: Общий балл | BL1: Максимальный балл
A2: Главное управление специальных программ Президента Российской Федерации (ГУСП) | B2: http://www.gusp.gov.ru/ | BK2: 0 | BL2: 77
A3: Государственная фельдъегерская служба Российской Федерации (ГФС России) | B3: http://gfs.gov.ru/ | C3: https://gfs.gov.ru/opendata/ | D3: 2 | E3: 1 | F3: 0 | G3: 3 | H3: 1 | I3: 0 | J3: 0 | K3: 0 | L3: 0 | M3: 0 | N3: 0 | O3: https://gfs.gov.ru/opendata/7709133821-od-fggs | P3: 1 | Q3: 1 | R3: 1 | S3: 1 | T3: 1 | U3: 1 | V3: 1 | W3: 1 | X3: 1 | Y3: 1 | Z3: 1 | AA3: 1 | AB3: 5 | AC3: 1 | AD3: 1 | AE3: https://gfs.gov.ru/opendata/7709133821-od-to | AF3: 1 | AG3: 1 | AH3: 1 | AI3: 1 | AJ3: 1 | AK3: 1 | AL3: 1 | AM3: 1 | AN3: 1 | AO3: 1 | AP3: 1 | AQ3: 1 | AR3: 5 | AS3: 1 | AT3: 1 | AU3: https://gfs.gov.ru/opendata/7709133821-od-po | AV3: 1 | AW3: 1 | AX3: 1 | AY3: 1 | AZ3: 1 | BA3: 1 | BB3: 1 | BC3: 1 | BD3: 1 | BE3: 1 | BF3: 1 | BG3: 1 | BH3: 5 | BI3: 1 | BJ3: 1 | BK3: 64 | BL3: 77
A4: Казначейство России | B4: https://roskazna.gov.ru/ | C4: https://roskazna.gov.ru/opendata/ | D4: 2 | E4: 1 | F4: 3 | G4: 3 | H4: 1 | I4: 1 | J4: 0 | K4: 1 | L4: 1 | M4: 1 | N4: 0 | O4: https://roskazna.gov.ru/opendata/7710568760-resultsofextauditoftheFederalTreasury/ | P4: 1 | Q4: 1 | R4: 1 | S4: 1 | T4: 1 | U4: 1 | V4: 1 | W4: 1 | X4: 1 | Y4: 1 | Z4: 1 | AA4: 1 | AB4: 5 | AC4: 1 | AD4: 1 | AE4: https://roskazna.gov.ru/opendata/7710568760-textsofprovisionsoflegalactsFederalTreasury/ | AF4: 1 | AG4: 1 | AH4: 1 | AI4: 1 | AJ4: 1 | AK4: 1 | AL4: 1 | AM4: 1 | AN4: 0 | AO4: 1 | AP4: 1 | AQ4: 1 | AR4: 5 | AS4: 1 | AT4: 1 | AU4: https://roskazna.gov.ru/opendata/7710568760-informaciyapostatistikefinanso/ | AV4: 1 | AW4: 1 | AX4: 1 | AY4: 1 | AZ4: 1 | BA4: 1 | BB4: 1 | BC4: 1 | BD4: 1 | BE4: 1 | BF4: 1 | BG4: 1 | BH4: 5 | BI4: 1 | BJ4: 1 | BK4: 70 | BL4: 77
A5: МВД России | B5: http://mvd.gov.ru | C5: https://мвд.рф/открытые-данные | D5: 2 | E5: 1 | F5: 3 | G5: 3 | H5: 1 | I5: 1 | J5: 0 | K5: 1 | L5: 0 | M5: 0 | N5: 0 | O5: https://мвд.рф/открытые-данные/7727739372-MVDGIAC35 | P5: 0 | Q5: 1 | R5: 1 | S5: 1 | T5: 1 | U5: 1 | V5: 1 | W5: 1 | X5: 1 | Y5: 1 | Z5: 1 | AA5: 1 | AB5: 5 | AC5: 1 | AD5: 1 | AE5: https://мвд.рф/открытые-данные/7727739372-MVDGIAC33 | AF5: 1 | AG5: 1 | AH5: 1 | AI5: 1 | AJ5: 1 | AK5: 1 | AL5: 1 | AM5: 1 | AN5: 1 | AO5: 1 | AP5: 1 | AQ5: 1 | AR5: 5 | AS5: 1 | AT5: 1 | AU5: https://мвд.рф/открытые-данные/7727739372-MVDGIAC312 | AV5: 1 | AW5: 1 | AX5: 1 | AY5: 1 | AZ5: 1 | BA5: 1 | BB5: 1 | BC5: 1 | BD5: 1 | BE5: 1 | BF5: 1 | BG5: 1 | BH5: 5 | BI5: 1 | BJ5: 1 | BK5: 68 | BL5: 77
A6: МИД России | B6: http://www.mid.ru/ | C6: https://www.mid.ru/diverse/-/asset_publisher/8bWtTfQKqtaS/content/id/680111 | D6: 2 | E6: 1 | F6: 0 | G6: 3 | H6: 0 | I6: 0 | J6: 0 | K6: 0 | L6: 0 | M6: 0 | N6: 0 | O6: https://www.mid.ru/web/guest/diverse/-/asset_publisher/8bWtTfQKqtaS/content/id/679901 | P6: 1 | Q6: 1 | R6: 1 | S6: 1 | T6: 1 | U6: 1 | V6: 1 | W6: 1 | X6: 1 | Y6: 1 | Z6: 1 | AA6: 1 | AB6: 5 | AC6: 1 | AD6: 1 | AE6: https://www.mid.ru/web/guest/diverse/-/asset_publisher/8bWtTfQKqtaS/content/id/679917 | AF6: 1 | AG6: 1 | AH6: 1 | AI6: 1 | AJ6: 1 | AK6: 1 | AL6: 1 | AM6: 1 | AN6: 1 | AO6: 1 | AP6: 1 | AQ6: 1 | AR6: 5 | AS6: 1 | AT6: 1 | AU6: https://www.mid.ru/web/guest/diverse/-/asset_publisher/8bWtTfQKqtaS/content/id/679930 | AV6: 1 | AW6: 1 | AX6: 1 | AY6: 1 | AZ6: 1 | BA6: 1 | BB6: 1 | BC6: 1 | BD6: 1 | BE6: 1 | BF6: 1 | BG6: 1 | BH6: 5 | BI6: 1 | BJ6: 1 | BK6: 63 | BL6: 77
A7: Минвостокразвития России | B7: http://minvr.gov.ru/ | C7: https://minvr.gov.ru/opendata/ | D7: 2 | E7: 1 | F7: 3 | G7: 3 | H7: 1 | I7: 1 | J7: 1 | K7: 1 | L7: 0 | M7: 1 | N7: 0 | O7: https://minvr.gov.ru/opendata/2721194275-informatsiyaobobrashcheniyakh/ | P7: 1 | Q7: 1 | R7: 1 | S7: 1 | T7: 1 | U7: 1 | V7: 1 | W7: 1 | X7: 1 | Y7: 1 | Z7: 1 | AA7: 0 | AB7: 0 | AC7: 1 | AD7: 1 | AE7: https://minvr.gov.ru/opendata/2721194275-listofstateservices/ | AF7: 1 | AG7: 1 | AH7: 1 | AI7: 1 | AJ7: 1 | AK7: 1 | AL7: 1 | AM7: 1 | AN7: 1 | AO7: 1 | AP7: 1 | AQ7: 1 | AR7: 5 | AS7: 1 | AT7: 1 | AU7: https://minvr.gov.ru/opendata/2721194275-organizedevents/ | AV7: 1 | AW7: 1 | AX7: 1 | AY7: 1 | AZ7: 1 | BA7: 1 | BB7: 1 | BC7: 1 | BD7: 1 | BE7: 1 | BF7: 1 | BG7: 1 | BH7: 5 | BI7: 1 | BJ7: 1 | BK7: 65 | BL7: 77
A8: Минздрав России | B8: http://minzdrav.gov.ru/ | C8: https://minzdrav.gov.ru/opendata | D8: 0 | E8: 1 | F8: 3 | G8: 3 | H8: 1 | I8: 1 | J8: 0 | K8: 0 | L8: 0 | M8: 0 | N8: 0 | O8: https://minzdrav.gov.ru/opendata/7707778246-normpotrebproduct | P8: 1 | Q8: 1 | R8: 1 | S8: 1 | T8: 1 | U8: 1 | V8: 1 | W8: 1 | X8: 1 | Y8: 1 | Z8: 1 | AA8: 1 | AB8: 0 | AC8: 1 | AD8: 1 | AE8: https://minzdrav.gov.ru/opendata/7707778246-reestrklinicheskihissledovanii | AF8: 1 | AG8: 1 | AH8: 1 | AI8: 1 | AJ8: 1 | AK8: 1 | AL8: 1 | AM8: 1 | AN8: 1 | AO8: 1 | AP8: 1 | AQ8: 1 | AR8: 0 | AS8: 1 | AT8: 1 | AU8: https://minzdrav.gov.ru/opendata/7707778246-srednyayadlitelnostprebyvaniyapacientanakojke | AV8: 1 | AW8: 1 | AX8: 1 | AY8: 1 | AZ8: 1 | BA8: 1 | BB8: 1 | BC8: 1 | BD8: 1 | BE8: 1 | BF8: 1 | BG8: 1 | BH8: 0 | BI8: 1 | BJ8: 1 | BK8: 51 | BL8: 77
A9: Минкультуры России | B9: http://culture.gov.ru/ | C9: https://opendata.mkrf.ru/opendata | D9: 1 | E9: 1 | F9: 3 | G9: 3 | H9: 1 | I9: 1 | J9: 0 | K9: 0 | L9: 0 | M9: 0 | N9: 0 | O9: https://opendata.mkrf.ru/opendata/7705851331-heritage_lost_objects | P9: 1 | Q9: 1 | R9: 1 | S9: 1 | T9: 1 | U9: 1 | V9: 1 | W9: 1 | X9: 1 | Y9: 1 | Z9: 1 | AA9: 1 | AB9: 5 | AC9: 1 | AD9: 1 | AE9: https://opendata.mkrf.ru/opendata/7705851331-copyright_accredited_organizations | AF9: 1 | AG9: 1 | AH9: 1 | AI9: 1 | AJ9: 1 | AK9: 1 | AL9: 1 | AM9: 1 | AN9: 1 | AO9: 1 | AP9: 1 | AQ9: 1 | AR9: 5 | AS9: 1 | AT9: 1 | AU9: https://opendata.mkrf.ru/opendata/7705851331-archeology_list | AV9: 1 | AW9: 1 | AX9: 1 | AY9: 1 | AZ9: 1 | BA9: 1 | BB9: 1 | BC9: 1 | BD9: 1 | BE9: 1 | BF9: 1 | BG9: 1 | BH9: 5 | BI9: 1 | BJ9: 1 | BK9: 67 | BL9: 77
A10: Минобороны России | B10: http://mil.ru/opendata.htm | C10: http://mil.ru/opendata.htm | D10: 0 | E10: 0 | BK10: 0 | BL10: 77
A11: Минобрнауки России | B11: http://www.minobrnauki.gov.ru | C11: https://www.minobrnauki.gov.ru/opendata/ | D11: 2 | E11: 1 | F11: 3 | G11: 3 | H11: 1 | I11: 1 | J11: 0 | K11: 1 | L11: 0 | M11: 1 | N11: 1 | O11: https://www.minobrnauki.gov.ru/opendata/9710062939-svedeniya-ob-organizatsiyakh-dopolnitelnogo-professionalnogo-obrazovaniya | P11: 1 | Q11: 1 | R11: 1 | S11: 1 | T11: 0 | U11: 1 | V11: 1 | W11: 1 | X11: 1 | Y11: 1 | Z11: 1 | AA11: 1 | AB11: 5 | AC11: 1 | AD11: 1 | AE11: https://www.minobrnauki.gov.ru/opendata/9710062939-informatsiya-o-rezultatakh-planovykh-i-vneplanovykh-proverok-provedennykh-ministerstvom-nauki-i-vyssh2020 | AF11: 1 | AG11: 1 | AH11: 1 | AI11: 1 | AJ11: 1 | AK11: 1 | AL11: 1 | AM11: 1 | AN11: 1 | AO11: 1 | AP11: 1 | AQ11: 1 | AR11: 5 | AS11: 1 | AT11: 1 | AU11: https://www.minobrnauki.gov.ru/opendata/9710062939-svedeniya-o-chislennosti-professorsko-prepodavatelskogo-sostava-obrazovatelnykh-organizatsiy-osushch | AV11: 1 | AW11: 1 | AX11: 1 | AY11: 1 | AZ11: 0 | BA11: 1 | BB11: 1 | BC11: 1 | BD11: 1 | BE11: 1 | BF11: 1 | BG11: 1 | BH11: 5 | BI11: 1 | BJ11: 1 | BK11: 69 | BL11: 77
A12: Минприроды России | B12: http://www.mnr.gov.ru/ | C12: http://www.mnr.gov.ru/opendata/ | D12: 2 | E12: 1 | F12: 3 | G12: 3 | H12: 1 | I12: 0 | J12: 1 | K12: 0 | L12: 1 | M12: 1 | N12: 1 | O12: http://www.mnr.gov.ru/opendata/7710256289_confiscated_hunting_resources | P12: 1 | Q12: 1 | R12: 1 | S12: 1 | T12: 1 | U12: 1 | V12: 1 | W12: 1 | X12: 1 | Y12: 1 | Z12: 1 | AA12: 1 | AB12: 5 | AC12: 1 | AD12: 1 | AE12: http://www.mnr.gov.ru/opendata/7710256289-objects_of_accumulated_environmental_damage | AF12: 1 | AG12: 1 | AH12: 1 | AI12: 1 | AJ12: 1 | AK12: 1 | AL12: 1 | AM12: 1 | AN12: 1 | AO12: 1 | AP12: 1 | AQ12: 1 | AR12: 5 | AS12: 1 | AT12: 1 | AU12: http://www.mnr.gov.ru/opendata/7710256289-regperopi | AV12: 1 | AW12: 1 | AX12: 1 | AY12: 1 | AZ12: 1 | BA12: 1 | BB12: 1 | BC12: 1 | BD12: 1 | BE12: 1 | BF12: 1 | BG12: 1 | BH12: 0 | BI12: 1 | BJ12: 1 | BK12: 66 | BL12: 77
A13: Минпромторг России | B13: http://www.minpromtorg.gov.ru/ | C13: https://www.minpromtorg.gov.ru/opendata/ | D13: 2 | E13: 1 | F13: 3 | G13: 3 | H13: 1 | I13: 1 | J13: 1 | K13: 1 | L13: 1 | M13: 1 | N13: 0 | O13: https://www.minpromtorg.gov.ru/opendata/7705596339-supportmeasuresforeigneconomicactivity/ | P13: 1 | Q13: 1 | R13: 1 | S13: 1 | T13: 1 | U13: 1 | V13: 1 | W13: 1 | X13: 1 | Y13: 1 | Z13: 1 | AA13: 1 | AB13: 0 | AC13: 1 | AD13: 0 | AE13: https://www.minpromtorg.gov.ru/opendata/7705596339-ouhoshchuche/ | AF13: 1 | AG13: 1 | AH13: 1 | AI13: 1 | AJ13: 1 | AK13: 1 | AL13: 1 | AM13: 1 | AN13: 1 | AO13: 1 | AP13: 1 | AQ13: 1 | AR13: 0 | AS13: 1 | AT13: 1 | AU13: https://www.minpromtorg.gov.ru/opendata/7705596339-ais_vti_license/ | AV13: 1 | AW13: 1 | AX13: 1 | AY13: 1 | AZ13: 1 | BA13: 1 | BB13: 1 | BC13: 1 | BD13: 1 | BE13: 1 | BF13: 1 | BG13: 1 | BH13: 0 | BI13: 1 | BJ13: 1 | BK13: 56 | BL13: 77
A14: Минпросвещения России | B14: https://edu.gov.ru | C14: https://opendata.edu.gov.ru/opendata/ | D14: 2 | E14: 1 | F14: 3 | G14: 3 | H14: 1 | I14: 1 | J14: 0 | K14: 0 | L14: 0 | M14: 0 | N14: 0 | O14: https://opendata.edu.gov.ru/opendata/7707418081-BankDeti | P14: 1 | Q14: 1 | R14: 1 | S14: 1 | T14: 1 | U14: 1 | V14: 1 | W14: 1 | X14: 1 | Y14: 1 | Z14: 1 | AA14: 1 | AB14: 5 | AC14: 1 | AD14: 1 | AE14: https://opendata.edu.gov.ru/opendata/7707418081-ContinfoRO | AF14: 1 | AG14: 1 | AH14: 1 | AI14: 1 | AJ14: 1 | AK14: 1 | AL14: 1 | AM14: 1 | AN14: 1 | AO14: 1 | AP14: 1 | AQ14: 1 | AR14: 5 | AS14: 1 | AT14: 1 | AU14: https://opendata.edu.gov.ru/opendata/7707418081-ROIV | AV14: 1 | AW14: 1 | AX14: 1 | AY14: 1 | AZ14: 1 | BA14: 1 | BB14: 1 | BC14: 1 | BD14: 1 | BE14: 1 | BF14: 1 | BG14: 1 | BH14: 5 | BI14: 1 | BJ14: 1 | BK14: 68 | BL14: 77
A15: Минсельхоз России | B15: http://www.mcx.gov.ru/ | C15: https://mcx.gov.ru/activity/open-data/ | D15: 2 | E15: 1 | F15: 3 | G15: 3 | H15: 1 | I15: 1 | J15: 0 | K15: 1 | L15: 1 | M15: 0 | N15: 1 | O15: http://opendata.mcx.ru/opendata/7708075454-plemennoyregistr | P15: 1 | Q15: 1 | R15: 1 | S15: 1 | T15: 1 | U15: 1 | V15: 1 | W15: 1 | X15: 1 | Y15: 1 | Z15: 1 | AA15: 1 | AB15: 0 | AC15: 1 | AD15: 1 | AE15: http://opendata.mcx.ru/opendata/7708075454-boleznigivotnih | AF15: 1 | AG15: 1 | AH15: 1 | AI15: 1 | AJ15: 1 | AK15: 1 | AL15: 1 | AM15: 1 | AN15: 1 | AO15: 1 | AP15: 1 | AQ15: 1 | AR15: 0 | AS15: 1 | AT15: 1 | AU15: http://opendata.mcx.ru/opendata/7708075454-semenovodcheskiekhozyaystva | AV15: 1 | AW15: 1 | AX15: 1 | AY15: 1 | AZ15: 1 | BA15: 1 | BB15: 1 | BC15: 1 | BD15: 1 | BE15: 1 | BF15: 1 | BG15: 1 | BH15: 0 | BI15: 1 | BJ15: 1 | BK15: 56 | BL15: 77
A16: Минспорт России | B16: http://www.minsport.gov.ru | C16: https://minsport.gov.ru/opendata/ | D16: 0 | E16: 1 | F16: 3 | G16: 3 | H16: 0 | I16: 0 | J16: 0 | K16: 0 | L16: 0 | M16: 0 | N16: 0 | O16: https://minsport.gov.ru/opendata/192/29869/ | P16: 1 | Q16: 1 | R16: 1 | S16: 1 | T16: 1 | U16: 1 | V16: 1 | W16: 1 | X16: 1 | Y16: 1 | Z16: 0 | AA16: 1 | AB16: 0 | AC16: 1 | AD16: 1 | AE16: https://minsport.gov.ru/opendata/192/7192/ | AF16: 1 | AG16: 1 | AH16: 1 | AI16: 1 | AJ16: 1 | AK16: 1 | AL16: 1 | AM16: 1 | AN16: 1 | AO16: 1 | AP16: 1 | AQ16: 1 | AR16: 0 | AS16: 1 | AT16: 1 | AU16: https://minsport.gov.ru/opendata/192/7194/ | AV16: 1 | AW16: 1 | AX16: 1 | AY16: 1 | AZ16: 1 | BA16: 1 | BB16: 1 | BC16: 1 | BD16: 1 | BE16: 1 | BF16: 1 | BG16: 1 | BH16: 0 | BI16: 1 | BJ16: 1 | BK16: 48 | BL16: 77
A17: Минстрой России | B17: http://www.minstroyrf.gov.ru/ | C17: http://www.minstroyrf.gov.ru/opendata/ | D17: 2 | E17: 1 | F17: 3 | G17: 3 | H17: 1 | I17: 1 | J17: 0 | K17: 1 | L17: 0 | M17: 1 | N17: 1 | O17: http://www.minstroyrf.gov.ru/opendata/7707780887-resultsappeals/ | P17: 1 | Q17: 1 | R17: 1 | S17: 1 | T17: 1 | U17: 1 | V17: 1 | W17: 1 | X17: 1 | Y17: 1 | Z17: 1 | AA17: 1 | AB17: 0 | AC17: 1 | AD17: 1 | AE17: http://www.minstroyrf.gov.ru/opendata/7707780887-watersupply/ | AF17: 1 | AG17: 1 | AH17: 1 | AI17: 1 | AJ17: 1 | AK17: 1 | AL17: 1 | AM17: 1 | AN17: 1 | AO17: 1 | AP17: 1 | AQ17: 1 | AR17: 5 | AS17: 1 | AT17: 1 | AU17: http://www.minstroyrf.gov.ru/opendata/7707780887-specialtechnicalconditions/ | AV17: 1 | AW17: 1 | AX17: 1 | AY17: 1 | AZ17: 1 | BA17: 1 | BB17: 1 | BC17: 1 | BD17: 1 | BE17: 1 | BF17: 1 | BG17: 1 | BH17: 5 | BI17: 1 | BJ17: 1 | BK17: 66 | BL17: 77
A18: Минтранс России | B18: http://mintrans.gov.ru/ | C18: https://mintrans.gov.ru/opendata/ | D18: 1 | E18: 1 | F18: 3 | G18: 3 | H18: 1 | I18: 1 | J18: 0 | K18: 0 | L18: 1 | M18: 0 | N18: 1 | O18: https://mintrans.gov.ru/opendata/7705851331-reestrautorf | P18: 1 | Q18: 1 | R18: 1 | S18: 1 | T18: 1 | U18: 1 | V18: 1 | W18: 1 | X18: 1 | Y18: 1 | Z18: 1 | AA18: 1 | AB18: 0 | AC18: 1 | AD18: 1 | AE18: https://mintrans.gov.ru/opendata/7705851331-railroadclosing | AF18: 1 | AG18: 1 | AH18: 1 | AI18: 1 | AJ18: 1 | AK18: 1 | AL18: 1 | AM18: 1 | AN18: 1 | AO18: 1 | AP18: 1 | AQ18: 1 | AR18: 0 | AS18: 1 | AT18: 1 | AU18: https://mintrans.gov.ru/opendata/7705851331-schedulemzd | AV18: 1 | AW18: 1 | AX18: 1 | AY18: 1 | AZ18: 1 | BA18: 1 | BB18: 1 | BC18: 1 | BD18: 1 | BE18: 1 | BF18: 1 | BG18: 1 | BH18: 0 | BI18: 1 | BJ18: 1 | BK18: 54 | BL18: 77
A19: Минтруд России | B19: http://mintrud.gov.ru | C19: https://mintrud.gov.ru/opendata | D19: 2 | E19: 1 | F19: 3 | G19: 3 | H19: 1 | I19: 1 | J19: 0 | K19: 0 | L19: 1 | M19: 0 | N19: 1 | O19: https://mintrud.gov.ru/opendata/7710914971-pensii_sofinans | P19: 1 | Q19: 1 | R19: 1 | S19: 1 | T19: 1 | U19: 1 | V19: 1 | W19: 1 | X19: 1 | Y19: 1 | Z19: 1 | AA19: 1 | AB19: 5 | AC19: 1 | AD19: 1 | AE19: https://mintrud.gov.ru/opendata/7710914971-razmeri_posobiy_materinstvo | AF19: 1 | AG19: 1 | AH19: 1 | AI19: 1 | AJ19: 1 | AK19: 1 | AL19: 1 | AM19: 1 | AN19: 1 | AO19: 1 | AP19: 1 | AQ19: 1 | AR19: 5 | AS19: 1 | AT19: 1 | AU19: https://mintrud.gov.ru/opendata/7710914971-experts_SOUT | AV19: 1 | AW19: 1 | AX19: 1 | AY19: 1 | AZ19: 1 | BA19: 1 | BB19: 1 | BC19: 1 | BD19: 1 | BE19: 1 | BF19: 1 | BG19: 1 | BH19: 0 | BI19: 1 | BJ19: 1 | BK19: 65 | BL19: 77
A20: Минфин России | B20: http://minfin.gov.ru/ | C20: https://minfin.gov.ru/ru/opendata/ | D20: 0 | E20: 1 | F20: 3 | G20: 3 | H20: 1 | I20: 1 | J20: 1 | K20: 1 | L20: 1 | M20: 1 | N20: 0 | O20: https://minfin.gov.ru/opendata/7710168360-ReserveFund/ | P20: 1 | Q20: 1 | R20: 1 | S20: 1 | T20: 1 | U20: 1 | V20: 1 | W20: 1 | X20: 1 | Y20: 1 | Z20: 1 | AA20: 1 | AB20: 5 | AC20: 1 | AD20: 1 | AE20: https://minfin.gov.ru/opendata/7710168360-DiamondTools/ | AF20: 1 | AG20: 1 | AH20: 1 | AI20: 1 | AJ20: 1 | AK20: 1 | AL20: 1 | AM20: 1 | AN20: 1 | AO20: 1 | AP20: 1 | AQ20: 1 | AR20: 5 | AS20: 1 | AT20: 1 | AU20: https://minfin.gov.ru/OpenData/7710168360-affinage_org/ | AV20: 1 | AW20: 1 | AX20: 1 | AY20: 1 | AZ20: 1 | BA20: 1 | BB20: 1 | BC20: 1 | BD20: 1 | BE20: 1 | BF20: 1 | BG20: 1 | BH20: 5 | BI20: 1 | BJ20: 1 | BK20: 70 | BL20: 77
A21: Минцифры России | B21: https://digital.gov.ru/ru/ | C21: https://digital.gov.ru/opendata/ | D21: 2 | E21: 1 | F21: 3 | G21: 0 | H21: 1 | I21: 1 | J21: 0 | K21: 0 | L21: 0 | M21: 1 | N21: 0 | O21: https://digital.gov.ru/opendata/7710474375-proniknpodvsvyaz/ | P21: 1 | Q21: 1 | R21: 1 | S21: 1 | T21: 1 | U21: 1 | V21: 1 | W21: 1 | X21: 1 | Y21: 1 | Z21: 1 | AA21: 1 | AB21: 5 | AC21: 1 | AD21: 1 | AE21: https://digital.gov.ru/opendata/7710474375-telefplotn/ | AF21: 1 | AG21: 1 | AH21: 1 | AI21: 1 | AJ21: 1 | AK21: 1 | AL21: 1 | AM21: 1 | AN21: 1 | AO21: 1 | AP21: 1 | AQ21: 1 | AR21: 5 | AS21: 1 | AT21: 1 | AU21: https://digital.gov.ru/opendata/7710474375-investiosnfond/ | AV21: 1 | AW21: 1 | AX21: 1 | AY21: 1 | AZ21: 1 | BA21: 1 | BB21: 1 | BC21: 1 | BD21: 1 | BE21: 1 | BF21: 1 | BG21: 1 | BH21: 5 | BI21: 1 | BJ21: 1 | BK21: 66 | BL21: 77
A22: Минэкономразвития России | B22: https://www.economy.gov.ru/ | C22: https://www.economy.gov.ru/material/open_data/ | D22: 2 | E22: 1 | F22: 0 | G22: 3 | H22: 0 | I22: 0 | J22: 0 | K22: 1 | L22: 1 | M22: 1 | N22: 1 | O22: https://data.gov.ru/opendata/7710349494-govprogramreport30 | P22: 1 | Q22: 1 | R22: 1 | S22: 1 | T22: 1 | U22: 1 | V22: 1 | W22: 1 | X22: 1 | Y22: 1 | Z22: 1 | AA22: 1 | AB22: 5 | AC22: 1 | AD22: 1 | AE22: https://data.gov.ru/opendata/7710349494-govprogramreport22 | AF22: 1 | AG22: 1 | AH22: 1 | AI22: 1 | AJ22: 1 | AK22: 1 | AL22: 1 | AM22: 1 | AN22: 1 | AO22: 1 | AP22: 1 | AQ22: 1 | AR22: 5 | AS22: 1 | AT22: 1 | AU22: https://data.gov.ru/opendata/7710349494-govprogramreport36 | AV22: 1 | AW22: 1 | AX22: 1 | AY22: 1 | AZ22: 1 | BA22: 1 | BB22: 1 | BC22: 1 | BD22: 1 | BE22: 1 | BF22: 1 | BG22: 1 | BH22: 5 | BI22: 1 | BJ22: 1 | BK22: 67 | BL22: 77
A23: Минэнерго России | B23: https://minenergo.gov.ru/ | C23: https://minenergo.gov.ru/opendata | D23: 2 | E23: 1 | F23: 3 | G23: 3 | H23: 1 | I23: 1 | J23: 0 | K23: 0 | L23: 0 | M23: 1 | N23: 1 | O23: https://minenergo.gov.ru/opendata/7705847529-vyvodobektovizekspluatatsii | P23: 1 | Q23: 1 | R23: 1 | S23: 1 | T23: 1 | U23: 1 | V23: 1 | W23: 1 | X23: 1 | Y23: 1 | Z23: 1 | AA23: 1 | AB23: 5 | AC23: 1 | AD23: 1 | AE23: https://minenergo.gov.ru/opendata/7705847529-otchetyobispolneniiinvestprogramm | AF23: 1 | AG23: 1 | AH23: 1 | AI23: 1 | AJ23: 1 | AK23: 1 | AL23: 1 | AM23: 1 | AN23: 1 | AO23: 1 | AP23: 1 | AQ23: 1 | AR23: 5 | AS23: 1 | AT23: 1 | AU23: https://minenergo.gov.ru/opendata/7705847529-register-transmission-facilities | AV23: 1 | AW23: 1 | AX23: 1 | AY23: 1 | AZ23: 1 | BA23: 1 | BB23: 1 | BC23: 1 | BD23: 1 | BE23: 1 | BF23: 1 | BG23: 1 | BH23: 5 | BI23: 1 | BJ23: 1 | BK23: 70 | BL23: 77
A24: Минюст России | B24: https://minjust.gov.ru/ru/ | C24: https://minjust.gov.ru/ru/pages/opendata/ | D24: 2 | E24: 1 | F24: 3 | G24: 3 | H24: 1 | I24: 0 | J24: 0 | K24: 0 | L24: 0 | M24: 0 | N24: 0 | O24: https://data.gov.ru/opendata/7707211418-zags | P24: 1 | Q24: 1 | R24: 1 | S24: 1 | T24: 1 | U24: 1 | V24: 1 | W24: 1 | X24: 1 | Y24: 1 | Z24: 1 | AA24: 1 | AB24: 5 | AC24: 1 | AD24: 1 | AE24: https://data.gov.ru/opendata/7707211418-reestradvokat | AF24: 1 | AG24: 1 | AH24: 1 | AI24: 1 | AJ24: 1 | AK24: 1 | AL24: 1 | AM24: 1 | AN24: 1 | AO24: 1 | AP24: 1 | AQ24: 1 | AR24: 5 | AS24: 1 | AT24: 1 | AU24: https://data.gov.ru/opendata/7707211418-sovernotardeystviy | AV24: 1 | AW24: 1 | AX24: 1 | AY24: 1 | AZ24: 1 | BA24: 1 | BB24: 1 | BC24: 1 | BD24: 1 | BE24: 1 | BF24: 1 | BG24: 1 | BH24: 5 | BI24: 1 | BJ24: 1 | BK24: 67 | BL24: 77
A25: МЧС России | B25: http://www.mchs.gov.ru/ | C25: https://www.mchs.gov.ru/ministerstvo/otkrytoe-ministerstvo/otkrytye-dannye | D25: 1 | E25: 1 | F25: 3 | G25: 3 | H25: 1 | I25: 1 | J25: 1 | K25: 1 | L25: 1 | M25: 0 | N25: 0 | O25: https://www.mchs.gov.ru/ministerstvo/otkrytoe-ministerstvo/otkrytye-dannye/7707034952-OilSpill | P25: 1 | Q25: 1 | R25: 1 | S25: 1 | T25: 0 | U25: 1 | V25: 1 | W25: 1 | X25: 1 | Y25: 1 | Z25: 1 | AA25: 0 | AB25: 0 | AC25: 1 | AD25: 1 | AE25: https://www.mchs.gov.ru/ministerstvo/otkrytoe-ministerstvo/otkrytye-dannye/7707034952-StateControl | AF25: 1 | AG25: 1 | AH25: 1 | AI25: 1 | AJ25: 0 | AK25: 1 | AL25: 1 | AM25: 1 | AN25: 1 | AO25: 1 | AP25: 1 | AQ25: 0 | AR25: 0 | AS25: 1 | AT25: 1 | AU25: https://www.mchs.gov.ru/ministerstvo/otkrytoe-ministerstvo/otkrytye-dannye/7707034952-FireSafetyAudit | AV25: 1 | AW25: 1 | AX25: 1 | AY25: 1 | AZ25: 0 | BA25: 1 | BB25: 1 | BC25: 1 | BD25: 1 | BE25: 1 | BF25: 1 | BG25: 0 | BH25: 0 | BI25: 1 | BJ25: 1 | BK25: 49 | BL25: 77
A26: Росавиация | B26: http://favt.gov.ru/ | C26: http://favt.gov.ru/opendata/ | D26: 2 | E26: 1 | F26: 3 | G26: 3 | H26: 1 | I26: 1 | J26: 0 | K26: 0 | L26: 1 | M26: 1 | N26: 1 | O26: http://favt.gov.ru/opendata/7714549744-reestrakkredorg/ | P26: 1 | Q26: 1 | R26: 1 | S26: 1 | T26: 1 | U26: 1 | V26: 1 | W26: 1 | X26: 1 | Y26: 1 | Z26: 1 | AA26: 1 | AB26: 5 | AC26: 1 | AD26: 1 | AE26: http://favt.gov.ru/opendata/7714549744-reestrattestorg/ | AF26: 1 | AG26: 1 | AH26: 1 | AI26: 1 | AJ26: 1 | AK26: 1 | AL26: 1 | AM26: 1 | AN26: 1 | AO26: 1 | AP26: 1 | AQ26: 1 | AR26: 5 | AS26: 1 | AT26: 1 | AU26: http://favt.gov.ru/opendata/7714549744-statkolsudga/ | AV26: 1 | AW26: 1 | AX26: 1 | AY26: 1 | AZ26: 1 | BA26: 1 | BB26: 1 | BC26: 1 | BD26: 1 | BE26: 1 | BF26: 1 | BG26: 1 | BH26: 5 | BI26: 1 | BJ26: 1 | BK26: 71 | BL26: 77
A27: Росавтодор | B27: http://rosavtodor.gov.ru/ | C27: https://rosavtodor.gov.ru/opendata | D27: 2 | E27: 1 | F27: 3 | G27: 3 | H27: 1 | I27: 1 | J27: 0 | K27: 1 | L27: 1 | M27: 1 | N27: 1 | O27: https://rosavtodor.gov.ru/opendata/7717509757-fkuuprdorkavkaz | P27: 1 | Q27: 1 | R27: 1 | S27: 1 | T27: 1 | U27: 1 | V27: 1 | W27: 1 | X27: 1 | Y27: 1 | Z27: 1 | AA27: 1 | AB27: 0 | AC27: 1 | AD27: 1 | AE27: https://rosavtodor.gov.ru/opendata/7717509757-meroprfcpkrim | AF27: 1 | AG27: 1 | AH27: 1 | AI27: 1 | AJ27: 1 | AK27: 1 | AL27: 1 | AM27: 1 | AN27: 1 | AO27: 1 | AP27: 1 | AQ27: 1 | AR27: 0 | AS27: 1 | AT27: 1 | AU27: https://rosavtodor.gov.ru/opendata/7717509757-reestrkategor | AV27: 1 | AW27: 1 | AX27: 1 | AY27: 1 | AZ27: 1 | BA27: 1 | BB27: 1 | BC27: 1 | BD27: 1 | BE27: 1 | BF27: 1 | BG27: 1 | BH27: 0 | BI27: 1 | BJ27: 1 | BK27: 57 | BL27: 77
A28: Росаккредитация | B28: http://www.fsa.gov.ru/ | C28: https://fsa.gov.ru/opendata/ | D28: 1 | E28: 1 | F28: 3 | G28: 3 | H28: 1 | I28: 0 | J28: 0 | K28: 0 | L28: 1 | M28: 1 | N28: 1 | O28: https://fsa.gov.ru/opendata/7736638268-nchral_os/ | P28: 1 | Q28: 1 | R28: 1 | S28: 1 | T28: 0 | U28: 1 | V28: 1 | W28: 1 | X28: 1 | Y28: 1 | Z28: 1 | AA28: 1 | AB28: 0 | AC28: 1 | AD28: 1 | AE28: https://fsa.gov.ru/opendata/7736638268-expert/ | AF28: 1 | AG28: 1 | AH28: 1 | AI28: 1 | AJ28: 0 | AK28: 1 | AL28: 1 | AM28: 1 | AN28: 1 | AO28: 1 | AP28: 1 | AQ28: 1 | AR28: 0 | AS28: 1 | AT28: 1 | AU28: https://fsa.gov.ru/opendata/7736638268-statkol/ | AV28: 1 | AW28: 1 | AX28: 1 | AY28: 1 | AZ28: 0 | BA28: 1 | BB28: 0 | BC28: 0 | BD28: 0 | BE28: 1 | BF28: 1 | BG28: 1 | BH28: 0 | BI28: 0 | BJ28: 0 | BK28: 46 | BL28: 77
A29: Росалкогольрегулирование | B29: http://fsrar.gov.ru/ | C29: http://fsrar.gov.ru/opendata | D29: 2 | E29: 1 | F29: 3 | G29: 3 | H29: 0 | I29: 1 | J29: 0 | K29: 0 | L29: 0 | M29: 0 | N29: 1 | O29: https://data.gov.ru/opendata/7710747640-zpoap | P29: 1 | Q29: 1 | R29: 1 | S29: 1 | T29: 1 | U29: 1 | V29: 1 | W29: 0 | X29: 1 | Y29: 1 | Z29: 1 | AA29: 1 | AB29: 5 | AC29: 1 | AD29: 1 | AE29: https://data.gov.ru/opendata/7710747640-plan | AF29: 1 | AG29: 1 | AH29: 1 | AI29: 1 | AJ29: 1 | AK29: 1 | AL29: 1 | AM29: 0 | AN29: 1 | AO29: 1 | AP29: 1 | AQ29: 1 | AR29: 5 | AS29: 1 | AT29: 1 | AU29: https://data.gov.ru/opendata/7710747640-pikvod | AV29: 1 | AW29: 1 | AX29: 1 | AY29: 1 | AZ29: 1 | BA29: 1 | BB29: 1 | BC29: 1 | BD29: 1 | BE29: 1 | BF29: 1 | BG29: 1 | BH29: 5 | BI29: 1 | BJ29: 1 | BK29: 66 | BL29: 77
A30: Росархив | B30: http://archives.gov.ru | C30: http://archives.gov.ru/opendata | D30: 2 | E30: 1 | F30: 3 | G30: 3 | H30: 1 | I30: 1 | J30: 0 | K30: 0 | L30: 0 | M30: 1 | N30: 0 | O30: http://archives.gov.ru/opendata/7710474216-statistika.shtml | P30: 1 | Q30: 1 | R30: 1 | S30: 1 | T30: 1 | U30: 1 | V30: 1 | W30: 1 | X30: 1 | Y30: 1 | Z30: 1 | AA30: 1 | AB30: 0 | AC30: 1 | AD30: 1 | AE30: http://archives.gov.ru/opendata/7710474216-archiveklassifikatorfiz.shtml | AF30: 1 | AG30: 1 | AH30: 1 | AI30: 1 | AJ30: 1 | AK30: 1 | AL30: 1 | AM30: 1 | AN30: 1 | AO30: 1 | AP30: 1 | AQ30: 1 | AR30: 0 | AS30: 1 | AT30: 1 | AU30: http://archives.gov.ru/opendata/7710474216-keytask.shtml | AV30: 1 | AW30: 1 | AX30: 1 | AY30: 1 | AZ30: 1 | BA30: 1 | BB30: 1 | BC30: 1 | BD30: 1 | BE30: 1 | BF30: 0 | BG30: 1 | BH30: 0 | BI30: 1 | BJ30: 1 | BK30: 53 | BL30: 77
A31: Росводресурсы | B31: https://voda.gov.ru/ | C31: https://voda.gov.ru/opendata/index.php | D31: 2 | E31: 1 | F31: 3 | G31: 3 | H31: 1 | I31: 0 | J31: 0 | K31: 0 | L31: 0 | M31: 0 | N31: 1 | O31: https://voda.gov.ru/opendata/7728513882-2_5_gvr/ | P31: 1 | Q31: 1 | R31: 1 | S31: 1 | T31: 1 | U31: 1 | V31: 1 | W31: 1 | X31: 1 | Y31: 1 | Z31: 1 | AA31: 1 | AB31: 5 | AC31: 1 | AD31: 1 | AE31: https://voda.gov.ru/opendata/7728513882-2_6_gvr/ | AF31: 1 | AG31: 1 | AH31: 1 | AI31: 1 | AJ31: 1 | AK31: 1 | AL31: 1 | AM31: 1 | AN31: 1 | AO31: 1 | AP31: 1 | AQ31: 1 | AR31: 5 | AS31: 1 | AT31: 1 | AU31: https://voda.gov.ru/opendata/7728513882-1_5gvr/ | AV31: 1 | AW31: 1 | AX31: 1 | AY31: 1 | AZ31: 1 | BA31: 1 | BB31: 1 | BC31: 1 | BD31: 1 | BE31: 1 | BF31: 1 | BG31: 1 | BH31: 5 | BI31: 1 | BJ31: 1 | BK31: 68 | BL31: 77
A32: Росгвардия | B32: http://rosguard.gov.ru | C32: https://rosguard.gov.ru/opendata | D32: 2 | E32: 1 | F32: 3 | G32: 3 | H32: 1 | I32: 0 | J32: 0 | K32: 1 | L32: 0 | M32: 1 | N32: 0 | O32: https://rosguard.gov.ru/opendata/7722377866-zadachi | P32: 1 | Q32: 1 | R32: 1 | S32: 1 | T32: 0 | U32: 0 | V32: 1 | W32: 1 | X32: 1 | Y32: 1 | Z32: 1 | AA32: 1 | AB32: 5 | AC32: 1 | AD32: 1 | AE32: https://rosguard.gov.ru/opendata/7722377866-choop | AF32: 1 | AG32: 1 | AH32: 1 | AI32: 1 | AJ32: 0 | AK32: 0 | AL32: 1 | AM32: 1 | AN32: 1 | AO32: 1 | AP32: 1 | AQ32: 1 | AR32: 5 | AS32: 1 | AT32: 1 | AU32: https://rosguard.gov.ru/opendata/7722377866-tgso | AV32: 1 | AW32: 1 | AX32: 1 | AY32: 1 | AZ32: 0 | BA32: 0 | BB32: 1 | BC32: 1 | BD32: 1 | BE32: 1 | BF32: 1 | BG32: 1 | BH32: 5 | BI32: 1 | BJ32: 1 | BK32: 63 | BL32: 77
A33: Росгидромет | B33: http://meteorf.gov.ru/ | C33: http://meteorf.gov.ru/opendata/ | D33: 2 | E33: 1 | F33: 3 | G33: 3 | H33: 1 | I33: 0 | J33: 0 | K33: 0 | L33: 0 | M33: 1 | N33: 1 | O33: http://meteorf.gov.ru/opendata/7703092752-aerol/ | P33: 1 | Q33: 1 | R33: 1 | S33: 1 | T33: 1 | U33: 1 | V33: 1 | W33: 1 | X33: 1 | Y33: 1 | Z33: 0 | AA33: 1 | AB33: 0 | AC33: 1 | AD33: 1 | AE33: http://meteorf.gov.ru/opendata/7703092752-climat/ | AF33: 1 | AG33: 1 | AH33: 1 | AI33: 1 | AJ33: 1 | AK33: 1 | AL33: 1 | AM33: 1 | AN33: 1 | AO33: 1 | AP33: 1 | AQ33: 1 | AR33: 0 | AS33: 1 | AT33: 1 | AU33: http://meteorf.gov.ru/opendata/7703092752-pollut/ | AV33: 1 | AW33: 1 | AX33: 1 | AY33: 1 | AZ33: 1 | BA33: 1 | BB33: 1 | BC33: 1 | BD33: 1 | BE33: 1 | BF33: 0 | BG33: 1 | BH33: 0 | BI33: 1 | BJ33: 1 | BK33: 52 | BL33: 77
A34: Росжелдор | B34: http://rlw.gov.ru/ | C34: http://www.rlw.gov.ru/opendata | D34: 2 | E34: 1 | F34: 3 | G34: 3 | H34: 1 | I34: 0 | J34: 0 | K34: 1 | L34: 1 | M34: 0 | N34: 1 | O34: http://www.rlw.gov.ru/opendata/7708525167-registrpassvagon | P34: 1 | Q34: 1 | R34: 1 | S34: 1 | T34: 1 | U34: 1 | V34: 1 | W34: 1 | X34: 1 | Y34: 1 | Z34: 1 | AA34: 1 | AB34: 0 | AC34: 1 | AD34: 1 | AE34: http://www.rlw.gov.ru/opendata/7708525167-reestrattestatorg | AF34: 1 | AG34: 1 | AH34: 1 | AI34: 1 | AJ34: 1 | AK34: 1 | AL34: 1 | AM34: 1 | AN34: 1 | AO34: 1 | AP34: 1 | AQ34: 1 | AR34: 5 | AS34: 1 | AT34: 1 | AU34: http://www.rlw.gov.ru/opendata/7708525167-transpsredstvavreestrtits | AV34: 1 | AW34: 1 | AX34: 1 | AY34: 1 | AZ34: 1 | BA34: 1 | BB34: 1 | BC34: 1 | BD34: 1 | BE34: 1 | BF34: 1 | BG34: 1 | BH34: 5 | BI34: 1 | BJ34: 1 | BK34: 65 | BL34: 77
A35: Росздравнадзор | B35: http://roszdravnadzor.gov.ru | C35: https://roszdravnadzor.gov.ru/opendata | D35: 2 | E35: 1 | F35: 3 | G35: 3 | H35: 1 | I35: 0 | J35: 0 | K35: 0 | L35: 1 | M35: 1 | N35: 0 | O35: https://roszdravnadzor.gov.ru/opendata/7710537160-stat103_licfarm | P35: 1 | Q35: 1 | R35: 1 | S35: 1 | T35: 1 | U35: 1 | V35: 1 | W35: 1 | X35: 1 | Y35: 1 | Z35: 1 | AA35: 1 | AB35: 5 | AC35: 1 | AD35: 1 | AE35: https://roszdravnadzor.gov.ru/opendata/7710537160-services | AF35: 1 | AG35: 1 | AH35: 1 | AI35: 1 | AJ35: 1 | AK35: 1 | AL35: 1 | AM35: 1 | AN35: 1 | AO35: 1 | AP35: 1 | AQ35: 1 | AR35: 5 | AS35: 1 | AT35: 1 | AU35: https://roszdravnadzor.gov.ru/opendata/7710537160-drugs_destruction | AV35: 1 | AW35: 1 | AX35: 1 | AY35: 1 | AZ35: 1 | BA35: 1 | BB35: 1 | BC35: 1 | BD35: 1 | BE35: 1 | BF35: 1 | BG35: 1 | BH35: 5 | BI35: 1 | BJ35: 1 | BK35: 69 | BL35: 77
A36: Росимущество | B36: http://rosim.gov.ru/ | C36: https://rosim.gov.ru/opendata | D36: 2 | E36: 1 | F36: 3 | G36: 3 | H36: 1 | I36: 1 | J36: 0 | K36: 0 | L36: 1 | M36: 0 | N36: 1 | O36: https://rosim.gov.ru/opendata/7710723134-rfi_1_1_land | P36: 1 | Q36: 1 | R36: 1 | S36: 1 | T36: 1 | U36: 1 | V36: 1 | W36: 1 | X36: 1 | Y36: 1 | Z36: 1 | AA36: 1 | AB36: 5 | AC36: 1 | AD36: 1 | AE36: https://rosim.gov.ru/opendata/7710723134-rfi_2_3_movables | AF36: 1 | AG36: 1 | AH36: 1 | AI36: 1 | AJ36: 1 | AK36: 1 | AL36: 1 | AM36: 1 | AN36: 1 | AO36: 1 | AP36: 1 | AQ36: 1 | AR36: 5 | AS36: 1 | AT36: 1 | AU36: https://rosim.gov.ru/opendata/7710723134-stat_plan | AV36: 1 | AW36: 1 | AX36: 1 | AY36: 1 | AZ36: 1 | BA36: 1 | BB36: 1 | BC36: 1 | BD36: 1 | BE36: 1 | BF36: 1 | BG36: 1 | BH36: 5 | BI36: 1 | BJ36: 1 | BK36: 70 | BL36: 77
A37: Роскомнадзор | B37: https://rkn.gov.ru/ | C37: https://rkn.gov.ru/opendata/stat/ | D37: 2 | E37: 1 | F37: 3 | G37: 0 | H37: 0 | I37: 1 | J37: 0 | K37: 0 | L37: 1 | M37: 1 | N37: 1 | O37: https://rkn.gov.ru/opendata/7705846236-BorderTelecommunications/ | P37: 1 | Q37: 1 | R37: 1 | S37: 1 | T37: 1 | U37: 1 | V37: 1 | W37: 1 | X37: 1 | Y37: 1 | Z37: 1 | AA37: 0 | AB37: 0 | AC37: 1 | AD37: 1 | AE37: https://rkn.gov.ru/opendata/7705846236-OperatorsPD/ | AF37: 1 | AG37: 1 | AH37: 1 | AI37: 1 | AJ37: 1 | AK37: 1 | AL37: 1 | AM37: 1 | AN37: 1 | AO37: 1 | AP37: 1 | AQ37: 0 | AR37: 0 | AS37: 1 | AT37: 1 | AU37: https://rkn.gov.ru/opendata/7705846236-communicationInfrastructureRF/ | AV37: 1 | AW37: 1 | AX37: 1 | AY37: 1 | AZ37: 1 | BA37: 1 | BB37: 1 | BC37: 1 | BD37: 1 | BE37: 1 | BF37: 1 | BG37: 0 | BH37: 0 | BI37: 1 | BJ37: 1 | BK37: 49 | BL37: 77
A38: Рослесхоз | B38: http://rosleshoz.gov.ru/ | C38: http://rosleshoz.gov.ru/opendata | D38: 2 | E38: 1 | F38: 3 | G38: 3 | H38: 1 | I38: 0 | J38: 0 | K38: 1 | L38: 0 | M38: 0 | N38: 0 | O38: http://rosleshoz.gov.ru/opendata/7705598840-RegisterPlants | P38: 1 | Q38: 1 | R38: 1 | S38: 1 | T38: 1 | U38: 1 | V38: 1 | W38: 1 | X38: 1 | Y38: 1 | Z38: 1 | AA38: 1 | AB38: 0 | AC38: 1 | AD38: 1 | AE38: http://rosleshoz.gov.ru/opendata/7705598840-ReforestationArea | AF38: 1 | AG38: 1 | AH38: 1 | AI38: 1 | AJ38: 1 | AK38: 1 | AL38: 1 | AM38: 1 | AN38: 1 | AO38: 1 | AP38: 1 | AQ38: 1 | AR38: 0 | AS38: 1 | AT38: 1 | AU38: http://rosleshoz.gov.ru/opendata/7705598840-AerialWorks | AV38: 1 | AW38: 1 | AX38: 1 | AY38: 1 | AZ38: 1 | BA38: 1 | BB38: 1 | BC38: 1 | BD38: 1 | BE38: 1 | BF38: 1 | BG38: 1 | BH38: 5 | BI38: 1 | BJ38: 1 | BK38: 58 | BL38: 77
A39: Росмолодёжь | B39: http://fadm.gov.ru | C39: https://fadm.gov.ru/opendata | D39: 2 | E39: 1 | F39: 0 | G39: 3 | H39: 1 | I39: 1 | J39: 1 | K39: 1 | L39: 1 | M39: 1 | N39: 0 | O39: https://fadm.gov.ru/opendata/7703672351-appealstat | P39: 1 | Q39: 1 | R39: 1 | S39: 1 | T39: 0 | U39: 0 | V39: 1 | W39: 1 | X39: 1 | Y39: 1 | Z39: 1 | AA39: 1 | AB39: 5 | AC39: 1 | AD39: 1 | AE39: https://fadm.gov.ru/opendata/7703672351-events | AF39: 1 | AG39: 1 | AH39: 1 | AI39: 1 | AJ39: 0 | AK39: 0 | AL39: 1 | AM39: 1 | AN39: 1 | AO39: 1 | AP39: 1 | AQ39: 1 | AR39: 5 | AS39: 1 | AT39: 1 | AU39: https://fadm.gov.ru/opendata/7703672351-regionorgs | AV39: 1 | AW39: 1 | AX39: 1 | AY39: 1 | AZ39: 0 | BA39: 0 | BB39: 1 | BC39: 1 | BD39: 1 | BE39: 1 | BF39: 1 | BG39: 1 | BH39: 5 | BI39: 1 | BJ39: 1 | BK39: 63 | BL39: 77
A40: Росморречфлот | B40: http://morflot.gov.ru/ | C40: http://morflot.gov.ru/glavnaya/otkryitoe_agentstvo/opendata.html | D40: 2 | E40: 1 | F40: 3 | G40: 3 | H40: 1 | I40: 1 | J40: 0 | K40: 0 | L40: 0 | M40: 1 | N40: 0 | O40: http://opendata.morflot.ru/7707516988-BUNKERT | P40: 1 | Q40: 1 | R40: 1 | S40: 1 | T40: 1 | U40: 1 | V40: 1 | W40: 1 | X40: 1 | Y40: 1 | Z40: 1 | AA40: 1 | AB40: 0 | AC40: 1 | AD40: 1 | AE40: http://opendata.morflot.ru/7707516988-FakticheskigodniesudaVVT | AF40: 1 | AG40: 1 | AH40: 1 | AI40: 1 | AJ40: 1 | AK40: 1 | AL40: 1 | AM40: 1 | AN40: 1 | AO40: 1 | AP40: 1 | AQ40: 1 | AR40: 0 | AS40: 1 | AT40: 1 | AU40: http://opendata.morflot.ru/7707516988-ReestrVidannihSvidetelstv | AV40: 1 | AW40: 1 | AX40: 1 | AY40: 0 | AZ40: 0 | BA40: 0 | BB40: 1 | BC40: 1 | BD40: 0 | BE40: 1 | BF40: 1 | BG40: 0 | BH40: 0 | BI40: 1 | BJ40: 1 | BK40: 49 | BL40: 77
A41: Роснедра | B41: http://www.rosnedra.gov.ru/ | C41: https://www.rosnedra.gov.ru/opendata/ | D41: 2 | E41: 1 | F41: 3 | G41: 3 | H41: 1 | I41: 1 | J41: 1 | K41: 1 | L41: 0 | M41: 1 | N41: 1 | O41: https://www.rosnedra.gov.ru/opendata/7703518529-perechentpi | P41: 1 | Q41: 1 | R41: 1 | S41: 1 | T41: 1 | U41: 1 | V41: 1 | W41: 1 | X41: 1 | Y41: 1 | Z41: 1 | AA41: 1 | AB41: 5 | AC41: 1 | AD41: 1 | AE41: https://www.rosnedra.gov.ru/opendata/7703518529-DepositsGISAtlas | AF41: 1 | AG41: 1 | AH41: 0 | AI41: 0 | AJ41: 0 | AK41: 0 | AL41: 1 | AM41: 1 | AN41: 1 | AO41: 1 | AP41: 1 | AQ41: 0 | AR41: 0 | AS41: 1 | AT41: 1 | AU41: https://www.rosnedra.gov.ru/opendata/7703518529-perechnilist | AV41: 1 | AW41: 1 | AX41: 1 | AY41: 1 | AZ41: 1 | BA41: 1 | BB41: 1 | BC41: 1 | BD41: 1 | BE41: 1 | BF41: 1 | BG41: 0 | BH41: 0 | BI41: 1 | BJ41: 1 | BK41: 56 | BL41: 77
A42: Рособрнадзор | B42: http://obrnadzor.gov.ru/ | C42: http://obrnadzor.gov.ru/otkrytoe-pravitelstvo/opendata/ | D42: 2 | E42: 1 | F42: 3 | G42: 3 | H42: 0 | I42: 1 | J42: 0 | K42: 0 | L42: 0 | M42: 0 | N42: 0 | O42: http://obrnadzor.gov.ru/otkrytoe-pravitelstvo/opendata/7701537808-statlic/ | P42: 1 | Q42: 1 | R42: 1 | S42: 1 | T42: 1 | U42: 1 | V42: 1 | W42: 1 | X42: 1 | Y42: 1 | Z42: 1 | AA42: 1 | AB42: 0 | AC42: 1 | AD42: 1 | AE42: http://obrnadzor.gov.ru/otkrytoe-pravitelstvo/opendata/7701537808-legalacts/ | AF42: 1 | AG42: 1 | AH42: 1 | AI42: 1 | AJ42: 1 | AK42: 1 | AL42: 1 | AM42: 1 | AN42: 1 | AO42: 1 | AP42: 1 | AQ42: 1 | AR42: 5 | AS42: 1 | AT42: 1 | AU42: http://obrnadzor.gov.ru/otkrytoe-pravitelstvo/opendata/7701537808-budget/ | AV42: 1 | AW42: 1 | AX42: 1 | AY42: 1 | AZ42: 1 | BA42: 1 | BB42: 1 | BC42: 1 | BD42: 0 | BE42: 1 | BF42: 1 | BG42: 1 | BH42: 0 | BI42: 1 | BJ42: 1 | BK42: 56 | BL42: 77
A43: Роспатент | B43: https://rospatent.gov.ru/ | C43: https://rospatent.gov.ru/opendata | D43: 1 | E43: 1 | F43: 3 | G43: 3 | H43: 1 | I43: 1 | J43: 1 | K43: 1 | L43: 1 | M43: 1 | N43: 0 | O43: https://rospatent.gov.ru/opendata/7730176088-patpov | P43: 1 | Q43: 1 | R43: 1 | S43: 1 | T43: 1 | U43: 1 | V43: 1 | W43: 1 | X43: 1 | Y43: 1 | Z43: 1 | AA43: 1 | AB43: 0 | AC43: 1 | AD43: 1 | AE43: https://rospatent.gov.ru/opendata/7730176088-iz | AF43: 1 | AG43: 1 | AH43: 1 | AI43: 1 | AJ43: 1 | AK43: 1 | AL43: 1 | AM43: 1 | AN43: 1 | AO43: 1 | AP43: 1 | AQ43: 1 | AR43: 0 | AS43: 1 | AT43: 1 | AU43: https://rospatent.gov.ru/opendata/7730176088-tims | AV43: 1 | AW43: 1 | AX43: 1 | AY43: 1 | AZ43: 1 | BA43: 1 | BB43: 1 | BC43: 1 | BD43: 1 | BE43: 1 | BF43: 1 | BG43: 1 | BH43: 0 | BI43: 1 | BJ43: 1 | BK43: 56 | BL43: 77
A44: Роспотребнадзор | B44: http://www.rospotrebnadzor.ru | C44: http://opendata.rospotrebnadzor.ru/ | D44: 2 | E44: 1 | F44: 3 | G44: 3 | H44: 1 | I44: 0 | J44: 0 | K44: 0 | L44: 0 | M44: 0 | N44: 0 | O44: http://opendata.rospotrebnadzor.ru/7707515984-statvaccine/ | P44: 1 | Q44: 1 | R44: 1 | S44: 1 | T44: 1 | U44: 1 | V44: 1 | W44: 1 | X44: 1 | Y44: 1 | Z44: 1 | AA44: 1 | AB44: 5 | AC44: 1 | AD44: 1 | AE44: http://opendata.rospotrebnadzor.ru/7707515984-listservice/ | AF44: 1 | AG44: 1 | AH44: 1 | AI44: 1 | AJ44: 1 | AK44: 1 | AL44: 1 | AM44: 1 | AN44: 1 | AO44: 1 | AP44: 1 | AQ44: 1 | AR44: 5 | AS44: 1 | AT44: 1 | AU44: http://opendata.rospotrebnadzor.ru/7707515984-listlaw_control/ | AV44: 1 | AW44: 1 | AX44: 1 | AY44: 1 | AZ44: 1 | BA44: 1 | BB44: 1 | BC44: 1 | BD44: 1 | BE44: 1 | BF44: 1 | BG44: 1 | BH44: 5 | BI44: 1 | BJ44: 1 | BK44: 67 | BL44: 77
A45: Росприроднадзор | B45: https://rpn.gov.ru/ | C45: https://rpn.gov.ru/opendata/ | D45: 2 | E45: 1 | F45: 3 | G45: 3 | H45: 0 | I45: 1 | J45: 0 | K45: 1 | L45: 0 | M45: 0 | N45: 0 | O45: https://rpn.gov.ru/opendata/7703381225-reestrsoderjanie | P45: 1 | Q45: 1 | R45: 1 | S45: 1 | T45: 1 | U45: 1 | V45: 1 | W45: 1 | X45: 1 | Y45: 1 | Z45: 1 | AA45: 1 | AB45: 5 | AC45: 1 | AD45: 1 | AE45: https://rpn.gov.ru/opendata/7703381225-reestrdob | AF45: 1 | AG45: 1 | AH45: 1 | AI45: 1 | AJ45: 1 | AK45: 1 | AL45: 1 | AM45: 1 | AN45: 1 | AO45: 1 | AP45: 1 | AQ45: 1 | AR45: 5 | AS45: 1 | AT45: 1 | AU45: https://rpn.gov.ru/opendata/7703381225-pereselenie | AV45: 1 | AW45: 1 | AX45: 1 | AY45: 1 | AZ45: 1 | BA45: 1 | BB45: 1 | BC45: 1 | BD45: 1 | BE45: 1 | BF45: 1 | BG45: 1 | BH45: 5 | BI45: 1 | BJ45: 1 | BK45: 68 | BL45: 77
A46: Росреестр | B46: https://rosreestr.gov.ru/site/ | C46: https://rosreestr.gov.ru/wps/portal/cc_ib_opendata | D46: 2 | E46: 1 | F46: 3 | G46: 3 | H46: 1 | I46: 0 | J46: 0 | K46: 0 | L46: 0 | M46: 0 | N46: 0 | O46: https://rosreestr.gov.ru/wps/portal/p/cc_ib_portal_services/cc_ib_opendata2/!ut/p/c5/hU69DoIwGHyk76pAWRswLSBYlERgIQ0hSMKPgzHx7a26uKB34_1STZazuQ-9uQ3LbEYqqfYaMFcw5SBCyH0IscsKncCCW73ymkjGWiWSQeZ7IArCE9OCAxp_0ufX3pfjkG5d6wiKOOXHDXzno__qf-dXIECZWqaOKqr56g_pUjV2vWkfdJ1KDPqSPwHqEtmb/dl3/d3/L0lJSklna21DU1EhIS9JRGpBQU15QUJFUkNKRXFnLzRGR2dzbzBWdnphOUlBOW9JQSEhLzdfMDE1QTFINDBJMEQ3ODBBQUVOVFBLMDAwRzUvNUxIME41Mzg0MDAxMS9zYS5ydS5mY2NsYW5kLmlibXBvcnRhbC5zcHJpbmcucG9ydGxldC5kaXNwYXRjaGVyLkRpc3BhdGNoZXJBY3Rpb25FdmVudC1NVUxUSVBBUlQ!/?PC_7_015A1H40I0D780AAENTPK000G5000000_ru.fccland.ibmportal.spring.portlet.handler.BeanNameParameterHandlerMapping-PATH=%2fShowInfoblockPageController&param_infoblock_document_path=LICENSE.htm | P46: 1 | Q46: 1 | R46: 1 | S46: 1 | T46: 1 | U46: 1 | V46: 1 | W46: 1 | X46: 1 | Y46: 1 | Z46: 1 | AA46: 1 | AB46: 5 | AC46: 1 | AD46: 1 | AE46: https://rosreestr.gov.ru/wps/portal/p/cc_ib_portal_services/cc_ib_opendata2/!ut/p/c5/hU69DoIwGHyk76pAWRswLSBYlERgIQ0hSMKPgzHx7a26uKB34_1STZazuQ-9uQ3LbEYqqfYaMFcw5SBCyH0IscsKncCCW73ymkjGWiWSQeZ7IArCE9OCAxp_0ufX3pfjkG5d6wiKOOXHDXzno__qf-dXIECZWqaOKqr56g_pUjV2vWkfdJ1KDPqSPwHqEtmb/dl3/d3/L0lJSklna21DU1EhIS9JRGpBQU15QUJFUkNKRXFnLzRGR2dzbzBWdnphOUlBOW9JQSEhLzdfMDE1QTFINDBJMEQ3ODBBQUVOVFBLMDAwRzUvNUxIME41Mzg0MDAxMS9zYS5ydS5mY2NsYW5kLmlibXBvcnRhbC5zcHJpbmcucG9ydGxldC5kaXNwYXRjaGVyLkRpc3BhdGNoZXJBY3Rpb25FdmVudC1NVUxUSVBBUlQ!/?PC_7_015A1H40I0D780AAENTPK000G5000000_ru.fccland.ibmportal.spring.portlet.handler.BeanNameParameterHandlerMapping-PATH=%2fShowInfoblockPageController&param_infoblock_document_path=STAT%20OTCHET.htm | AF46: 1 | AG46: 1 | AH46: 1 | AI46: 1 | AJ46: 1 | AK46: 1 | AL46: 1 | AM46: 1 | AN46: 1 | AO46: 1 | AP46: 1 | AQ46: 1 | AR46: 5 | AS46: 1 | AT46: 1 | AU46: https://rosreestr.gov.ru/wps/portal/p/cc_ib_portal_services/cc_ib_opendata2/!ut/p/c5/hU69DoIwGHyk76pAWRswLSBYlERgIQ0hSMKPgzHx7a26uKB34_1STZazuQ-9uQ3LbEYqqfYaMFcw5SBCyH0IscsKncCCW73ymkjGWiWSQeZ7IArCE9OCAxp_0ufX3pfjkG5d6wiKOOXHDXzno__qf-dXIECZWqaOKqr56g_pUjV2vWkfdJ1KDPqSPwHqEtmb/dl3/d3/L0lJSklna21DU1EhIS9JRGpBQU15QUJFUkNKRXFnLzRGR2dzbzBWdnphOUlBOW9JQSEhLzdfMDE1QTFINDBJMEQ3ODBBQUVOVFBLMDAwRzUvNUxIME41Mzg0MDAxMS9zYS5ydS5mY2NsYW5kLmlibXBvcnRhbC5zcHJpbmcucG9ydGxldC5kaXNwYXRjaGVyLkRpc3BhdGNoZXJBY3Rpb25FdmVudC1NVUxUSVBBUlQ!/?PC_7_015A1H40I0D780AAENTPK000G5000000_ru.fccland.ibmportal.spring.portlet.handler.BeanNameParameterHandlerMapping-PATH=%2fShowInfoblockPageController&param_infoblock_document_path=SVED%20SRO%20O.htm | AV46: 1 | AW46: 1 | AX46: 1 | AY46: 1 | AZ46: 1 | BA46: 1 | BB46: 1 | BC46: 1 | BD46: 1 | BE46: 1 | BF46: 1 | BG46: 1 | BH46: 5 | BI46: 1 | BJ46: 1 | BK46: 67 | BL46: 77
A47: Росрезерв | B47: http://rosrezerv.gov.ru/ | C47: https://rosrezerv.gov.ru/opendata/ | D47: 2 | E47: 1 | F47: 0 | G47: 3 | H47: 1 | I47: 0 | J47: 0 | K47: 0 | L47: 0 | M47: 0 | N47: 0 | O47: https://rosrezerv.gov.ru/opendata/7710474294-perechgrmatcennostrealzakrkon | P47: 1 | Q47: 1 | R47: 1 | S47: 1 | T47: 1 | U47: 1 | V47: 1 | W47: 1 | X47: 1 | Y47: 1 | Z47: 1 | AA47: 1 | AB47: 5 | AC47: 1 | AD47: 1 | AE47: https://rosrezerv.gov.ru/opendata/7722077260-reestrrukovodniiph | AF47: 1 | AG47: 1 | AH47: 1 | AI47: 1 | AJ47: 1 | AK47: 1 | AL47: 1 | AM47: 1 | AN47: 1 | AO47: 1 | AP47: 1 | AQ47: 1 | AR47: 0 | AS47: 1 | AT47: 1 | AU47: https://rosrezerv.gov.ru/opendata/7710474294-perecheninfosistemfoiv | AV47: 1 | AW47: 1 | AX47: 1 | AY47: 1 | AZ47: 1 | BA47: 1 | BB47: 1 | BC47: 1 | BD47: 1 | BE47: 1 | BF47: 1 | BG47: 1 | BH47: 0 | BI47: 1 | BJ47: 1 | BK47: 54 | BL47: 77
A48: Росрыболовство | B48: http://www.fish.gov.ru/ | C48: http://www.fish.gov.ru/opendata | D48: 2 | E48: 1 | F48: 0 | G48: 3 | H48: 0 | I48: 0 | J48: 0 | K48: 0 | L48: 0 | M48: 0 | N48: 0 | O48: http://www.fish.gov.ru/opendata/7702679523-statistika | P48: 1 | Q48: 1 | R48: 1 | S48: 1 | T48: 1 | U48: 1 | V48: 1 | W48: 1 | X48: 1 | Y48: 1 | Z48: 1 | AA48: 1 | AB48: 0 | AC48: 1 | AD48: 1 | AE48: http://www.fish.gov.ru/opendata/7702679523-perechentozr | AF48: 1 | AG48: 1 | AH48: 1 | AI48: 1 | AJ48: 1 | AK48: 1 | AL48: 1 | AM48: 1 | AN48: 1 | AO48: 1 | AP48: 1 | AQ48: 1 | AR48: 5 | AS48: 1 | AT48: 1 | AU48: http://www.fish.gov.ru/opendata/7702679523-subpolntu | AV48: 1 | AW48: 1 | AX48: 1 | AY48: 1 | AZ48: 1 | BA48: 1 | BB48: 1 | BC48: 1 | BD48: 1 | BE48: 1 | BF48: 0 | BG48: 1 | BH48: 5 | BI48: 1 | BJ48: 1 | BK48: 57 | BL48: 77
A49: Россельхознадзор | B49: http://fsvps.gov.ru/ | C49: https://fsvps.gov.ru/opendata | D49: 2 | E49: 1 | F49: 3 | G49: 3 | H49: 1 | I49: 0 | J49: 1 | K49: 1 | L49: 0 | M49: 0 | N49: 0 | O49: https://data.gov.ru/opendata/7708523530-byudzhet | P49: 1 | Q49: 1 | R49: 1 | S49: 1 | T49: 1 | U49: 1 | V49: 1 | W49: 1 | X49: 1 | Y49: 1 | Z49: 0 | AA49: 1 | AB49: 0 | AC49: 1 | AD49: 1 | AE49: https://data.gov.ru/opendata/7708523530-svh | AF49: 1 | AG49: 1 | AH49: 1 | AI49: 1 | AJ49: 1 | AK49: 1 | AL49: 1 | AM49: 1 | AN49: 1 | AO49: 1 | AP49: 1 | AQ49: 1 | AR49: 0 | AS49: 1 | AT49: 1 | AU49: https://data.gov.ru/opendata/7708523530-gosreestrleksredstv | AV49: 1 | AW49: 1 | AX49: 1 | AY49: 1 | AZ49: 1 | BA49: 1 | BB49: 1 | BC49: 1 | BD49: 1 | BE49: 1 | BF49: 1 | BG49: 1 | BH49: 0 | BI49: 1 | BJ49: 1 | BK49: 53 | BL49: 77
A50: Россотрудничество | B50: http://rs.gov.ru | C50: https://rs.gov.ru/opendata | D50: 2 | E50: 1 | F50: 0 | G50: 3 | H50: 1 | I50: 1 | J50: 1 | K50: 1 | L50: 0 | M50: 1 | N50: 0 | O50: https://rs.gov.ru/opendata/7704706758-obektinedvigimosti/data | P50: 0 | Q50: 0 | R50: 0 | S50: 0 | T50: 0 | U50: 0 | V50: 0 | W50: 0 | X50: 0 | Y50: 0 | Z50: 0 | AA50: 0 | AB50: 0 | AC50: 0 | AD50: 0 | BK50: 11 | BL50: 77
A51: Росстандарт | B51: http://rst.gov.ru | C51: https://www.rst.gov.ru/portal/gost/home/systems/opendatapp | D51: 2 | E51: 1 | F51: 3 | G51: 3 | H51: 1 | I51: 0 | J51: 0 | K51: 0 | L51: 1 | M51: 1 | N51: 1 | O51: https://www.rst.gov.ru/opendata/7706406291-memoranda | P51: 1 | Q51: 1 | R51: 1 | S51: 1 | T51: 1 | U51: 1 | V51: 1 | W51: 1 | X51: 1 | Y51: 1 | Z51: 1 | AA51: 1 | AB51: 5 | AC51: 0 | AD51: 0 | AE51: https://www.rst.gov.ru/opendata/7706406291-recallcampaigns | AF51: 1 | AG51: 1 | AH51: 1 | AI51: 1 | AJ51: 1 | AK51: 1 | AL51: 1 | AM51: 1 | AN51: 1 | AO51: 1 | AP51: 1 | AQ51: 1 | AR51: 5 | AS51: 0 | AT51: 0 | AU51: https://www.rst.gov.ru/opendata/7706406291-nssregistry | AV51: 1 | AW51: 1 | AX51: 1 | AY51: 1 | AZ51: 0 | BA51: 1 | BB51: 1 | BC51: 1 | BD51: 1 | BE51: 1 | BF51: 1 | BG51: 1 | BH51: 0 | BI51: 0 | BJ51: 0 | BK51: 58 | BL51: 77
A52: Росстат | B52: https://rosstat.gov.ru/ | C52: https://rosstat.gov.ru/folder/12793 | D52: 2 | E52: 1 | F52: 3 | G52: 3 | H52: 1 | I52: 0 | J52: 0 | K52: 1 | L52: 1 | M52: 1 | N52: 1 | O52: https://rosstat.gov.ru/opendata/7708234640-7708234640-dataset2021 | P52: 1 | Q52: 1 | R52: 1 | S52: 1 | T52: 1 | U52: 1 | V52: 1 | W52: 1 | X52: 1 | Y52: 1 | Z52: 1 | AA52: 1 | AB52: 5 | AC52: 1 | AD52: 1 | AE52: https://rosstat.gov.ru/opendata/7708234640-ca1502035 | AF52: 1 | AG52: 1 | AH52: 1 | AI52: 1 | AJ52: 1 | AK52: 1 | AL52: 1 | AM52: 1 | AN52: 1 | AO52: 1 | AP52: 1 | AQ52: 1 | AR52: 5 | AS52: 1 | AT52: 1 | AU52: https://rosstat.gov.ru/opendata/7708234640-ca1502073 | AV52: 1 | AW52: 1 | AX52: 1 | AY52: 1 | AZ52: 1 | BA52: 1 | BB52: 1 | BC52: 1 | BD52: 1 | BE52: 1 | BF52: 1 | BG52: 1 | BH52: 5 | BI52: 1 | BJ52: 1 | BK52: 71 | BL52: 77
A53: Ростехнадзор | B53: http://gosnadzor.gov.ru/ | C53: http://gosnadzor.gov.ru/opendata/ | D53: 2 | E53: 1 | F53: 3 | G53: 3 | H53: 0 | I53: 0 | J53: 0 | K53: 0 | L53: 0 | M53: 0 | N53: 0 | O53: http://gosnadzor.gov.ru/opendata/7709561778-stnadzor/index.php | P53: 1 | Q53: 1 | R53: 1 | S53: 1 | T53: 1 | U53: 1 | V53: 1 | W53: 1 | X53: 1 | Y53: 1 | Z53: 1 | AA53: 1 | AB53: 5 | AC53: 1 | AD53: 1 | AE53: http://gosnadzor.gov.ru/opendata/7709561778-stlic/index_od.php | AF53: 1 | AG53: 1 | AH53: 1 | AI53: 1 | AJ53: 1 | AK53: 1 | AL53: 1 | AM53: 1 | AN53: 1 | AO53: 1 | AP53: 1 | AQ53: 1 | AR53: 5 | AS53: 1 | AT53: 1 | AU53: http://gosnadzor.gov.ru/opendata/7709561778-sro/index_od.php | AV53: 1 | AW53: 1 | AX53: 1 | AY53: 1 | AZ53: 1 | BA53: 1 | BB53: 1 | BC53: 1 | BD53: 1 | BE53: 1 | BF53: 1 | BG53: 1 | BH53: 5 | BI53: 1 | BJ53: 1 | BK53: 66 | BL53: 77
A54: Ространснадзор | B54: https://rostransnadzor.gov.ru/ | C54: https://rostransnadzor.gov.ru/opendata | D54: 1 | E54: 1 | F54: 0 | G54: 3 | H54: 0 | I54: 0 | J54: 0 | K54: 1 | L54: 1 | M54: 1 | N54: 1 | O54: https://rostransnadzor.gov.ru/opendata/7714549751-statinfo | P54: 1 | Q54: 1 | R54: 1 | S54: 1 | T54: 1 | U54: 1 | V54: 1 | W54: 1 | X54: 1 | Y54: 1 | Z54: 1 | AA54: 1 | AB54: 5 | AC54: 1 | AD54: 1 | AE54: https://rostransnadzor.gov.ru/opendata/7714549751-reestrlicenziy | AF54: 1 | AG54: 1 | AH54: 1 | AI54: 1 | AJ54: 0 | AK54: 0 | AL54: 1 | AM54: 1 | AN54: 1 | AO54: 1 | AP54: 1 | AQ54: 1 | AR54: 5 | AS54: 1 | AT54: 1 | AU54: https://rostransnadzor.gov.ru/opendata/7714549751-reestrinformsystem | AV54: 1 | AW54: 1 | AX54: 1 | AY54: 1 | AZ54: 1 | BA54: 1 | BB54: 1 | BC54: 1 | BD54: 1 | BE54: 1 | BF54: 1 | BG54: 1 | BH54: 5 | BI54: 1 | BJ54: 1 | BK54: 64 | BL54: 77
A55: Роструд | B55: https://rostrud.gov.ru/ | C55: https://rostrud.gov.ru/opendata/ | D55: 2 | E55: 1 | F55: 3 | G55: 3 | H55: 1 | I55: 1 | J55: 0 | K55: 0 | L55: 1 | M55: 1 | N55: 0 | O55: https://rostrud.gov.ru/opendata/7712345678-vyplatyberem | P55: 1 | Q55: 1 | R55: 1 | S55: 1 | T55: 1 | U55: 1 | V55: 1 | W55: 1 | X55: 1 | Y55: 1 | Z55: 1 | AA55: 1 | AB55: 5 | AC55: 1 | AD55: 1 | AE55: https://rostrud.gov.ru/opendata/7712345678-vyplatyradiation | AF55: 1 | AG55: 1 | AH55: 1 | AI55: 1 | AJ55: 1 | AK55: 1 | AL55: 1 | AM55: 1 | AN55: 1 | AO55: 1 | AP55: 1 | AQ55: 1 | AR55: 5 | AS55: 1 | AT55: 1 | AU55: https://rostrud.gov.ru/opendata/7712345678-dataset5 | AV55: 1 | AW55: 1 | AX55: 1 | AY55: 1 | AZ55: 1 | BA55: 1 | BB55: 1 | BC55: 1 | BD55: 1 | BE55: 1 | BF55: 1 | BG55: 1 | BH55: 5 | BI55: 1 | BJ55: 1 | BK55: 70 | BL55: 77
A56: Ростуризм | B56: http://www.tourism.gov.ru | C56: http://opendata.tourism.gov.ru/ | D56: 2 | E56: 1 | F56: 3 | G56: 3 | H56: 1 | I56: 1 | J56: 0 | K56: 0 | L56: 1 | M56: 0 | N56: 1 | O56: http://opendata.tourism.gov.ru/7708550300-Infrastructureobjects2017 | P56: 1 | Q56: 1 | R56: 1 | S56: 1 | T56: 1 | U56: 1 | V56: 1 | W56: 1 | X56: 1 | Y56: 1 | Z56: 1 | AA56: 1 | AB56: 0 | AC56: 1 | AD56: 1 | AE56: http://opendata.tourism.gov.ru/7708550300-CentryRosturizm | AF56: 1 | AG56: 1 | AH56: 1 | AI56: 1 | AJ56: 1 | AK56: 1 | AL56: 1 | AM56: 1 | AN56: 1 | AO56: 1 | AP56: 1 | AQ56: 1 | AR56: 0 | AS56: 1 | AT56: 1 | AU56: http://opendata.tourism.gov.ru/7708550300-MeropriyatiyaRosturizm | AV56: 1 | AW56: 1 | AX56: 1 | AY56: 1 | AZ56: 1 | BA56: 1 | BB56: 1 | BC56: 1 | BD56: 1 | BE56: 1 | BF56: 1 | BG56: 1 | BH56: 0 | BI56: 1 | BJ56: 1 | BK56: 55 | BL56: 77
A57: Росфинмониторинг | B57: http://www.fedsfm.ru/ | C57: http://www.fedsfm.ru/opendata | D57: 2 | E57: 1 | F57: 0 | G57: 0 | H57: 0 | I57: 0 | J57: 0 | K57: 1 | L57: 0 | M57: 0 | N57: 0 | O57: http://www.fedsfm.ru/opendata/684 | P57: 1 | Q57: 1 | R57: 1 | S57: 1 | T57: 1 | U57: 1 | V57: 1 | W57: 1 | X57: 0 | Y57: 1 | Z57: 1 | AA57: 0 | AB57: 0 | AC57: 1 | AD57: 1 | AE57: http://www.fedsfm.ru/opendata/683 | AF57: 1 | AG57: 1 | AH57: 1 | AI57: 1 | AJ57: 1 | AK57: 1 | AL57: 1 | AM57: 1 | AN57: 0 | AO57: 0 | AP57: 0 | AQ57: 0 | AR57: 0 | AS57: 1 | AT57: 1 | AU57: http://www.fedsfm.ru/opendata/677 | AV57: 1 | AW57: 1 | AX57: 1 | AY57: 1 | AZ57: 1 | BA57: 1 | BB57: 1 | BC57: 1 | BD57: 0 | BE57: 0 | BF57: 1 | BG57: 0 | BH57: 0 | BI57: 1 | BJ57: 1 | BK57: 37 | BL57: 77
A58: СВР России | B58: http://svr.gov.ru/ | BK58: 0 | BL58: 77
A59: Управление делами Президента Российской Федерации | B59: https://udprf.ru/ | C59: https://udprf.ru/opendata | D59: 2 | E59: 1 | F59: 0 | G59: 3 | H59: 1 | I59: 1 | J59: 0 | K59: 0 | L59: 0 | M59: 1 | N59: 0 | O59: https://udprf.ru/opendata/7710023340-org | P59: 1 | Q59: 1 | R59: 1 | S59: 1 | T59: 1 | U59: 1 | V59: 1 | W59: 1 | X59: 1 | Y59: 1 | Z59: 1 | AA59: 1 | AB59: 5 | AC59: 1 | AD59: 1 | AE59: https://udprf.ru/opendata/7710023340-prov | AF59: 1 | AG59: 1 | AH59: 1 | AI59: 1 | AJ59: 1 | AK59: 1 | AL59: 1 | AM59: 1 | AN59: 1 | AO59: 1 | AP59: 1 | AQ59: 1 | AR59: 5 | AS59: 1 | AT59: 1 | BK59: 47 | BL59: 77
A60: ФАДН России | B60: http://fadn.gov.ru/ | C60: http://fadn.gov.ru/opendata | D60: 2 | E60: 1 | F60: 3 | G60: 3 | H60: 0 | I60: 0 | J60: 0 | K60: 0 | L60: 0 | M60: 0 | N60: 0 | O60: http://fadn.gov.ru/opendata/7708257207-omnr | P60: 1 | Q60: 1 | R60: 1 | S60: 1 | T60: 1 | U60: 1 | V60: 1 | W60: 1 | X60: 1 | Y60: 1 | Z60: 1 | AA60: 1 | AB60: 5 | AC60: 1 | AD60: 1 | AE60: http://fadn.gov.ru/opendata/7708257207-smsssbg | AF60: 1 | AG60: 1 | AH60: 1 | AI60: 1 | AJ60: 1 | AK60: 1 | AL60: 1 | AM60: 1 | AN60: 1 | AO60: 1 | AP60: 1 | AQ60: 1 | AR60: 5 | AS60: 1 | AT60: 1 | AU60: http://fadn.gov.ru/opendata/7708257207-yasnr | AV60: 1 | AW60: 1 | AX60: 1 | AY60: 1 | AZ60: 1 | BA60: 1 | BB60: 1 | BC60: 1 | BD60: 1 | BE60: 1 | BF60: 1 | BG60: 1 | BH60: 5 | BI60: 1 | BJ60: 1 | BK60: 66 | BL60: 77
A61: ФАС России | B61: https://fas.gov.ru/ | C61: http://fas.gov.ru/opendata/ | D61: 2 | E61: 1 | F61: 3 | G61: 3 | H61: 1 | I61: 1 | J61: 0 | K61: 0 | L61: 1 | M61: 1 | N61: 0 | O61: http://fas.gov.ru/opendata/7703516539-exciseduty | P61: 1 | Q61: 1 | R61: 1 | S61: 1 | T61: 0 | U61: 1 | V61: 1 | W61: 1 | X61: 1 | Y61: 1 | Z61: 0 | AA61: 1 | AB61: 5 | AC61: 1 | AD61: 1 | AE61: http://fas.gov.ru/opendata/7703516539-naturalmonopolies | AF61: 1 | AG61: 1 | AH61: 1 | AI61: 1 | AJ61: 1 | AK61: 1 | AL61: 1 | AM61: 1 | AN61: 1 | AO61: 1 | AP61: 1 | AQ61: 1 | AR61: 5 | AS61: 1 | AT61: 1 | AU61: http://fas.gov.ru/opendata/7703516539-reestrgp | AV61: 1 | AW61: 1 | AX61: 1 | AY61: 1 | AZ61: 0 | BA61: 1 | BB61: 1 | BC61: 1 | BD61: 1 | BE61: 1 | BF61: 1 | BG61: 1 | BH61: 5 | BI61: 1 | BJ61: 1 | BK61: 67 | BL61: 77
A62: Федеральная пробирная палата | B62: Федеральная пробирная палата | BK62: 0 | BL62: 77
A63: ФМБА России | B63: https://fmba.gov.ru/ | C63: https://fmba.gov.ru/opendata/ | D63: 2 | E63: 1 | F63: 3 | G63: 3 | H63: 0 | I63: 1 | J63: 0 | K63: 0 | L63: 0 | M63: 0 | N63: 0 | O63: https://fmba.gov.ru/opendata/7734521419-vaccnas/ | P63: 1 | Q63: 1 | R63: 1 | S63: 1 | T63: 1 | U63: 1 | V63: 1 | W63: 1 | X63: 1 | Y63: 1 | Z63: 1 | AA63: 1 | AB63: 0 | AC63: 1 | AD63: 1 | AE63: https://fmba.gov.ru/opendata/7734521419-infdis/ | AF63: 1 | AG63: 1 | AH63: 1 | AI63: 1 | AJ63: 1 | AK63: 1 | AL63: 1 | AM63: 1 | AN63: 1 | AO63: 1 | AP63: 1 | AQ63: 0 | AR63: 0 | AS63: 1 | AT63: 1 | AU63: https://fmba.gov.ru/opendata/7734521419-vaccepid/ | AV63: 1 | AW63: 1 | AX63: 1 | AY63: 1 | AZ63: 1 | BA63: 1 | BB63: 1 | BC63: 1 | BD63: 1 | BE63: 1 | BF63: 1 | BG63: 1 | BH63: 5 | BI63: 1 | BJ63: 1 | BK63: 56 | BL63: 77
A64: ФНС России | B64: https://www.nalog.ru/rn77/ | C64: https://www.nalog.ru/opendata/ | D64: 2 | E64: 1 | F64: 3 | G64: 3 | H64: 1 | I64: 1 | J64: 0 | K64: 0 | L64: 0 | M64: 0 | N64: 0 | O64: https://www.nalog.ru/opendata/7707329152-reestrlicbookmaker/ | P64: 1 | Q64: 1 | R64: 1 | S64: 1 | T64: 1 | U64: 1 | V64: 1 | W64: 1 | X64: 1 | Y64: 1 | Z64: 1 | AA64: 1 | AB64: 5 | AC64: 1 | AD64: 1 | AE64: https://www.nalog.ru/opendata/7707329152-post/ | AF64: 1 | AG64: 1 | AH64: 1 | AI64: 1 | AJ64: 1 | AK64: 1 | AL64: 1 | AM64: 1 | AN64: 1 | AO64: 1 | AP64: 1 | AQ64: 1 | AR64: 5 | AS64: 1 | AT64: 1 | AU64: https://www.nalog.ru/opendata/7707329152-rsmp/ | AV64: 1 | AW64: 1 | AX64: 1 | AY64: 1 | AZ64: 1 | BA64: 1 | BB64: 1 | BC64: 1 | BD64: 1 | BE64: 1 | BF64: 1 | BG64: 1 | BH64: 5 | BI64: 1 | BJ64: 1 | BK64: 68 | BL64: 77
A65: ФСБ России | B65: http://fsb.gov.ru/ | BK65: 0 | BL65: 77
A66: ФСВТС России | B66: http://www.fsvts.gov.ru/ | C66: http://www.fsvts.gov.ru/opendata/ | D66: 0 | E66: 1 | F66: 0 | G66: 3 | H66: 1 | I66: 0 | J66: 0 | K66: 0 | L66: 0 | M66: 0 | N66: 0 | O66: http://www.fsvts.gov.ru/opendata/7705513237-Powers | P66: 1 | Q66: 1 | R66: 1 | S66: 1 | T66: 1 | U66: 1 | V66: 1 | W66: 1 | X66: 1 | Y66: 1 | Z66: 1 | AA66: 1 | AB66: 5 | AC66: 0 | AD66: 0 | AE66: http://www.fsvts.gov.ru/opendata/7705513237-Leadership | AF66: 1 | AG66: 1 | AH66: 1 | AI66: 1 | AJ66: 1 | AK66: 1 | AL66: 1 | AM66: 1 | AN66: 1 | AO66: 1 | AP66: 1 | AQ66: 1 | AR66: 5 | AS66: 1 | AT66: 1 | AU66: http://www.fsvts.gov.ru/opendata/7705513237-Databases | AV66: 1 | AW66: 1 | AX66: 1 | AY66: 1 | AZ66: 1 | BA66: 1 | BB66: 1 | BC66: 1 | BD66: 1 | BE66: 1 | BF66: 1 | BG66: 1 | BH66: 5 | BI66: 0 | BJ66: 0 | BK66: 58 | BL66: 77
A67: ФСИН России | B67: http://fsin.gov.ru | C67: https://fsin.gov.ru/opendata/ | D67: 1 | E67: 1 | F67: 3 | G67: 3 | H67: 1 | I67: 0 | J67: 0 | K67: 0 | L67: 0 | M67: 0 | N67: 0 | O67: https://fsin.gov.ru/opendata/7706562710-characteristic-of-citizens-in-detention-centers-and-prisons/ | P67: 1 | Q67: 1 | R67: 1 | S67: 1 | T67: 1 | U67: 1 | V67: 1 | W67: 1 | X67: 1 | Y67: 1 | Z67: 1 | AA67: 1 | AB67: 0 | AC67: 1 | AD67: 1 | AE67: https://fsin.gov.ru/opendata/7706562710-harakteristika-osuzhdennyih-po-sovershennyim-prestupleniyam/ | AF67: 1 | AG67: 1 | AH67: 1 | AI67: 1 | AJ67: 1 | AK67: 1 | AL67: 1 | AM67: 1 | AN67: 1 | AO67: 1 | AP67: 1 | AQ67: 1 | AR67: 0 | AS67: 1 | AT67: 1 | AU67: https://fsin.gov.ru/opendata/7706562710-check/ | AV67: 1 | AW67: 1 | AX67: 1 | AY67: 1 | AZ67: 1 | BA67: 1 | BB67: 1 | BC67: 1 | BD67: 1 | BE67: 1 | BF67: 1 | BG67: 1 | BH67: 5 | BI67: 1 | BJ67: 1 | BK67: 56 | BL67: 77
A68: ФСО России | B68: http://www.fso.gov.ru/ | BK68: 0 | BL68: 77
A69: ФССП России | B69: https://fssp.gov.ru/ | C69: https://opendata.fssp.gov.ru/ | D69: 2 | E69: 1 | F69: 3 | G69: 3 | H69: 1 | I69: 0 | J69: 0 | K69: 0 | L69: 1 | M69: 1 | N69: 1 | O69: https://opendata.fssp.gov.ru/7709576929-cashamount | P69: 1 | Q69: 1 | R69: 1 | S69: 1 | T69: 1 | U69: 1 | V69: 1 | W69: 1 | X69: 1 | Y69: 1 | Z69: 1 | AA69: 1 | AB69: 5 | AC69: 1 | AD69: 1 | AE69: https://opendata.fssp.gov.ru/7709576929-iplegallist | AF69: 1 | AG69: 1 | AH69: 1 | AI69: 1 | AJ69: 1 | AK69: 1 | AL69: 1 | AM69: 1 | AN69: 1 | AO69: 1 | AP69: 1 | AQ69: 1 | AR69: 5 | AS69: 1 | AT69: 1 | AU69: https://opendata.fssp.gov.ru/7709576929-iplegallistcomplete | AV69: 1 | AW69: 1 | AX69: 1 | AY69: 1 | AZ69: 1 | BA69: 1 | BB69: 1 | BC69: 1 | BD69: 1 | BE69: 1 | BF69: 1 | BG69: 1 | BH69: 5 | BI69: 1 | BJ69: 1 | BK69: 70 | BL69: 77
A70: ФСТЭК России | B70: https://fstec.ru/ | C70: https://data.gov.ru/federalnaya-sluzhba-po-tehnicheskomu-i-eksportnomu-kontrolyu | D70: 2 | E70: 1 | F70: 3 | G70: 3 | H70: 0 | I70: 1 | J70: 0 | K70: 0 | L70: 1 | M70: 1 | N70: 1 | O70: https://data.gov.ru/opendata/7701350013-reesszi | P70: 1 | Q70: 1 | R70: 1 | S70: 1 | T70: 1 | U70: 1 | V70: 1 | W70: 1 | X70: 1 | Y70: 1 | Z70: 1 | AA70: 1 | AB70: 5 | AC70: 1 | AD70: 1 | AE70: https://data.gov.ru/opendata/7701350013-licensestpci | AF70: 1 | AG70: 1 | AH70: 1 | AI70: 1 | AJ70: 1 | AK70: 1 | AL70: 1 | AM70: 1 | AN70: 1 | AO70: 1 | AP70: 1 | AQ70: 1 | AR70: 5 | AS70: 1 | AT70: 1 | AU70: https://data.gov.ru/opendata/7701350013-licensestooperate | AV70: 1 | AW70: 1 | AX70: 1 | AY70: 1 | AZ70: 1 | BA70: 1 | BB70: 1 | BC70: 1 | BD70: 1 | BE70: 1 | BF70: 1 | BG70: 1 | BH70: 5 | BI70: 1 | BJ70: 1 | BK70: 70 | BL70: 77
A71: ФТС России | B71: https://customs.gov.ru/ | C71: https://customs.gov.ru/opendata | D71: 2 | E71: 1 | F71: 3 | G71: 3 | H71: 1 | I71: 1 | J71: 0 | K71: 1 | L71: 1 | M71: 0 | N71: 0 | O71: https://customs.gov.ru/opendata/7730176610-reestrmbt | P71: 1 | Q71: 1 | R71: 1 | S71: 1 | T71: 1 | U71: 1 | V71: 1 | W71: 1 | X71: 1 | Y71: 1 | Z71: 1 | AA71: 1 | AB71: 5 | AC71: 1 | AD71: 1 | AE71: https://customs.gov.ru/opendata/7730176610-reestrvtamskl | AF71: 1 | AG71: 1 | AH71: 1 | AI71: 1 | AJ71: 1 | AK71: 1 | AL71: 1 | AM71: 1 | AN71: 1 | AO71: 1 | AP71: 1 | AQ71: 1 | AR71: 5 | AS71: 1 | AT71: 1 | AU71: https://customs.gov.ru/opendata/7730176610-reestrtamperev | AV71: 1 | AW71: 1 | AX71: 1 | AY71: 1 | AZ71: 1 | BA71: 1 | BB71: 1 | BC71: 1 | BD71: 1 | BE71: 1 | BF71: 1 | BG71: 1 | BH71: 5 | BI71: 1 | BJ71: 1 | BK71: 70 | BL71: 77

Sheet Оценка_Раунд2
A1: Ведомство | B1: Сайт | C1: Раздел ОД | D1: Раздел легко найти | E1: Раздел ОД доступен | F1: Есть профильные наборы | G1: Есть лицензия | H1: В списке выведен формат | I1: В списке выведено число просмотров / скачиваний | J1: В списке выведен размер файла | K1: В списке выведена дата обновления | L1: Можно оценивать наборы данных | M1: Можно запросить набор данных через форму | N1: Можно оставить комментарий к наборам | O1: Проверочный набор 1 | P1: Есть паспорт | Q1: В паспорте есть название набора | R1: В паспорте есть описание | S1: В паспорте указан владелец | T1: В паспорте указано ответственное лицо | U1: В паспорте указаны контакты | V1: В паспорте есть гиперссылка на набор | W1: В паспорте указан формат данных | X1: В паспорте есть описание структуры | Y1: В паспорте дата есть первой публикации | Z1: В паспорте дата последнего обновления | AA1: В паспорте есть дата актуальности либо периодичность обновления | AB1: Набор актуален | AC1: Набор нормально скачивается | AD1: Набор открывается и соответствует описанию | AE1: Проверочный набор 2 | AF1: Есть паспорт | AG1: В паспорте есть название набора | AH1: В паспорте есть описание | AI1: В паспорте указан владелец | AJ1: В паспорте указано ответственное лицо | AK1: В паспорте указаны контакты | AL1: В паспорте есть гиперссылка на набор | AM1: В паспорте указан формат данных | AN1: В паспорте есть описание структуры | AO1: В паспорте дата есть первой публикации | AP1: В паспорте дата последнего обновления | AQ1: В паспорте есть дата актуальности либо периодичность обновления | AR1: Набор актуален | AS1: Набор нормально скачивается | AT1: Набор открывается и соответствует описанию | AU1: Проверочный набор 3 | AV1: Есть паспорт | AW1: В паспорте есть название набора | AX1: В паспорте есть описание | AY1: В паспорте указан владелец | AZ1: В паспорте указано ответственное лицо | BA1: В паспорте указаны контакты | BB1: В паспорте есть гиперссылка на набор | BC1: В паспорте указан формат данных | BD1: В паспорте есть описание структуры | BE1: В паспорте дата есть первой публикации | BF1: В паспорте дата последнего обновления | BG1: В паспорте есть дата актуальности либо периодичность обновления | BH1: Набор актуален | BI1: Набор нормально скачивается | BJ1: Набор открывается и соответствует описанию | BK1: Общий балл | BL1: Максимальный балл
A2: Главное управление специальных программ Президента Российской Федерации (ГУСП) | B2: http://www.gusp.gov.ru/ | BK2: 0 | BL2: 77
A3: Государственная фельдъегерская служба Российской Федерации (ГФС России) | B3: https://gfs.gov.ru/ | C3: https://gfs.gov.ru/opendata/ | D3: 2 | E3: 1 | F3: 0 | G3: 3 | H3: 1 | I3: 0 | J3: 0 | K3: 0 | L3: 0 | M3: 0 | N3: 0 | O3: https://gfs.gov.ru/opendata/7709133821-od-fggs | P3: 1 | Q3: 1 | R3: 1 | S3: 1 | T3: 1 | U3: 1 | V3: 1 | W3: 1 | X3: 1 | Y3: 1 | Z3: 1 | AA3: 1 | AB3: 5 | AC3: 1 | AD3: 0 | AE3: https://gfs.gov.ru/opendata/7709133821-od-to | AF3: 1 | AG3: 1 | AH3: 1 | AI3: 1 | AJ3: 1 | AK3: 1 | AL3: 1 | AM3: 1 | AN3: 1 | AO3: 1 | AP3: 1 | AQ3: 1 | AR3: 5 | AS3: 1 | AT3: 1 | AU3: https://gfs.gov.ru/opendata/7709133821-od-po | AV3: 1 | AW3: 1 | AX3: 1 | AY3: 1 | AZ3: 1 | BA3: 1 | BB3: 1 | BC3: 1 | BD3: 1 | BE3: 1 | BF3: 1 | BG3: 1 | BH3: 5 | BI3: 1 | BJ3: 1 | BK3: 63 | BL3: 77
A4: МВД России | B4: https://мвд.рф/ | C4: https://мвд.рф/открытые-данные | D4: 2 | E4: 1 | F4: 3 | G4: 3 | H4: 1 | I4: 1 | J4: 0 | K4: 1 | L4: 0 | M4: 0 | N4: 0 | O4: https://мвд.рф/открытые-данные/7727739372-sosprestupnost | P4: 1 | Q4: 1 | R4: 1 | S4: 1 | T4: 1 | U4: 1 | V4: 1 | W4: 1 | X4: 1 | Y4: 1 | Z4: 1 | AA4: 1 | AB4: 5 | AC4: 1 | AD4: 1 | AE4: https://мвд.рф/открытые-данные/7727739372-MVDGIAC35 | AF4: 1 | AG4: 1 | AH4: 1 | AI4: 1 | AJ4: 1 | AK4: 1 | AL4: 1 | AM4: 1 | AN4: 1 | AO4: 1 | AP4: 1 | AQ4: 1 | AR4: 5 | AS4: 1 | AT4: 1 | AU4: https://мвд.рф/открытые-данные/7727739372-MVDGIAC38 | AV4: 1 | AW4: 1 | AX4: 1 | AY4: 1 | AZ4: 1 | BA4: 1 | BB4: 1 | BC4: 1 | BD4: 1 | BE4: 1 | BF4: 1 | BG4: 1 | BH4: 5 | BI4: 1 | BJ4: 1 | BK4: 69 | BL4: 77
A5: Минздрав России | B5: https://minzdrav.gov.ru/ | C5: https://minzdrav.gov.ru/opendata | D5: 2 | E5: 1 | F5: 3 | G5: 3 | H5: 1 | I5: 1 | J5: 0 | K5: 0 | L5: 1 | M5: 0 | N5: 0 | O5: https://minzdrav.gov.ru/opendata/7707778246-gosreestrpredelnyhotpusknyhcen | P5: 1 | Q5: 1 | R5: 1 | S5: 1 | T5: 1 | U5: 1 | V5: 1 | W5: 1 | X5: 1 | Y5: 1 | Z5: 1 | AA5: 1 | AB5: 0 | AC5: 1 | AD5: 1 | AE5: https://minzdrav.gov.ru/opendata/7707778246-reestrklinicheskihissledovanii | AF5: 1 | AG5: 1 | AH5: 1 | AI5: 1 | AJ5: 1 | AK5: 1 | AL5: 1 | AM5: 1 | AN5: 1 | AO5: 1 | AP5: 1 | AQ5: 1 | AR5: 5 | AS5: 1 | AT5: 1 | AU5: https://minzdrav.gov.ru/opendata/7707778246-perechenobshchihprotivopokazanijdlyasanatornokurortnogolecheniya | AV5: 1 | AW5: 1 | AX5: 1 | AY5: 1 | AZ5: 1 | BA5: 1 | BB5: 1 | BC5: 1 | BD5: 1 | BE5: 1 | BF5: 1 | BG5: 1 | BH5: 5 | BI5: 1 | BJ5: 1 | BK5: 64 | BL5: 77
A6: МИД России | B6: https://www.mid.ru/ru/home | C6: https://www.mid.ru/diverse/-/asset_publisher/8bWtTfQKqtaS/content/id/680111 | D6: 2 | E6: 1 | F6: 0 | G6: 3 | H6: 0 | I6: 0 | J6: 0 | K6: 0 | L6: 0 | M6: 0 | N6: 0 | O6: https://www.mid.ru/web/guest/diverse/-/asset_publisher/8bWtTfQKqtaS/content/id/679901 | P6: 1 | Q6: 1 | R6: 1 | S6: 1 | T6: 1 | U6: 1 | V6: 1 | W6: 1 | X6: 1 | Y6: 1 | Z6: 1 | AA6: 1 | AB6: 5 | AC6: 1 | AD6: 1 | AE6: https://www.mid.ru/web/guest/diverse/-/asset_publisher/8bWtTfQKqtaS/content/id/679930 | AF6: 1 | AG6: 1 | AH6: 1 | AI6: 1 | AJ6: 1 | AK6: 1 | AL6: 1 | AM6: 1 | AN6: 1 | AO6: 1 | AP6: 1 | AQ6: 1 | AR6: 5 | AS6: 1 | AT6: 1 | AU6: https://www.mid.ru/documents/10180/2797750/Основная+часть+файла.pdf/f064e90e-3f3a-42c8-a65a-03cc37585137 | AV6: 0 | AW6: 0 | AX6: 0 | AY6: 0 | AZ6: 0 | BA6: 0 | BB6: 0 | BC6: 0 | BD6: 0 | BE6: 0 | BF6: 0 | BG6: 0 | BH6: 0 | BI6: 0 | BJ6: 0 | BK6: 44 | BL6: 77
A7: Минкультуры России | B7: http://culture.gov.ru/ | C7: https://opendata.mkrf.ru/opendata | D7: 2 | E7: 1 | F7: 3 | G7: 0 | H7: 1 | I7: 0 | J7: 0 | K7: 0 | L7: 1 | M7: 1 | N7: 0 | O7: https://opendata.mkrf.ru/opendata/7705851331-heritage_safekeeping_licenses | P7: 1 | Q7: 1 | R7: 1 | S7: 1 | T7: 1 | U7: 1 | V7: 1 | W7: 1 | X7: 1 | Y7: 1 | Z7: 1 | AA7: 1 | AB7: 5 | AC7: 1 | AD7: 1 | AE7: https://opendata.mkrf.ru/opendata/7705851331-certified_experts | AF7: 1 | AG7: 1 | AH7: 1 | AI7: 1 | AJ7: 1 | AK7: 1 | AL7: 1 | AM7: 1 | AN7: 1 | AO7: 1 | AP7: 1 | AQ7: 1 | AR7: 5 | AS7: 1 | AT7: 1 | AU7: https://opendata.mkrf.ru/opendata/7705851331-archeology_list | AV7: 1 | AW7: 1 | AX7: 1 | AY7: 1 | AZ7: 1 | BA7: 1 | BB7: 1 | BC7: 1 | BD7: 1 | BE7: 1 | BF7: 1 | BG7: 1 | BH7: 5 | BI7: 1 | BJ7: 1 | BK7: 66 | BL7: 77
A8: Минобрнауки России | B8: https://www.minobrnauki.gov.ru/ | C8: https://www.minobrnauki.gov.ru/opendata/ | D8: 2 | E8: 1 | F8: 3 | G8: 3 | H8: 1 | I8: 1 | J8: 0 | K8: 1 | L8: 1 | M8: 0 | N8: 1 | O8: https://www.minobrnauki.gov.ru/opendata/9710062939-informatsiya-o-rezultatakh-planovykh-i-vneplanovykh-proverok-provedennykh-ministerstvom-nauki-i-vyssh2020 | P8: 1 | Q8: 1 | R8: 1 | S8: 1 | T8: 1 | U8: 1 | V8: 1 | W8: 1 | X8: 1 | Y8: 1 | Z8: 1 | AA8: 1 | AB8: 5 | AC8: 1 | AD8: 1 | AE8: https://www.minobrnauki.gov.ru/opendata/9710062939-svedeniya-o-prieme-chislennosti-studentov-i-vypuske-spetsialistov-obrazovatelnykh-organizatsiyakh-os | AF8: 1 | AG8: 1 | AH8: 1 | AI8: 1 | AJ8: 1 | AK8: 1 | AL8: 1 | AM8: 1 | AN8: 1 | AO8: 1 | AP8: 1 | AQ8: 1 | AR8: 5 | AS8: 1 | AT8: 1 | AU8: https://www.minobrnauki.gov.ru/opendata/9710062939-informatsiya-o-rezultatakh-planovykh-i-vneplanovykh-proverok-provedennykh-ministerstvom-nauki-i-vyssh | AV8: 1 | AW8: 1 | AX8: 1 | AY8: 1 | AZ8: 0 | BA8: 0 | BB8: 1 | BC8: 1 | BD8: 1 | BE8: 1 | BF8: 1 | BG8: 1 | BH8: 0 | BI8: 1 | BJ8: 1 | BK8: 64 | BL8: 77
A9: Минобороны России | B9: http://mil.ru/ | C9: http://mil.ru/opendata.htm | D9: 1 | E9: 0 | BK9: 1 | BL9: 77
A10: Минприроды России | B10: http://www.mnr.gov.ru/ | C10: https://www.mnr.gov.ru/opendata/ | D10: 2 | E10: 1 | F10: 3 | G10: 3 | H10: 1 | I10: 1 | J10: 1 | K10: 0 | L10: 1 | M10: 1 | N10: 1 | O10: https://www.mnr.gov.ru/opendata/7710256289_confiscated_hunting_resources | P10: 1 | Q10: 1 | R10: 1 | S10: 1 | T10: 1 | U10: 1 | V10: 1 | W10: 1 | X10: 1 | Y10: 1 | Z10: 1 | AA10: 1 | AB10: 5 | AC10: 1 | AD10: 1 | AE10: https://www.mnr.gov.ru/opendata/7710256289_hunting_offenses | AF10: 1 | AG10: 1 | AH10: 1 | AI10: 1 | AJ10: 1 | AK10: 1 | AL10: 1 | AM10: 1 | AN10: 1 | AO10: 1 | AP10: 1 | AQ10: 1 | AR10: 5 | AS10: 1 | AT10: 1 | AU10: https://www.mnr.gov.ru/opendata/7710256289-Biodiversity | AV10: 1 | AW10: 1 | AX10: 1 | AY10: 1 | AZ10: 1 | BA10: 1 | BB10: 1 | BC10: 1 | BD10: 1 | BE10: 1 | BF10: 1 | BG10: 1 | BH10: 5 | BI10: 1 | BJ10: 1 | BK10: 72 | BL10: 77
A11: Минпромторг России | B11: https://www.minpromtorg.gov.ru/ | C11: https://www.minpromtorg.gov.ru/opendata/ | D11: 2 | E11: 1 | F11: 3 | G11: 3 | H11: 1 | I11: 1 | J11: 1 | K11: 1 | L11: 1 | M11: 1 | N11: 0 | O11: https://www.minpromtorg.gov.ru/opendata/7705596339-avialic/ | P11: 1 | Q11: 1 | R11: 1 | S11: 1 | T11: 1 | U11: 1 | V11: 1 | W11: 1 | X11: 1 | Y11: 1 | Z11: 1 | AA11: 1 | AB11: 5 | AC11: 1 | AD11: 1 | AE11: https://www.minpromtorg.gov.ru/opendata/7705596339-expertiseorgs/ | AF11: 1 | AG11: 1 | AH11: 1 | AI11: 1 | AJ11: 1 | AK11: 1 | AL11: 1 | AM11: 1 | AN11: 1 | AO11: 1 | AP11: 1 | AQ11: 0 | AR11: 0 | AS11: 1 | AT11: 1 | AU11: https://www.minpromtorg.gov.ru/opendata/7705596339-gunslic/ | AV11: 1 | AW11: 1 | AX11: 1 | AY11: 1 | AZ11: 1 | BA11: 1 | BB11: 1 | BC11: 1 | BD11: 1 | BE11: 1 | BF11: 1 | BG11: 1 | BH11: 5 | BI11: 1 | BJ11: 1 | BK11: 66 | BL11: 77
A12: Минпросвещения России | B12: https://edu.gov.ru/ | C12: https://opendata.edu.gov.ru/opendata/ | D12: 2 | E12: 1 | F12: 3 | G12: 3 | H12: 1 | I12: 1 | J12: 0 | K12: 0 | L12: 0 | M12: 0 | N12: 0 | O12: https://opendata.edu.gov.ru/opendata/7707418081-BankDeti | P12: 1 | Q12: 1 | R12: 1 | S12: 1 | T12: 1 | U12: 1 | V12: 1 | W12: 1 | X12: 1 | Y12: 1 | Z12: 1 | AA12: 1 | AB12: 5 | AC12: 1 | AD12: 1 | AE12: https://opendata.edu.gov.ru/opendata/7707418081-REMC | AF12: 1 | AG12: 1 | AH12: 1 | AI12: 1 | AJ12: 1 | AK12: 1 | AL12: 1 | AM12: 1 | AN12: 1 | AO12: 1 | AP12: 1 | AQ12: 1 | AR12: 5 | AS12: 1 | AT12: 1 | AU12: https://opendata.edu.gov.ru/opendata/7707418081-ReestrGPDS | AV12: 1 | AW12: 1 | AX12: 1 | AY12: 1 | AZ12: 1 | BA12: 1 | BB12: 1 | BC12: 1 | BD12: 1 | BE12: 1 | BF12: 1 | BG12: 1 | BH12: 5 | BI12: 1 | BJ12: 1 | BK12: 68 | BL12: 77
A13: МЧС России | B13: https://www.mchs.gov.ru/ | C13: https://www.mchs.gov.ru/ministerstvo/otkrytoe-ministerstvo/otkrytye-dannye | D13: 2 | E13: 1 | F13: 3 | G13: 3 | H13: 1 | I13: 1 | J13: 1 | K13: 1 | L13: 1 | M13: 1 | N13: 1 | O13: https://www.mchs.gov.ru/ministerstvo/otkrytoe-ministerstvo/otkrytye-dannye/7707034952-OilSpill | P13: 1 | Q13: 1 | R13: 1 | S13: 1 | T13: 0 | U13: 1 | V13: 1 | W13: 1 | X13: 1 | Y13: 1 | Z13: 1 | AA13: 0 | AB13: 0 | AC13: 1 | AD13: 1 | AE13: https://www.mchs.gov.ru/ministerstvo/otkrytoe-ministerstvo/otkrytye-dannye/7707034952-FireSafetyAudit | AF13: 1 | AG13: 1 | AH13: 1 | AI13: 1 | AJ13: 0 | AK13: 1 | AL13: 1 | AM13: 1 | AN13: 1 | AO13: 1 | AP13: 1 | AQ13: 0 | AR13: 0 | AS13: 1 | AT13: 1 | AU13: https://www.mchs.gov.ru/ministerstvo/otkrytoe-ministerstvo/otkrytye-dannye/7707034952-StateControl | AV13: 1 | AW13: 1 | AX13: 1 | AY13: 1 | AZ13: 0 | BA13: 1 | BB13: 1 | BC13: 1 | BD13: 1 | BE13: 1 | BF13: 1 | BG13: 0 | BH13: 0 | BI13: 1 | BJ13: 1 | BK13: 52 | BL13: 77
A14: Минвостокразвития России | B14: https://minvr.gov.ru/ | C14: https://minvr.gov.ru/opendata/ | D14: 2 | E14: 1 | F14: 3 | G14: 3 | H14: 1 | I14: 1 | J14: 1 | K14: 1 | L14: 0 | M14: 0 | N14: 0 | O14: https://minvr.gov.ru/opendata/2721194275-stateprogram/ | P14: 1 | Q14: 1 | R14: 1 | S14: 1 | T14: 1 | U14: 1 | V14: 1 | W14: 1 | X14: 1 | Y14: 1 | Z14: 1 | AA14: 1 | AB14: 5 | AC14: 1 | AD14: 1 | AE14: https://minvr.gov.ru/opendata/2721194275-valuestateprogramm/ | AF14: 1 | AG14: 1 | AH14: 1 | AI14: 1 | AJ14: 1 | AK14: 1 | AL14: 1 | AM14: 1 | AN14: 1 | AO14: 1 | AP14: 1 | AQ14: 1 | AR14: 5 | AS14: 1 | AT14: 1 | AU14: https://minvr.gov.ru/opendata/2721194275-revisions/ | AV14: 1 | AW14: 1 | AX14: 1 | AY14: 1 | AZ14: 1 | BA14: 1 | BB14: 1 | BC14: 1 | BD14: 1 | BE14: 1 | BF14: 1 | BG14: 1 | BH14: 5 | BI14: 1 | BJ14: 1 | BK14: 70 | BL14: 77
A15: Минсельхоз России | B15: https://mcx.gov.ru/ | C15: https://mcx.gov.ru/activity/open-data/ | D15: 2 | E15: 1 | F15: 3 | G15: 3 | H15: 1 | I15: 1 | J15: 1 | K15: 1 | L15: 1 | M15: 0 | N15: 0 | O15: http://opendata.mcx.ru/opendata/7708075454-organicprod | P15: 1 | Q15: 1 | R15: 1 | S15: 1 | T15: 1 | U15: 1 | V15: 1 | W15: 1 | X15: 1 | Y15: 1 | Z15: 1 | AA15: 1 | AB15: 5 | AC15: 1 | AD15: 1 | AE15: http://opendata.mcx.ru/opendata/7708075454-veschestva | AF15: 1 | AG15: 1 | AH15: 1 | AI15: 1 | AJ15: 1 | AK15: 1 | AL15: 1 | AM15: 1 | AN15: 1 | AO15: 1 | AP15: 1 | AQ15: 1 | AR15: 5 | AS15: 1 | AT15: 1 | AU15: http://opendata.mcx.ru/opendata/7708075454-matochnoepogolovie | AV15: 1 | AW15: 1 | AX15: 1 | AY15: 1 | AZ15: 1 | BA15: 1 | BB15: 1 | BC15: 1 | BD15: 1 | BE15: 1 | BF15: 1 | BG15: 1 | BH15: 5 | BI15: 1 | BJ15: 1 | BK15: 71 | BL15: 77
A16: Минспорт России | B16: https://minsport.gov.ru/ | C16: https://minsport.gov.ru/opendata/ | D16: 1 | E16: 1 | F16: 3 | G16: 3 | H16: 0 | I16: 0 | J16: 0 | K16: 0 | L16: 0 | M16: 0 | N16: 0 | O16: https://minsport.gov.ru/opendata/192/29872/ | P16: 1 | Q16: 1 | R16: 1 | S16: 1 | T16: 1 | U16: 1 | V16: 1 | W16: 1 | X16: 1 | Y16: 1 | Z16: 0 | AA16: 1 | AB16: 0 | AC16: 1 | AD16: 1 | AE16: https://minsport.gov.ru/opendata/192/28404/ | AF16: 1 | AG16: 1 | AH16: 1 | AI16: 1 | AJ16: 1 | AK16: 1 | AL16: 1 | AM16: 1 | AN16: 1 | AO16: 1 | AP16: 0 | AQ16: 1 | AR16: 0 | AS16: 1 | AT16: 1 | AU16: https://minsport.gov.ru/opendata/192/29869/ | AV16: 1 | AW16: 1 | AX16: 1 | AY16: 1 | AZ16: 1 | BA16: 1 | BB16: 1 | BC16: 1 | BD16: 1 | BE16: 1 | BF16: 0 | BG16: 1 | BH16: 0 | BI16: 1 | BJ16: 1 | BK16: 47 | BL16: 77
A17: Минстрой России | B17: http://www.minstroyrf.gov.ru/ | C17: http://www.minstroyrf.gov.ru/opendata/ | D17: 2 | E17: 1 | F17: 3 | G17: 3 | H17: 1 | I17: 1 | J17: 1 | K17: 1 | L17: 1 | M17: 1 | N17: 1 | O17: http://www.minstroyrf.gov.ru/opendata/7707780887-reestrstroit/ | P17: 1 | Q17: 1 | R17: 1 | S17: 1 | T17: 1 | U17: 1 | V17: 1 | W17: 1 | X17: 1 | Y17: 1 | Z17: 1 | AA17: 1 | AB17: 5 | AC17: 1 | AD17: 1 | AE17: https://www.minstroyrf.gov.ru/opendata/7707780887-puttingintooperation/ | AF17: 1 | AG17: 1 | AH17: 1 | AI17: 1 | AJ17: 1 | AK17: 1 | AL17: 1 | AM17: 1 | AN17: 1 | AO17: 1 | AP17: 1 | AQ17: 1 | AR17: 5 | AS17: 1 | AT17: 1 | AU17: https://www.minstroyrf.gov.ru/opendata/7707780887-emergencyhousing/ | AV17: 1 | AW17: 1 | AX17: 1 | AY17: 1 | AZ17: 1 | BA17: 1 | BB17: 1 | BC17: 1 | BD17: 1 | BE17: 1 | BF17: 1 | BG17: 1 | BH17: 5 | BI17: 1 | BJ17: 1 | BK17: 73 | BL17: 77
A18: Минтранс России | B18: https://mintrans.gov.ru/ | C18: https://mintrans.gov.ru/opendata/ | D18: 2 | E18: 1 | F18: 3 | G18: 3 | H18: 1 | I18: 1 | J18: 1 | K18: 0 | L18: 1 | M18: 0 | N18: 1 | O18: https://mintrans.gov.ru/opendata/7705851331-reestrautomzd | P18: 1 | Q18: 1 | R18: 1 | S18: 1 | T18: 1 | U18: 1 | V18: 1 | W18: 1 | X18: 1 | Y18: 1 | Z18: 1 | AA18: 1 | AB18: 0 | AC18: 1 | AD18: 1 | AE18: https://mintrans.gov.ru/opendata/7705851331-proverkainfo | AF18: 1 | AG18: 1 | AH18: 1 | AI18: 1 | AJ18: 1 | AK18: 1 | AL18: 1 | AM18: 1 | AN18: 1 | AO18: 1 | AP18: 1 | AQ18: 1 | AR18: 5 | AS18: 1 | AT18: 1 | AU18: https://mintrans.gov.ru/opendata/7705851331-stoppointsmzd | AV18: 1 | AW18: 1 | AX18: 1 | AY18: 1 | AZ18: 1 | BA18: 1 | BB18: 1 | BC18: 1 | BD18: 1 | BE18: 1 | BF18: 1 | BG18: 1 | BH18: 0 | BI18: 1 | BJ18: 1 | BK18: 61 | BL18: 77
A19: Минтруд России | B19: https://mintrud.gov.ru/ | C19: https://mintrud.gov.ru/opendata | D19: 2 | E19: 1 | F19: 3 | G19: 3 | H19: 1 | I19: 1 | J19: 0 | K19: 1 | L19: 0 | M19: 0 | N19: 0 | O19: https://mintrud.gov.ru/opendata/7710914971-razmeri_posobiy_materinstvo | P19: 1 | Q19: 1 | R19: 1 | S19: 1 | T19: 1 | U19: 1 | V19: 1 | W19: 1 | X19: 1 | Y19: 1 | Z19: 1 | AA19: 1 | AB19: 5 | AC19: 1 | AD19: 1 | AE19: https://mintrud.gov.ru/opendata/7710914971-pensii_sofinans | AF19: 1 | AG19: 1 | AH19: 1 | AI19: 1 | AJ19: 1 | AK19: 1 | AL19: 1 | AM19: 1 | AN19: 1 | AO19: 1 | AP19: 1 | AQ19: 1 | AR19: 5 | AS19: 1 | AT19: 1 | AU19: https://mintrud.gov.ru/opendata/7710914971-Pension_insurance_additional_contributions | AV19: 1 | AW19: 1 | AX19: 1 | AY19: 1 | AZ19: 1 | BA19: 1 | BB19: 1 | BC19: 1 | BD19: 1 | BE19: 1 | BF19: 1 | BG19: 1 | BH19: 5 | BI19: 1 | BJ19: 1 | BK19: 69 | BL19: 77
A20: Минфин России | B20: https://minfin.gov.ru/ru/ | C20: https://minfin.gov.ru/ru/opendata/ | D20: 2 | E20: 1 | F20: 3 | G20: 3 | H20: 1 | I20: 1 | J20: 1 | K20: 1 | L20: 0 | M20: 1 | N20: 1 | O20: https://minfin.gov.ru/OpenData/7710168360-auction_results/ | P20: 1 | Q20: 1 | R20: 1 | S20: 1 | T20: 1 | U20: 1 | V20: 1 | W20: 1 | X20: 1 | Y20: 1 | Z20: 1 | AA20: 0 | AB20: 0 | AC20: 1 | AD20: 1 | AE20: https://minfin.gov.ru/OpenData/7710168360-OFZ-n_redeemed/ | AF20: 1 | AG20: 1 | AH20: 1 | AI20: 1 | AJ20: 1 | AK20: 1 | AL20: 1 | AM20: 1 | AN20: 1 | AO20: 1 | AP20: 1 | AQ20: 0 | AR20: 0 | AS20: 1 | AT20: 1 | AU20: https://minfin.gov.ru/OpenData/7710168360-subbud_year/ | AV20: 1 | AW20: 1 | AX20: 1 | AY20: 1 | AZ20: 1 | BA20: 1 | BB20: 1 | BC20: 1 | BD20: 1 | BE20: 1 | BF20: 1 | BG20: 1 | BH20: 5 | BI20: 1 | BJ20: 1 | BK20: 60 | BL20: 77
A21: Минцифры России | B21: https://digital.gov.ru | C21: https://digital.gov.ru/opendata/ | D21: 2 | E21: 1 | F21: 3 | G21: 3 | H21: 1 | I21: 1 | J21: 0 | K21: 1 | L21: 0 | M21: 1 | N21: 0 | O21: https://digital.gov.ru/opendata/7710474375-trpch/ | P21: 1 | Q21: 1 | R21: 1 | S21: 1 | T21: 1 | U21: 1 | V21: 1 | W21: 1 | X21: 1 | Y21: 1 | Z21: 1 | AA21: 1 | AB21: 0 | AC21: 1 | AD21: 1 | AE21: https://digital.gov.ru/opendata/7710474375-obmennasetyahsvyazi/ | AF21: 1 | AG21: 1 | AH21: 1 | AI21: 1 | AJ21: 1 | AK21: 1 | AL21: 1 | AM21: 1 | AN21: 1 | AO21: 1 | AP21: 1 | AQ21: 1 | AR21: 5 | AS21: 1 | AT21: 1 | AU21: https://digital.gov.ru/opendata/7710474375-registergosaccred/ | AV21: 1 | AW21: 1 | AX21: 1 | AY21: 1 | AZ21: 1 | BA21: 1 | BB21: 1 | BC21: 1 | BD21: 1 | BE21: 1 | BF21: 1 | BG21: 1 | BH21: 0 | BI21: 1 | BJ21: 1 | BK21: 60 | BL21: 77
A22: Минэкономразвития России | B22: http://www.economy.gov.ru/ | C22: https://www.economy.gov.ru/material/open_data/ | D22: 2 | E22: 1 | F22: 3 | G22: 3 | H22: 0 | I22: 1 | J22: 0 | K22: 0 | L22: 1 | M22: 1 | N22: 1 | O22: https://data.gov.ru/opendata/7710349494-project01 | P22: 1 | Q22: 1 | R22: 1 | S22: 1 | T22: 1 | U22: 1 | V22: 1 | W22: 1 | X22: 1 | Y22: 1 | Z22: 1 | AA22: 1 | AB22: 0 | AC22: 1 | AD22: 1 | AE22: https://data.gov.ru/opendata/7710349494-govprogram17 | AF22: 1 | AG22: 1 | AH22: 1 | AI22: 1 | AJ22: 1 | AK22: 1 | AL22: 1 | AM22: 1 | AN22: 1 | AO22: 1 | AP22: 1 | AQ22: 1 | AR22: 0 | AS22: 1 | AT22: 1 | AU22: https://data.gov.ru/opendata/7710349494-govprogram13 | AV22: 1 | AW22: 1 | AX22: 1 | AY22: 1 | AZ22: 1 | BA22: 1 | BB22: 1 | BC22: 1 | BD22: 1 | BE22: 1 | BF22: 1 | BG22: 1 | BH22: 0 | BI22: 1 | BJ22: 1 | BK22: 55 | BL22: 77
A23: Минэнерго России | B23: http://minenergo.gov.ru/ | C23: https://minenergo.gov.ru/opendata | D23: 2 | E23: 1 | F23: 3 | G23: 3 | H23: 1 | I23: 1 | J23: 0 | K23: 0 | L23: 0 | M23: 0 | N23: 1 | O23: https://minenergo.gov.ru/opendata/7705847529-dobychagaza | P23: 1 | Q23: 1 | R23: 1 | S23: 1 | T23: 1 | U23: 1 | V23: 1 | W23: 1 | X23: 1 | Y23: 1 | Z23: 1 | AA23: 1 | AB23: 5 | AC23: 1 | AD23: 1 | AE23: https://minenergo.gov.ru/opendata/7705847529-proizvodstvo-nefti | AF23: 1 | AG23: 1 | AH23: 1 | AI23: 1 | AJ23: 1 | AK23: 1 | AL23: 1 | AM23: 1 | AN23: 1 | AO23: 1 | AP23: 1 | AQ23: 1 | AR23: 5 | AS23: 1 | AT23: 1 | AU23: https://minenergo.gov.ru/opendata/7705847529-dobychauglya | AV23: 1 | AW23: 1 | AX23: 1 | AY23: 1 | AZ23: 1 | BA23: 1 | BB23: 1 | BC23: 1 | BD23: 1 | BE23: 1 | BF23: 1 | BG23: 1 | BH23: 5 | BI23: 1 | BJ23: 1 | BK23: 69 | BL23: 77
A24: Минюст России | B24: http://minjust.gov.ru/ | C24: https://minjust.gov.ru/ru/pages/opendata/ | D24: 2 | E24: 1 | F24: 3 | G24: 3 | H24: 0 | I24: 0 | J24: 0 | K24: 0 | L24: 1 | M24: 0 | N24: 1 | O24: https://data.gov.ru/opendata/7707211418-spisokekstremistov | P24: 1 | Q24: 1 | R24: 1 | S24: 1 | T24: 1 | U24: 1 | V24: 1 | W24: 1 | X24: 1 | Y24: 1 | Z24: 1 | AA24: 1 | AB24: 0 | AC24: 1 | AD24: 1 | AE24: https://data.gov.ru/opendata/7707211418-kontrolnadzor | AF24: 1 | AG24: 1 | AH24: 1 | AI24: 1 | AJ24: 1 | AK24: 1 | AL24: 1 | AM24: 1 | AN24: 1 | AO24: 1 | AP24: 1 | AQ24: 1 | AR24: 0 | AS24: 1 | AT24: 1 | AU24: https://data.gov.ru/opendata/7707211418-kontroladvokatami | AV24: 1 | AW24: 1 | AX24: 1 | AY24: 1 | AZ24: 1 | BA24: 1 | BB24: 1 | BC24: 1 | BD24: 1 | BE24: 1 | BF24: 1 | BG24: 1 | BH24: 0 | BI24: 1 | BJ24: 1 | BK24: 53 | BL24: 77
A25: СВР России | B25: http://svr.gov.ru/ | BK25: 0 | BL25: 77
A26: Управление делами Президента Российской Федерации | B26: http://www.udprf.ru/ | C26: https://udprf.ru/opendata | D26: 1 | E26: 1 | F26: 0 | G26: 3 | H26: 1 | I26: 1 | J26: 0 | K26: 0 | L26: 1 | M26: 1 | N26: 0 | O26: https://udprf.ru/opendata/7710023340-org | P26: 1 | Q26: 1 | R26: 1 | S26: 1 | T26: 1 | U26: 1 | V26: 1 | W26: 1 | X26: 1 | Y26: 1 | Z26: 1 | AA26: 1 | AB26: 5 | AC26: 1 | AD26: 1 | AE26: https://udprf.ru/opendata/7710023340-prov | AF26: 1 | AG26: 1 | AH26: 1 | AI26: 1 | AJ26: 1 | AK26: 1 | AL26: 1 | AM26: 1 | AN26: 1 | AO26: 1 | AP26: 1 | AQ26: 1 | AR26: 5 | AS26: 1 | AT26: 1 | BK26: 47 | BL26: 77
A27: ФАС России | B27: http://www.fas.gov.ru/ | C27: http://fas.gov.ru/opendata/ | D27: 1 | E27: 1 | F27: 3 | G27: 3 | H27: 1 | I27: 1 | J27: 0 | K27: 0 | L27: 1 | M27: 1 | N27: 0 | O27: http://fas.gov.ru/opendata/7703516539-postalrates | P27: 1 | Q27: 1 | R27: 1 | S27: 1 | T27: 0 | U27: 1 | V27: 1 | W27: 1 | X27: 1 | Y27: 1 | Z27: 1 | AA27: 1 | AB27: 0 | AC27: 1 | AD27: 1 | AE27: http://fas.gov.ru/opendata/7703516539-foreignlegislation | AF27: 1 | AG27: 1 | AH27: 1 | AI27: 1 | AJ27: 0 | AK27: 1 | AL27: 1 | AM27: 1 | AN27: 1 | AO27: 1 | AP27: 0 | AQ27: 1 | AR27: 0 | AS27: 1 | AT27: 1 | AU27: http://fas.gov.ru/opendata/7703516539-indexconcentrationkul | AV27: 1 | AW27: 1 | AX27: 1 | AY27: 1 | AZ27: 1 | BA27: 1 | BB27: 1 | BC27: 1 | BD27: 1 | BE27: 1 | BF27: 0 | BG27: 1 | BH27: 5 | BI27: 1 | BJ27: 1 | BK27: 55 | BL27: 77
A28: ФНС России | B28: https://nalog.gov.ru/ | C28: https://www.nalog.ru/opendata/ | D28: 1 | E28: 1 | F28: 3 | G28: 3 | H28: 1 | I28: 1 | J28: 0 | K28: 0 | L28: 0 | M28: 1 | N28: 1 | O28: https://www.nalog.ru/opendata/7707329152-massfounders/ | P28: 1 | Q28: 1 | R28: 1 | S28: 1 | T28: 1 | U28: 1 | V28: 1 | W28: 1 | X28: 1 | Y28: 1 | Z28: 1 | AA28: 1 | AB28: 5 | AC28: 1 | AD28: 1 | AE28: https://www.nalog.ru/opendata/7707329152-registerdisqualified/ | AF28: 1 | AG28: 1 | AH28: 1 | AI28: 1 | AJ28: 1 | AK28: 1 | AL28: 1 | AM28: 1 | AN28: 1 | AO28: 1 | AP28: 1 | AQ28: 1 | AR28: 5 | AS28: 1 | AT28: 1 | AU28: www.nalog.ru/opendata/7707329152-ttpersonal/ | AV28: 1 | AW28: 1 | AX28: 1 | AY28: 1 | AZ28: 1 | BA28: 1 | BB28: 1 | BC28: 1 | BD28: 1 | BE28: 1 | BF28: 1 | BG28: 1 | BH28: 5 | BI28: 1 | BJ28: 1 | BK28: 69 | BL28: 77
A29: Федеральная пробирная палата | B29: http://www.probpalata.ru/rgpp/ | BK29: 0 | BL29: 77
A30: ФСБ России | B30: http://fsb.gov.ru/ | BK30: 0 | BL30: 77
A31: Росгвардия | B31: http://rosguard.gov.ru | C31: https://rosguard.gov.ru/opendata | D31: 2 | E31: 1 | F31: 3 | G31: 3 | H31: 1 | I31: 0 | J31: 0 | K31: 1 | L31: 0 | M31: 1 | N31: 0 | O31: https://rosguard.gov.ru/opendata/7722377866-choop | P31: 1 | Q31: 1 | R31: 1 | S31: 1 | T31: 0 | U31: 0 | V31: 1 | W31: 1 | X31: 1 | Y31: 1 | Z31: 1 | AA31: 1 | AB31: 0 | AC31: 1 | AD31: 1 | AE31: https://rosguard.gov.ru/opendata/7722377866-tgso | AF31: 1 | AG31: 1 | AH31: 1 | AI31: 1 | AJ31: 0 | AK31: 0 | AL31: 1 | AM31: 1 | AN31: 1 | AO31: 1 | AP31: 1 | AQ31: 1 | AR31: 0 | AS31: 1 | AT31: 1 | AU31: https://rosguard.gov.ru/opendata/7722377866-chd | AV31: 1 | AW31: 1 | AX31: 1 | AY31: 1 | AZ31: 0 | BA31: 0 | BB31: 1 | BC31: 1 | BD31: 1 | BE31: 1 | BF31: 1 | BG31: 1 | BH31: 0 | BI31: 1 | BJ31: 1 | BK31: 48 | BL31: 77
A32: Росреестр | B32: http://rosreestr.gov.ru/ | C32: https://rosreestr.gov.ru/wps/portal/cc_ib_opendata | D32: 2 | E32: 1 | F32: 3 | G32: 3 | H32: 1 | I32: 0 | J32: 0 | K32: 0 | L32: 0 | M32: 0 | N32: 0 | O32: https://rosreestr.gov.ru/wps/portal/p/cc_ib_portal_services/cc_ib_opendata2/!ut/p/c5/04_SB8K8xLLM9MSSzPy8xBz9CP0os3gDQ1NHQw8TA08DF3MLA0dHV7-QAG8DIDAHykeaxXu6ewV4eLsbGrgH-hgYeDq7BBsGOJobGAQYENAdDrIPSYW_r7EpUIVziJeveZCRgYUJRB6f-WD9OICjgb6fR35uqn5BboRBZkC6IgC4i9rh/dl3/d3/L0lDU0lKSWdrbUNTUS9JUFJBQUlpQ2dBek15cXpHWUEhIS80QkVqOG8wRmxHaXQtYlhwQUh0Qi83XzAxNUExSDQwSTBENzgwQUFFTlRQSzAwMEc1L1N1ckd2OTgzNzAwNzQvc2EucnUuZmNjbGFuZC5pYm1wb3J0YWwuc3ByaW5nLnBvcnRsZXQuZGlzcGF0Y2hlci5EaXNwYXRjaGVyQWN0aW9uRXZlbnQtTVVMVElQQVJU/?PC_7_015A1H40I0D780AAENTPK000G5000000_ru.fccland.ibmportal.spring.portlet.handler.BeanNameParameterHandlerMapping-PATH=%2fShowInfoblockPageController&param_infoblock_document_path=25000%20metadannye%20cifr.%20topog.karty.htm | P32: 1 | Q32: 1 | R32: 1 | S32: 1 | T32: 1 | U32: 1 | V32: 1 | W32: 1 | X32: 0 | Y32: 1 | Z32: 1 | AA32: 1 | AB32: 5 | AC32: 1 | AD32: 1 | AE32: https://rosreestr.gov.ru/wps/portal/p/cc_ib_portal_services/cc_ib_opendata2/!ut/p/c5/04_SB8K8xLLM9MSSzPy8xBz9CP0os3gDQ1NHQw8TA08DF3MLA0dHV7-QAG8DIDAHykeaxXu6ewV4eLsbGrgH-hgYeDq7BBsGOJobGAQYENAdDrIPSYW_r7EpUIVziJeveZCRgYUJRB6f-WD9OICjgb6fR35uqn5BboRBZkC6IgC4i9rh/dl3/d3/L0lDU0lKSWdrbUNTUS9JUFJBQUlpQ2dBek15cXpHWUEhIS80QkVqOG8wRmxHaXQtYlhwQUh0Qi83XzAxNUExSDQwSTBENzgwQUFFTlRQSzAwMEc1Lzl1ckd2OTgzNzAwODMvc2EucnUuZmNjbGFuZC5pYm1wb3J0YWwuc3ByaW5nLnBvcnRsZXQuZGlzcGF0Y2hlci5EaXNwYXRjaGVyQWN0aW9uRXZlbnQtTVVMVElQQVJU/?PC_7_015A1H40I0D780AAENTPK000G5000000_ru.fccland.ibmportal.spring.portlet.handler.BeanNameParameterHandlerMapping-PATH=%2fShowInfoblockPageController&param_infoblock_document_path=SVED%20GSRO.htm | AF32: 1 | AG32: 1 | AH32: 1 | AI32: 1 | AJ32: 1 | AK32: 1 | AL32: 1 | AM32: 1 | AN32: 1 | AO32: 1 | AP32: 1 | AQ32: 1 | AR32: 0 | AS32: 1 | AT32: 1 | AU32: https://rosreestr.gov.ru/wps/portal/p/cc_ib_portal_services/cc_ib_opendata2/!ut/p/c5/04_SB8K8xLLM9MSSzPy8xBz9CP0os3gDQ1NHQw8TA08DF3MLA0dHV7-QAG8DIDAHykeaxXu6ewV4eLsbGrgH-hgYeDq7BBsGOJobGAQYENAdDrIPSYW_r7EpUIVziJeveZCRgYUJRB6f-WD9OICjgb6fR35uqn5BboRBZkC6IgC4i9rh/dl3/d3/L0lDU0lKSWdrbUNTUS9JUFJBQUlpQ2dBek15cXpHWUEhIS80QkVqOG8wRmxHaXQtYlhwQUh0Qi83XzAxNUExSDQwSTBENzgwQUFFTlRQSzAwMEc1L3lqckd2OTgzNzAwODkvc2EucnUuZmNjbGFuZC5pYm1wb3J0YWwuc3ByaW5nLnBvcnRsZXQuZGlzcGF0Y2hlci5EaXNwYXRjaGVyQWN0aW9uRXZlbnQtTVVMVElQQVJU/?PC_7_015A1H40I0D780AAENTPK000G5000000_ru.fccland.ibmportal.spring.portlet.handler.BeanNameParameterHandlerMapping-PATH=%2fShowInfoblockPageController&param_infoblock_document_path=LICENSE.htm | AV32: 1 | AW32: 1 | AX32: 1 | AY32: 1 | AZ32: 1 | BA32: 1 | BB32: 1 | BC32: 1 | BD32: 1 | BE32: 1 | BF32: 1 | BG32: 1 | BH32: 0 | BI32: 1 | BJ32: 1 | BK32: 56 | BL32: 77
A33: Росстат | B33: http://rosstat.gov.ru/ | C33: https://rosstat.gov.ru/folder/12793 | D33: 2 | E33: 1 | F33: 3 | G33: 3 | H33: 1 | I33: 0 | J33: 0 | K33: 1 | L33: 1 | M33: 1 | N33: 1 | O33: https://rosstat.gov.ru/opendata/7708234640-VSHP2016539 | P33: 1 | Q33: 1 | R33: 1 | S33: 1 | T33: 1 | U33: 1 | V33: 1 | W33: 1 | X33: 1 | Y33: 1 | Z33: 1 | AA33: 1 | AB33: 0 | AC33: 1 | AD33: 1 | AE33: https://rosstat.gov.ru/opendata/7708234640-VSHP2016506 | AF33: 1 | AG33: 1 | AH33: 1 | AI33: 1 | AJ33: 1 | AK33: 1 | AL33: 1 | AM33: 1 | AN33: 1 | AO33: 1 | AP33: 1 | AQ33: 1 | AR33: 0 | AS33: 1 | AT33: 1 | AU33: https://rosstat.gov.ru/opendata/7708234640-VSHP2016449 | AV33: 1 | AW33: 1 | AX33: 1 | AY33: 1 | AZ33: 1 | BA33: 1 | BB33: 1 | BC33: 1 | BD33: 1 | BE33: 1 | BF33: 1 | BG33: 1 | BH33: 0 | BI33: 1 | BJ33: 1 | BK33: 56 | BL33: 77
A34: ФСИН России | B34: https://fsin.gov.ru/ | C34: https://fsin.gov.ru/opendata/ | D34: 2 | E34: 1 | F34: 0 | G34: 3 | H34: 0 | I34: 0 | J34: 0 | K34: 0 | L34: 0 | M34: 0 | N34: 0 | O34: https://fsin.gov.ru/opendata/7706562710-harakteristika-osuzhdennyih-po-sovershennyim-prestupleniyam/ | P34: 1 | Q34: 1 | R34: 1 | S34: 1 | T34: 1 | U34: 1 | V34: 1 | W34: 1 | X34: 1 | Y34: 1 | Z34: 1 | AA34: 1 | AB34: 5 | AC34: 1 | AD34: 1 | AE34: https://fsin.gov.ru/opendata/7706562710-inspection-report/ | AF34: 0 | AG34: 0 | AH34: 0 | AI34: 0 | AJ34: 0 | AK34: 0 | AL34: 0 | AM34: 0 | AN34: 0 | AO34: 0 | AP34: 0 | AQ34: 0 | AR34: 0 | AS34: 0 | AT34: 0 | AU34: https://fsin.gov.ru/opendata/7706562710-characteristic-of-citizens-in-the-pc/ | AV34: 1 | AW34: 1 | AX34: 1 | AY34: 1 | AZ34: 1 | BA34: 1 | BB34: 1 | BC34: 1 | BD34: 1 | BE34: 1 | BF34: 1 | BG34: 1 | BH34: 5 | BI34: 1 | BJ34: 1 | BK34: 44 | BL34: 77
A35: ФСО России | B35: http://www.fso.gov.ru/ | BK35: 0 | BL35: 77
A36: Росаккредитация | B36: https://fsa.gov.ru/ | C36: https://fsa.gov.ru/opendata/ | D36: 2 | E36: 1 | F36: 0 | G36: 3 | H36: 1 | I36: 0 | J36: 0 | K36: 0 | L36: 1 | M36: 0 | N36: 1 | O36: https://fsa.gov.ru/opendata/7736638268-negosexpert/ | P36: 1 | Q36: 1 | R36: 1 | S36: 1 | T36: 0 | U36: 1 | V36: 1 | W36: 1 | X36: 1 | Y36: 1 | Z36: 1 | AA36: 1 | AB36: 5 | AC36: 1 | AD36: 1 | AE36: https://fsa.gov.ru/opendata/7736638268-negosexpert/ | AF36: 1 | AG36: 1 | AH36: 1 | AI36: 1 | AJ36: 0 | AK36: 1 | AL36: 1 | AM36: 1 | AN36: 1 | AO36: 1 | AP36: 1 | AQ36: 1 | AR36: 5 | AS36: 1 | AT36: 1 | AU36: https://fsa.gov.ru/opendata/7736638268-reo/ | AV36: 1 | AW36: 1 | AX36: 1 | AY36: 1 | AZ36: 0 | BA36: 1 | BB36: 1 | BC36: 1 | BD36: 1 | BE36: 1 | BF36: 1 | BG36: 1 | BH36: 5 | BI36: 1 | BJ36: 1 | BK36: 63 | BL36: 77
A37: Россельхознадзор | B37: https://fsvps.gov.ru/ | C37: https://fsvps.gov.ru/opendata | D37: 2 | E37: 1 | F37: 3 | G37: 3 | H37: 1 | I37: 1 | J37: 1 | K37: 1 | L37: 1 | M37: 0 | N37: 1 | O37: https://data.gov.ru/opendata/7708523530-statgoslicenzirovanie | P37: 1 | Q37: 1 | R37: 1 | S37: 1 | T37: 1 | U37: 1 | V37: 1 | W37: 1 | X37: 1 | Y37: 1 | Z37: 1 | AA37: 1 | AB37: 5 | AC37: 1 | AD37: 1 | AE37: https://data.gov.ru/opendata/7708523530-spisokzaregdobavok | AF37: 1 | AG37: 1 | AH37: 1 | AI37: 1 | AJ37: 1 | AK37: 1 | AL37: 1 | AM37: 1 | AN37: 1 | AO37: 1 | AP37: 1 | AQ37: 1 | AR37: 5 | AS37: 1 | AT37: 1 | AU37: https://data.gov.ru/opendata/7708523530-ogranichennavvoz | AV37: 1 | AW37: 1 | AX37: 1 | AY37: 1 | AZ37: 1 | BA37: 1 | BB37: 1 | BC37: 1 | BD37: 1 | BE37: 1 | BF37: 1 | BG37: 1 | BH37: 5 | BI37: 1 | BJ37: 1 | BK37: 72 | BL37: 77
A38: ФСВТС России | B38: http://www.fsvts.gov.ru/ | C38: http://www.fsvts.gov.ru/opendata/ | D38: 0 | E38: 1 | F38: 0 | G38: 3 | H38: 1 | I38: 0 | J38: 0 | K38: 0 | L38: 0 | M38: 1 | N38: 0 | O38: http://www.fsvts.gov.ru/opendata/7705513237-Subdivisions | P38: 1 | Q38: 1 | R38: 1 | S38: 1 | T38: 1 | U38: 1 | V38: 1 | W38: 1 | X38: 1 | Y38: 1 | Z38: 1 | AA38: 1 | AB38: 5 | AC38: 1 | AD38: 1 | AE38: http://www.fsvts.gov.ru/opendata/7705513237-Leadership | AF38: 1 | AG38: 1 | AH38: 1 | AI38: 1 | AJ38: 1 | AK38: 1 | AL38: 1 | AM38: 1 | AN38: 1 | AO38: 1 | AP38: 1 | AQ38: 1 | AR38: 5 | AS38: 1 | AT38: 1 | AU38: http://www.fsvts.gov.ru/opendata/7705513237-Contacts | AV38: 1 | AW38: 1 | AX38: 1 | AY38: 1 | AZ38: 1 | BA38: 1 | BB38: 1 | BC38: 1 | BD38: 1 | BE38: 1 | BF38: 1 | BG38: 1 | BH38: 5 | BI38: 1 | BJ38: 1 | BK38: 63 | BL38: 77
A39: Росгидромет | B39: http://meteorf.gov.ru/ | C39: http://www.meteorf.ru/opendata/ | D39: 2 | E39: 1 | F39: 3 | G39: 3 | H39: 1 | I39: 0 | J39: 0 | K39: 0 | L39: 0 | M39: 1 | N39: 1 | O39: http://www.meteorf.ru/opendata/7703092752-gidro/ | P39: 1 | Q39: 1 | R39: 1 | S39: 1 | T39: 1 | U39: 1 | V39: 1 | W39: 1 | X39: 1 | Y39: 1 | Z39: 0 | AA39: 1 | AB39: 0 | AC39: 1 | AD39: 1 | AE39: http://www.meteorf.ru/opendata/7703092752-pollut/ | AF39: 1 | AG39: 1 | AH39: 1 | AI39: 1 | AJ39: 1 | AK39: 1 | AL39: 1 | AM39: 1 | AN39: 1 | AO39: 1 | AP39: 0 | AQ39: 1 | AR39: 0 | AS39: 1 | AT39: 1 | AU39: http://www.meteorf.ru/opendata/7703092752-meteo/ | AV39: 1 | AW39: 1 | AX39: 1 | AY39: 1 | AZ39: 1 | BA39: 1 | BB39: 1 | BC39: 1 | BD39: 1 | BE39: 1 | BF39: 1 | BG39: 1 | BH39: 5 | BI39: 1 | BJ39: 1 | BK39: 57 | BL39: 77
A40: Роспатент | B40: https://rospatent.gov.ru/ru | C40: https://rospatent.gov.ru/opendata | D40: 2 | E40: 1 | F40: 3 | G40: 3 | H40: 1 | I40: 1 | J40: 1 | K40: 1 | L40: 1 | M40: 1 | N40: 0 | O40: https://rospatent.gov.ru/opendata/7730176088-iz | P40: 1 | Q40: 1 | R40: 1 | S40: 1 | T40: 1 | U40: 1 | V40: 1 | W40: 1 | X40: 1 | Y40: 1 | Z40: 1 | AA40: 1 | AB40: 5 | AC40: 1 | AD40: 1 | AE40: https://rospatent.gov.ru/opendata/7730176088-tims | AF40: 1 | AG40: 1 | AH40: 1 | AI40: 1 | AJ40: 1 | AK40: 1 | AL40: 1 | AM40: 1 | AN40: 1 | AO40: 1 | AP40: 1 | AQ40: 1 | AR40: 5 | AS40: 1 | AT40: 1 | AU40: https://rospatent.gov.ru/opendata/7730176088-evm | AV40: 1 | AW40: 1 | AX40: 1 | AY40: 1 | AZ40: 1 | BA40: 1 | BB40: 1 | BC40: 1 | BD40: 1 | BE40: 1 | BF40: 1 | BG40: 1 | BH40: 5 | BI40: 1 | BJ40: 1 | BK40: 72 | BL40: 77
A41: Роспотребнадзор | B41: https://www.rospotrebnadzor.ru/ | C41: http://opendata.rospotrebnadzor.ru/ | D41: 2 | E41: 1 | F41: 3 | G41: 3 | H41: 0 | I41: 0 | J41: 0 | K41: 0 | L41: 0 | M41: 0 | N41: 1 | O41: http://opendata.rospotrebnadzor.ru/7707515984-licen/ | P41: 1 | Q41: 1 | R41: 1 | S41: 1 | T41: 1 | U41: 1 | V41: 1 | W41: 1 | X41: 1 | Y41: 1 | Z41: 1 | AA41: 1 | AB41: 5 | AC41: 1 | AD41: 1 | AE41: http://opendata.rospotrebnadzor.ru/7707515984-statwater/ | AF41: 1 | AG41: 1 | AH41: 1 | AI41: 1 | AJ41: 1 | AK41: 1 | AL41: 1 | AM41: 1 | AN41: 1 | AO41: 1 | AP41: 1 | AQ41: 1 | AR41: 5 | AS41: 1 | AT41: 1 | AU41: http://opendata.rospotrebnadzor.ru/7707515984-listlaw_zpp/ | AV41: 1 | AW41: 1 | AX41: 1 | AY41: 1 | AZ41: 1 | BA41: 1 | BB41: 1 | BC41: 1 | BD41: 1 | BE41: 1 | BF41: 1 | BG41: 1 | BH41: 5 | BI41: 1 | BJ41: 1 | BK41: 67 | BL41: 77
A42: Росздравнадзор | B42: https://roszdravnadzor.gov.ru/ | C42: https://roszdravnadzor.gov.ru/opendata | D42: 2 | E42: 1 | F42: 3 | G42: 3 | H42: 1 | I42: 0 | J42: 0 | K42: 0 | L42: 0 | M42: 1 | N42: 1 | O42: https://roszdravnadzor.gov.ru/opendata/7710537160-ionspp | P42: 1 | Q42: 1 | R42: 1 | S42: 1 | T42: 1 | U42: 1 | V42: 1 | W42: 1 | X42: 1 | Y42: 1 | Z42: 1 | AA42: 1 | AB42: 5 | AC42: 1 | AD42: 1 | AE42: https://roszdravnadzor.gov.ru/opendata/7710537160-clinical | AF42: 1 | AG42: 1 | AH42: 1 | AI42: 1 | AJ42: 1 | AK42: 1 | AL42: 1 | AM42: 1 | AN42: 1 | AO42: 1 | AP42: 1 | AQ42: 1 | AR42: 5 | AS42: 1 | AT42: 1 | AU42: https://roszdravnadzor.gov.ru/opendata/7710537160-drugs_qualitycontrol | AV42: 1 | AW42: 1 | AX42: 1 | AY42: 1 | AZ42: 1 | BA42: 1 | BB42: 1 | BC42: 1 | BD42: 1 | BE42: 1 | BF42: 1 | BG42: 1 | BH42: 5 | BI42: 1 | BJ42: 1 | BK42: 69 | BL42: 77
A43: Рособрнадзор | B43: http://obrnadzor.gov.ru/ | C43: http://obrnadzor.gov.ru/otkrytoe-pravitelstvo/opendata/ | D43: 2 | E43: 1 | F43: 0 | G43: 3 | H43: 0 | I43: 0 | J43: 0 | K43: 0 | L43: 0 | M43: 0 | N43: 1 | O43: http://obrnadzor.gov.ru/otkrytoe-pravitelstvo/opendata/7701537808-raoo/ | P43: 1 | Q43: 1 | R43: 1 | S43: 1 | T43: 1 | U43: 1 | V43: 1 | W43: 1 | X43: 1 | Y43: 1 | Z43: 1 | AA43: 1 | AB43: 0 | AC43: 1 | AD43: 1 | AE43: http://obrnadzor.gov.ru/otkrytoe-pravitelstvo/opendata/7701537808-statctrl/ | AF43: 1 | AG43: 1 | AH43: 1 | AI43: 1 | AJ43: 1 | AK43: 1 | AL43: 1 | AM43: 1 | AN43: 1 | AO43: 1 | AP43: 1 | AQ43: 1 | AR43: 0 | AS43: 1 | AT43: 1 | AU43: http://obrnadzor.gov.ru/otkrytoe-pravitelstvo/opendata/7701537808-statlic/ | AV43: 1 | AW43: 1 | AX43: 1 | AY43: 1 | AZ43: 1 | BA43: 1 | BB43: 1 | BC43: 1 | BD43: 1 | BE43: 1 | BF43: 1 | BG43: 1 | BH43: 0 | BI43: 1 | BJ43: 1 | BK43: 49 | BL43: 77
A44: Росприроднадзор | B44: http://rpn.gov.ru/ | C44: https://rpn.gov.ru/opendata/ | D44: 2 | E44: 1 | F44: 3 | G44: 3 | H44: 0 | I44: 1 | J44: 0 | K44: 1 | L44: 0 | M44: 0 | N44: 0 | O44: https://rpn.gov.ru/opendata/7703381225-objectker | P44: 1 | Q44: 0 | R44: 0 | S44: 1 | T44: 1 | U44: 1 | V44: 1 | W44: 1 | X44: 1 | Y44: 1 | Z44: 1 | AA44: 1 | AB44: 0 | AC44: 1 | AD44: 1 | AE44: https://rpn.gov.ru/opendata/7703381225-reestrdob | AF44: 1 | AG44: 0 | AH44: 0 | AI44: 1 | AJ44: 1 | AK44: 1 | AL44: 1 | AM44: 1 | AN44: 1 | AO44: 1 | AP44: 1 | AQ44: 1 | AR44: 5 | AS44: 1 | AT44: 1 | AU44: https://rpn.gov.ru/opendata/7703381225-grunt | AV44: 1 | AW44: 0 | AX44: 0 | AY44: 1 | AZ44: 1 | BA44: 1 | BB44: 1 | BC44: 1 | BD44: 1 | BE44: 1 | BF44: 1 | BG44: 1 | BH44: 5 | BI44: 1 | BJ44: 1 | BK44: 57 | BL44: 77
A45: Роскомнадзор | B45: http://rkn.gov.ru/ | C45: http://rkn.gov.ru/opendata/ | D45: 2 | E45: 1 | F45: 3 | G45: 3 | H45: 0 | I45: 0 | J45: 0 | K45: 0 | L45: 1 | M45: 1 | N45: 1 | O45: http://rkn.gov.ru/opendata/7705846236-RadioFrequencyLicenseSmarineRadios/ | P45: 1 | Q45: 1 | R45: 1 | S45: 1 | T45: 1 | U45: 1 | V45: 1 | W45: 1 | X45: 0 | Y45: 1 | Z45: 1 | AA45: 0 | AB45: 5 | AC45: 1 | AD45: 1 | AE45: http://rkn.gov.ru/opendata/7705846236-AccreditedExpertsMassCommunications/ | AF45: 1 | AG45: 1 | AH45: 1 | AI45: 1 | AJ45: 1 | AK45: 1 | AL45: 1 | AM45: 1 | AN45: 1 | AO45: 1 | AP45: 1 | AQ45: 0 | AR45: 0 | AS45: 1 | AT45: 1 | AU45: http://rkn.gov.ru/opendata/7705846236-PermToDistributeForeignPeriodicals/ | AV45: 1 | AW45: 1 | AX45: 1 | AY45: 1 | AZ45: 1 | BA45: 1 | BB45: 1 | BC45: 1 | BD45: 1 | BE45: 1 | BF45: 1 | BG45: 0 | BH45: 5 | BI45: 1 | BJ45: 1 | BK45: 60 | BL45: 77
A46: Ространснадзор | B46: http://rostransnadzor.gov.ru/ | C46: https://rostransnadzor.gov.ru/opendata | D46: 2 | E46: 1 | F46: 0 | G46: 3 | H46: 1 | I46: 0 | J46: 0 | K46: 1 | L46: 1 | M46: 1 | N46: 1 | O46: https://rostransnadzor.gov.ru/opendata/7714549751-reestrinformsystem | P46: 1 | Q46: 1 | R46: 1 | S46: 1 | T46: 1 | U46: 1 | V46: 1 | W46: 1 | X46: 1 | Y46: 1 | Z46: 1 | AA46: 1 | AB46: 0 | AC46: 1 | AD46: 1 | AE46: https://rostransnadzor.gov.ru/opendata/7714549751-reestrlicenziy | AF46: 1 | AG46: 1 | AH46: 1 | AI46: 1 | AJ46: 0 | AK46: 0 | AL46: 1 | AM46: 1 | AN46: 1 | AO46: 1 | AP46: 1 | AQ46: 1 | AR46: 0 | AS46: 1 | AT46: 1 | AU46: https://rostransnadzor.gov.ru/opendata/7714549751-statinfo | AV46: 1 | AW46: 1 | AX46: 1 | AY46: 1 | AZ46: 1 | BA46: 1 | BB46: 1 | BC46: 1 | BD46: 1 | BE46: 1 | BF46: 1 | BG46: 1 | BH46: 0 | BI46: 1 | BJ46: 1 | BK46: 51 | BL46: 77
A47: Росалкогольрегулирование | B47: http://fsrar.gov.ru/ | C47: http://fsrar.gov.ru/opendata | D47: 2 | E47: 1 | F47: 3 | G47: 3 | H47: 1 | I47: 0 | J47: 0 | K47: 0 | L47: 1 | M47: 1 | N47: 1 | O47: https://fsrar.gov.ru/opendata/7710747640-proizsppv/ | P47: 1 | Q47: 1 | R47: 1 | S47: 1 | T47: 1 | U47: 1 | V47: 1 | W47: 1 | X47: 1 | Y47: 1 | Z47: 1 | AA47: 1 | AB47: 5 | AC47: 1 | AD47: 1 | AE47: https://fsrar.gov.ru/opendata/7710747640-proizapbpipn/ | AF47: 1 | AG47: 1 | AH47: 1 | AI47: 1 | AJ47: 1 | AK47: 1 | AL47: 1 | AM47: 1 | AN47: 1 | AO47: 1 | AP47: 1 | AQ47: 1 | AR47: 0 | AS47: 1 | AT47: 1 | AU47: https://fsrar.gov.ru/opendata/7710747640-piksp/ | AV47: 1 | AW47: 1 | AX47: 1 | AY47: 1 | AZ47: 1 | BA47: 1 | BB47: 1 | BC47: 1 | BD47: 1 | BE47: 1 | BF47: 1 | BG47: 1 | BH47: 5 | BI47: 1 | BJ47: 1 | BK47: 65 | BL47: 77
A48: ФСТЭК России | B48: http://www.fstec.ru/ | C48: https://data.gov.ru/federalnaya-sluzhba-po-tehnicheskomu-i-eksportnomu-kontrolyu | D48: 2 | E48: 1 | F48: 3 | G48: 3 | H48: 0 | I48: 0 | J48: 0 | K48: 0 | L48: 1 | M48: 1 | N48: 1 | O48: https://data.gov.ru/opendata/7701350013-labs | P48: 1 | Q48: 1 | R48: 1 | S48: 1 | T48: 1 | U48: 1 | V48: 1 | W48: 1 | X48: 1 | Y48: 1 | Z48: 1 | AA48: 1 | AB48: 0 | AC48: 1 | AD48: 1 | AE48: https://data.gov.ru/opendata/7701350013-licensestooperate | AF48: 1 | AG48: 1 | AH48: 1 | AI48: 1 | AJ48: 1 | AK48: 1 | AL48: 1 | AM48: 1 | AN48: 1 | AO48: 1 | AP48: 1 | AQ48: 1 | AR48: 0 | AS48: 1 | AT48: 1 | AU48: https://data.gov.ru/opendata/7701350013-licensestpci | AV48: 1 | AW48: 1 | AX48: 1 | AY48: 1 | AZ48: 1 | BA48: 1 | BB48: 1 | BC48: 1 | BD48: 1 | BE48: 1 | BF48: 1 | BG48: 1 | BH48: 0 | BI48: 1 | BJ48: 1 | BK48: 54 | BL48: 77
A49: Роструд | B49: http://rostrud.gov.ru/ | C49: https://rostrud.gov.ru/opendata/ | D49: 2 | E49: 1 | F49: 3 | G49: 3 | H49: 0 | I49: 1 | J49: 0 | K49: 1 | L49: 1 | M49: 1 | N49: 0 | O49: https://rostrud.gov.ru/opendata/7712345678-vyplatyberem | P49: 1 | Q49: 1 | R49: 1 | S49: 1 | T49: 1 | U49: 1 | V49: 1 | W49: 1 | X49: 1 | Y49: 1 | Z49: 1 | AA49: 1 | AB49: 5 | AC49: 1 | AD49: 1 | AE49: https://rostrud.gov.ru/opendata/7712345678-nes2015 | AF49: 1 | AG49: 1 | AH49: 1 | AI49: 1 | AJ49: 1 | AK49: 1 | AL49: 1 | AM49: 1 | AN49: 1 | AO49: 1 | AP49: 1 | AQ49: 1 | AR49: 0 | AS49: 1 | AT49: 1 | AU49: https://rostrud.gov.ru/opendata/7712345678-dataset313 | AV49: 1 | AW49: 1 | AX49: 1 | AY49: 1 | AZ49: 1 | BA49: 1 | BB49: 1 | BC49: 1 | BD49: 1 | BE49: 1 | BF49: 1 | BG49: 1 | BH49: 5 | BI49: 1 | BJ49: 1 | BK49: 65 | BL49: 77
A50: Росфинмониторинг | B50: http://www.fedsfm.ru/ | C50: http://www.fedsfm.ru/opendata | D50: 2 | E50: 1 | F50: 0 | G50: 3 | H50: 0 | I50: 0 | J50: 0 | K50: 1 | L50: 0 | M50: 0 | N50: 0 | O50: http://www.fedsfm.ru/opendata/684 | P50: 1 | Q50: 1 | R50: 1 | S50: 1 | T50: 1 | U50: 1 | V50: 1 | W50: 1 | X50: 0 | Y50: 1 | Z50: 1 | AA50: 0 | AB50: 0 | AC50: 1 | AD50: 1 | AE50: http://www.fedsfm.ru/opendata/683 | AF50: 1 | AG50: 1 | AH50: 1 | AI50: 1 | AJ50: 1 | AK50: 1 | AL50: 1 | AM50: 1 | AN50: 0 | AO50: 0 | AP50: 0 | AQ50: 1 | AR50: 0 | AS50: 1 | AT50: 1 | AU50: http://www.fedsfm.ru/opendata/677 | AV50: 1 | AW50: 1 | AX50: 1 | AY50: 1 | AZ50: 1 | BA50: 1 | BB50: 1 | BC50: 1 | BD50: 0 | BE50: 0 | BF50: 1 | BG50: 0 | BH50: 0 | BI50: 1 | BJ50: 1 | BK50: 41 | BL50: 77
A51: Ростехнадзор | B51: http://gosnadzor.gov.ru/ | C51: http://gosnadzor.gov.ru/opendata/ | D51: 2 | E51: 1 | F51: 3 | G51: 3 | H51: 0 | I51: 0 | J51: 0 | K51: 0 | L51: 0 | M51: 0 | N51: 0 | O51: http://gosnadzor.gov.ru/opendata/7709561778-avarii/index_od.php | P51: 1 | Q51: 1 | R51: 1 | S51: 1 | T51: 1 | U51: 1 | V51: 1 | W51: 1 | X51: 1 | Y51: 1 | Z51: 1 | AA51: 1 | AB51: 0 | AC51: 1 | AD51: 1 | AE51: http://gosnadzor.gov.ru/opendata/7709561778-docstrateg/index_od.php | AF51: 1 | AG51: 1 | AH51: 1 | AI51: 1 | AJ51: 1 | AK51: 1 | AL51: 1 | AM51: 1 | AN51: 1 | AO51: 1 | AP51: 0 | AQ51: 1 | AR51: 0 | AS51: 1 | AT51: 1 | AU51: http://gosnadzor.gov.ru/opendata/7709561778-svednar/index_od.php | AV51: 1 | AW51: 1 | AX51: 1 | AY51: 1 | AZ51: 1 | BA51: 1 | BB51: 1 | BC51: 1 | BD51: 1 | BE51: 1 | BF51: 1 | BG51: 1 | BH51: 0 | BI51: 1 | BJ51: 1 | BK51: 50 | BL51: 77
A52: ФССП России | B52: http://fssp.gov.ru/ | C52: https://opendata.fssp.gov.ru/ | D52: 2 | E52: 1 | F52: 3 | G52: 3 | H52: 1 | I52: 0 | J52: 0 | K52: 0 | L52: 1 | M52: 0 | N52: 1 | O52: https://opendata.fssp.gov.ru/7709576929-iplegallist | P52: 1 | Q52: 1 | R52: 1 | S52: 1 | T52: 1 | U52: 1 | V52: 1 | W52: 1 | X52: 1 | Y52: 1 | Z52: 1 | AA52: 1 | AB52: 5 | AC52: 1 | AD52: 1 | AE52: https://opendata.fssp.gov.ru/7709576929-iplegallistcomplete | AF52: 1 | AG52: 1 | AH52: 1 | AI52: 1 | AJ52: 1 | AK52: 1 | AL52: 1 | AM52: 1 | AN52: 1 | AO52: 1 | AP52: 1 | AQ52: 1 | AR52: 5 | AS52: 1 | AT52: 1 | AU52: https://opendata.fssp.gov.ru/7709576929-ecoindicatorsub | AV52: 1 | AW52: 1 | AX52: 1 | AY52: 1 | AZ52: 1 | BA52: 1 | BB52: 1 | BC52: 1 | BD52: 1 | BE52: 1 | BF52: 1 | BG52: 1 | BH52: 5 | BI52: 1 | BJ52: 1 | BK52: 69 | BL52: 77
A53: ФТС России | B53: http://customs.gov.ru/ | C53: https://customs.gov.ru/opendata | D53: 2 | E53: 1 | F53: 3 | G53: 3 | H53: 1 | I53: 0 | J53: 0 | K53: 1 | L53: 1 | M53: 0 | N53: 0 | O53: https://customs.gov.ru/opendata/7730176610-statdolyamspgod | P53: 1 | Q53: 1 | R53: 1 | S53: 1 | T53: 1 | U53: 1 | V53: 1 | W53: 1 | X53: 1 | Y53: 1 | Z53: 1 | AA53: 1 | AB53: 0 | AC53: 1 | AD53: 1 | AE53: https://customs.gov.ru/opendata/7730176610-statoboroteaugod | AF53: 1 | AG53: 1 | AH53: 1 | AI53: 1 | AJ53: 1 | AK53: 1 | AL53: 1 | AM53: 1 | AN53: 1 | AO53: 1 | AP53: 1 | AQ53: 1 | AR53: 0 | AS53: 1 | AT53: 1 | AU53: https://customs.gov.ru/opendata/7730176610-rebankincredit | AV53: 1 | AW53: 1 | AX53: 1 | AY53: 1 | AZ53: 1 | BA53: 1 | BB53: 1 | BC53: 1 | BD53: 1 | BE53: 1 | BF53: 1 | BG53: 1 | BH53: 5 | BI53: 1 | BJ53: 1 | BK53: 59 | BL53: 77
A54: Росводресурсы | B54: http://voda.mnr.gov.ru/ | C54: https://voda.gov.ru/opendata/index.php | D54: 2 | E54: 1 | F54: 3 | G54: 3 | H54: 1 | I54: 0 | J54: 0 | K54: 0 | L54: 0 | M54: 0 | N54: 1 | O54: https://voda.gov.ru/opendata/7728513882-2_6_gvr/ | P54: 1 | Q54: 1 | R54: 1 | S54: 1 | T54: 1 | U54: 1 | V54: 1 | W54: 1 | X54: 1 | Y54: 1 | Z54: 1 | AA54: 1 | AB54: 0 | AC54: 1 | AD54: 1 | AE54: https://voda.gov.ru/opendata/7728513882-3_3gvr/ | AF54: 1 | AG54: 1 | AH54: 1 | AI54: 1 | AJ54: 1 | AK54: 1 | AL54: 1 | AM54: 1 | AN54: 1 | AO54: 1 | AP54: 1 | AQ54: 1 | AR54: 0 | AS54: 1 | AT54: 1 | AU54: https://voda.gov.ru/opendata/7728513882-limityzabora/ | AV54: 1 | AW54: 1 | AX54: 1 | AY54: 1 | AZ54: 1 | BA54: 1 | BB54: 1 | BC54: 1 | BD54: 1 | BE54: 1 | BF54: 1 | BG54: 1 | BH54: 0 | BI54: 1 | BJ54: 1 | BK54: 53 | BL54: 77
A55: Росавиация | B55: http://favt.gov.ru/ | C55: http://favt.gov.ru/opendata/ | D55: 1 | E55: 1 | F55: 3 | G55: 3 | H55: 1 | I55: 1 | J55: 0 | K55: 0 | L55: 1 | M55: 0 | N55: 1 | O55: http://favt.gov.ru/opendata/7714549744-reestrattestorg/ | P55: 1 | Q55: 1 | R55: 1 | S55: 1 | T55: 1 | U55: 1 | V55: 1 | W55: 1 | X55: 1 | Y55: 1 | Z55: 1 | AA55: 1 | AB55: 5 | AC55: 1 | AD55: 1 | AE55: http://favt.gov.ru/opendata/7714549744-statsamkilomga/ | AF55: 1 | AG55: 1 | AH55: 1 | AI55: 1 | AJ55: 1 | AK55: 1 | AL55: 1 | AM55: 1 | AN55: 1 | AO55: 1 | AP55: 1 | AQ55: 1 | AR55: 5 | AS55: 1 | AT55: 1 | AU55: http://favt.gov.ru/opendata/7714549744-reestrakkredorg/ | AV55: 1 | AW55: 1 | AX55: 1 | AY55: 1 | AZ55: 1 | BA55: 1 | BB55: 1 | BC55: 1 | BD55: 1 | BE55: 1 | BF55: 1 | BG55: 1 | BH55: 0 | BI55: 1 | BJ55: 1 | BK55: 64 | BL55: 77
A56: Росжелдор | B56: http://rlw.gov.ru/ | C56: http://www.rlw.gov.ru/opendata | D56: 2 | E56: 1 | F56: 3 | G56: 3 | H56: 1 | I56: 0 | J56: 0 | K56: 1 | L56: 1 | M56: 0 | N56: 1 | O56: http://www.rlw.gov.ru/opendata/7708525167-ogrpropusk | P56: 1 | Q56: 1 | R56: 0 | S56: 1 | T56: 1 | U56: 1 | V56: 1 | W56: 1 | X56: 1 | Y56: 1 | Z56: 1 | AA56: 1 | AB56: 5 | AC56: 1 | AD56: 1 | AE56: http://www.rlw.gov.ru/opendata/7708525167-registrpassvagon | AF56: 1 | AG56: 1 | AH56: 1 | AI56: 1 | AJ56: 1 | AK56: 1 | AL56: 1 | AM56: 1 | AN56: 1 | AO56: 1 | AP56: 1 | AQ56: 1 | AR56: 5 | AS56: 1 | AT56: 1 | AU56: http://www.rlw.gov.ru/opendata/7708525167-tariftranzit | AV56: 1 | AW56: 1 | AX56: 1 | AY56: 1 | AZ56: 1 | BA56: 1 | BB56: 1 | BC56: 1 | BD56: 1 | BE56: 1 | BF56: 1 | BG56: 1 | BH56: 5 | BI56: 1 | BJ56: 1 | BK56: 69 | BL56: 77
A57: Рослесхоз | B57: http://rosleshoz.gov.ru/ | C57: http://rosleshoz.gov.ru/opendata | D57: 2 | E57: 1 | F57: 3 | G57: 3 | H57: 1 | I57: 0 | J57: 0 | K57: 1 | L57: 0 | M57: 0 | N57: 0 | O57: http://rosleshoz.gov.ru/opendata/7705598840-RegisterPlants | P57: 1 | Q57: 1 | R57: 1 | S57: 1 | T57: 1 | U57: 1 | V57: 1 | W57: 1 | X57: 1 | Y57: 1 | Z57: 1 | AA57: 1 | AB57: 5 | AC57: 1 | AD57: 1 | AE57: http://rosleshoz.gov.ru/opendata/7705598840-ForestFund | AF57: 1 | AG57: 1 | AH57: 1 | AI57: 1 | AJ57: 1 | AK57: 1 | AL57: 1 | AM57: 1 | AN57: 1 | AO57: 1 | AP57: 1 | AQ57: 1 | AR57: 5 | AS57: 1 | AT57: 1 | AU57: http://rosleshoz.gov.ru/opendata/7705598840-WoodStock | AV57: 1 | AW57: 1 | AX57: 1 | AY57: 1 | AZ57: 1 | BA57: 1 | BB57: 1 | BC57: 1 | BD57: 1 | BE57: 1 | BF57: 1 | BG57: 1 | BH57: 5 | BI57: 1 | BJ57: 1 | BK57: 68 | BL57: 77
A58: Росморречфлот | B58: http://morflot.gov.ru/ | C58: http://morflot.gov.ru/glavnaya/otkryitoe_agentstvo/opendata.html | D58: 2 | E58: 1 | F58: 3 | G58: 3 | H58: 1 | I58: 1 | J58: 0 | K58: 0 | L58: 0 | M58: 1 | N58: 1 | O58: http://opendata.morflot.ru/7707516988-GMSSB | P58: 1 | Q58: 1 | R58: 1 | S58: 1 | T58: 1 | U58: 1 | V58: 1 | W58: 1 | X58: 1 | Y58: 1 | Z58: 1 | AA58: 1 | AB58: 0 | AC58: 1 | AD58: 1 | AE58: http://opendata.morflot.ru/7707516988-planproverokvuzov | AF58: 1 | AG58: 1 | AH58: 1 | AI58: 1 | AJ58: 1 | AK58: 1 | AL58: 1 | AM58: 1 | AN58: 1 | AO58: 1 | AP58: 1 | AQ58: 0 | AR58: 5 | AS58: 1 | AT58: 1 | AU58: http://opendata.morflot.ru/7707516988-KABOTAG | AV58: 1 | AW58: 1 | AX58: 1 | AY58: 1 | AZ58: 1 | BA58: 1 | BB58: 1 | BC58: 1 | BD58: 1 | BE58: 1 | BF58: 1 | BG58: 1 | BH58: 0 | BI58: 1 | BJ58: 1 | BK58: 59 | BL58: 77
A59: Росрезерв | B59: https://rosrezerv.gov.ru/ | C59: https://rosrezerv.gov.ru/opendata/ | D59: 2 | E59: 1 | F59: 0 | G59: 3 | H59: 1 | I59: 0 | J59: 0 | K59: 0 | L59: 0 | M59: 1 | N59: 0 | O59: https://rosrezerv.gov.ru/opendata/7710474294-reestrpodved | P59: 1 | Q59: 1 | R59: 1 | S59: 1 | T59: 1 | U59: 1 | V59: 1 | W59: 1 | X59: 1 | Y59: 1 | Z59: 1 | AA59: 1 | AB59: 5 | AC59: 1 | AD59: 1 | AE59: https://rosrezerv.gov.ru/opendata/7710474294-reestrypravcentrapp | AF59: 1 | AG59: 1 | AH59: 1 | AI59: 1 | AJ59: 1 | AK59: 1 | AL59: 1 | AM59: 1 | AN59: 1 | AO59: 1 | AP59: 1 | AQ59: 1 | AR59: 5 | AS59: 1 | AT59: 1 | AU59: https://rosrezerv.gov.ru/opendata/7710474294-reestrterrorg | AV59: 1 | AW59: 1 | AX59: 1 | AY59: 1 | AZ59: 1 | BA59: 1 | BB59: 1 | BC59: 1 | BD59: 1 | BE59: 1 | BF59: 1 | BG59: 1 | BH59: 5 | BI59: 1 | BJ59: 1 | BK59: 65 | BL59: 77
A60: Росмолодёжь | B60: https://fadm.gov.ru/ | C60: https://fadm.gov.ru/opendata | D60: 2 | E60: 1 | F60: 0 | G60: 3 | H60: 1 | I60: 1 | J60: 1 | K60: 1 | L60: 1 | M60: 0 | N60: 0 | O60: https://fadm.gov.ru/opendata/7703672351-podvedorgs | P60: 1 | Q60: 1 | R60: 1 | S60: 1 | T60: 0 | U60: 0 | V60: 1 | W60: 1 | X60: 1 | Y60: 1 | Z60: 1 | AA60: 1 | AB60: 5 | AC60: 1 | AD60: 1 | AE60: https://fadm.gov.ru/opendata/7703672351-regionorgs | AF60: 1 | AG60: 1 | AH60: 1 | AI60: 1 | AJ60: 0 | AK60: 0 | AL60: 1 | AM60: 1 | AN60: 1 | AO60: 1 | AP60: 1 | AQ60: 1 | AR60: 5 | AS60: 1 | AT60: 1 | AU60: https://fadm.gov.ru/opendata/7703672351-vacancies | AV60: 1 | AW60: 1 | AX60: 1 | AY60: 1 | AZ60: 0 | BA60: 0 | BB60: 1 | BC60: 1 | BD60: 1 | BE60: 1 | BF60: 1 | BG60: 1 | BH60: 5 | BI60: 1 | BJ60: 1 | BK60: 62 | BL60: 77
A61: ФАДН России | B61: http://fadn.gov.ru/ | C61: http://fadn.gov.ru/opendata | D61: 2 | E61: 1 | F61: 3 | G61: 0 | H61: 0 | I61: 0 | J61: 0 | K61: 0 | L61: 1 | M61: 0 | N61: 1 | O61: http://fadn.gov.ru/opendata/7708257207-yasnr | P61: 1 | Q61: 1 | R61: 1 | S61: 1 | T61: 1 | U61: 1 | V61: 1 | W61: 1 | X61: 1 | Y61: 1 | Z61: 1 | AA61: 1 | AB61: 5 | AC61: 1 | AD61: 1 | AE61: http://fadn.gov.ru/opendata/7708257207-smszs | AF61: 1 | AG61: 1 | AH61: 1 | AI61: 1 | AJ61: 1 | AK61: 1 | AL61: 1 | AM61: 1 | AN61: 1 | AO61: 1 | AP61: 1 | AQ61: 1 | AR61: 5 | AS61: 1 | AT61: 1 | AU61: http://fadn.gov.ru/opendata/7708257207-omnr | AV61: 1 | AW61: 1 | AX61: 1 | AY61: 1 | AZ61: 1 | BA61: 1 | BB61: 1 | BC61: 1 | BD61: 1 | BE61: 1 | BF61: 1 | BG61: 1 | BH61: 5 | BI61: 1 | BJ61: 1 | BK61: 65 | BL61: 77
A62: Россотрудничество | B62: https://rs.gov.ru/ru | C62: https://rs.gov.ru/opendata | D62: 2 | E62: 1 | F62: 0 | G62: 3 | H62: 1 | I62: 1 | J62: 1 | K62: 1 | L62: 0 | M62: 1 | N62: 0 | O62: https://rs.gov.ru/opendata/7704706758-obektinedvigimosti/data | P62: 0 | Q62: 0 | R62: 0 | S62: 0 | T62: 0 | U62: 0 | V62: 0 | W62: 0 | X62: 0 | Y62: 0 | Z62: 0 | AA62: 0 | AB62: 0 | AC62: 0 | AD62: 0 | BK62: 11 | BL62: 77
A63: Роснедра | B63: https://www.rosnedra.gov.ru/ | C63: https://www.rosnedra.gov.ru/opendata/ | D63: 2 | E63: 1 | F63: 3 | G63: 3 | H63: 1 | I63: 1 | J63: 1 | K63: 1 | L63: 0 | M63: 1 | N63: 1 | O63: https://www.rosnedra.gov.ru/opendata/7703518529-DepositsGISAtlas | P63: 1 | Q63: 1 | R63: 0 | S63: 0 | T63: 0 | U63: 0 | V63: 1 | W63: 1 | X63: 1 | Y63: 1 | Z63: 1 | AA63: 0 | AB63: 0 | AC63: 0 | AD63: 0 | AE63: https://www.rosnedra.gov.ru/opendata/7703518529-reestrkadastr | AF63: 1 | AG63: 1 | AH63: 0 | AI63: 1 | AJ63: 1 | AK63: 1 | AL63: 1 | AM63: 1 | AN63: 1 | AO63: 1 | AP63: 1 | AQ63: 0 | AR63: 0 | AS63: 1 | AT63: 1 | AU63: https://www.rosnedra.gov.ru/opendata/7703518529-budjrosp | AV63: 1 | AW63: 1 | AX63: 0 | AY63: 1 | AZ63: 1 | BA63: 1 | BB63: 1 | BC63: 1 | BD63: 1 | BE63: 1 | BF63: 1 | BG63: 0 | BH63: 0 | BI63: 1 | BJ63: 1 | BK63: 46 | BL63: 77
A64: Росрыболовство | B64: http://www.fish.gov.ru/ | C64: http://www.fish.gov.ru/opendata | D64: 2 | E64: 1 | F64: 0 | G64: 3 | H64: 0 | I64: 0 | J64: 0 | K64: 0 | L64: 0 | M64: 1 | N64: 0 | O64: http://www.fish.gov.ru/opendata/7702679523-perechentu | P64: 1 | Q64: 1 | R64: 1 | S64: 1 | T64: 1 | U64: 1 | V64: 1 | W64: 1 | X64: 1 | Y64: 1 | Z64: 1 | AA64: 1 | AB64: 5 | AC64: 1 | AD64: 1 | AE64: http://www.fish.gov.ru/opendata/7702679523-perechenpodved | AF64: 1 | AG64: 1 | AH64: 1 | AI64: 1 | AJ64: 1 | AK64: 1 | AL64: 1 | AM64: 1 | AN64: 1 | AO64: 1 | AP64: 1 | AQ64: 1 | AR64: 5 | AS64: 1 | AT64: 1 | AU64: http://www.fish.gov.ru/opendata/7702679523-rezproverok | AV64: 1 | AW64: 1 | AX64: 1 | AY64: 1 | AZ64: 1 | BA64: 1 | BB64: 1 | BC64: 1 | BD64: 1 | BE64: 0 | BF64: 0 | BG64: 1 | BH64: 0 | BI64: 1 | BJ64: 1 | BK64: 57 | BL64: 77
A65: Росстандарт | B65: https://www.rst.gov.ru/portal/gost | C65: https://www.rst.gov.ru/portal/gost/home/systems/opendatapp | D65: 2 | E65: 1 | F65: 3 | G65: 3 | H65: 1 | I65: 0 | J65: 0 | K65: 0 | L65: 1 | M65: 0 | N65: 1 | O65: https://www.rst.gov.ru/opendata/7706406291-regulations | P65: 1 | Q65: 1 | R65: 1 | S65: 1 | T65: 1 | U65: 1 | V65: 1 | W65: 1 | X65: 1 | Y65: 1 | Z65: 1 | AA65: 1 | AB65: 5 | AC65: 1 | AD65: 0 | AE65: https://www.rst.gov.ru/opendata/7706406291-controlresult | AF65: 1 | AG65: 1 | AH65: 1 | AI65: 1 | AJ65: 1 | AK65: 1 | AL65: 1 | AM65: 1 | AN65: 1 | AO65: 1 | AP65: 1 | AQ65: 1 | AR65: 5 | AS65: 1 | AT65: 1 | AU65: https://www.rst.gov.ru/opendata/7706406291-koomet | AV65: 1 | AW65: 1 | AX65: 1 | AY65: 1 | AZ65: 1 | BA65: 1 | BB65: 1 | BC65: 1 | BD65: 1 | BE65: 1 | BF65: 1 | BG65: 1 | BH65: 5 | BI65: 1 | BJ65: 1 | BK65: 68 | BL65: 77
A66: Ростуризм | B66: https://tourism.gov.ru/ | C66: http://opendata.tourism.gov.ru/ | D66: 2 | E66: 1 | F66: 3 | G66: 3 | H66: 1 | I66: 1 | J66: 0 | K66: 0 | L66: 1 | M66: 1 | N66: 1 | O66: http://opendata.tourism.gov.ru/7708550300-tourismlegalacts | P66: 1 | Q66: 1 | R66: 1 | S66: 1 | T66: 1 | U66: 1 | V66: 1 | W66: 1 | X66: 1 | Y66: 1 | Z66: 1 | AA66: 1 | AB66: 5 | AC66: 1 | AD66: 1 | AE66: http://opendata.tourism.gov.ru/7708550300-reestrSTR | AF66: 1 | AG66: 1 | AH66: 1 | AI66: 1 | AJ66: 1 | AK66: 1 | AL66: 1 | AM66: 1 | AN66: 1 | AO66: 1 | AP66: 1 | AQ66: 1 | AR66: 5 | AS66: 1 | AT66: 1 | AU66: http://opendata.tourism.gov.ru/7708550300-cpprojects | AV66: 1 | AW66: 1 | AX66: 1 | AY66: 1 | AZ66: 1 | BA66: 1 | BB66: 1 | BC66: 1 | BD66: 1 | BE66: 1 | BF66: 1 | BG66: 1 | BH66: 5 | BI66: 1 | BJ66: 1 | BK66: 71 | BL66: 77
A67: Росимущество | B67: https://rosim.gov.ru/ | C67: https://rosim.gov.ru/opendata | D67: 2 | E67: 1 | F67: 3 | G67: 3 | H67: 1 | I67: 1 | J67: 1 | K67: 1 | L67: 1 | M67: 1 | N67: 1 | O67: https://rosim.gov.ru/opendata/7710723134-rvi | P67: 1 | Q67: 1 | R67: 1 | S67: 1 | T67: 1 | U67: 1 | V67: 1 | W67: 1 | X67: 1 | Y67: 1 | Z67: 1 | AA67: 1 | AB67: 5 | AC67: 1 | AD67: 1 | AE67: https://rosim.gov.ru/opendata/7710723134-rfi_2_4_share_property | AF67: 1 | AG67: 1 | AH67: 1 | AI67: 1 | AJ67: 1 | AK67: 1 | AL67: 1 | AM67: 1 | AN67: 1 | AO67: 1 | AP67: 1 | AQ67: 1 | AR67: 5 | AS67: 1 | AT67: 1 | AU67: https://rosim.gov.ru/opendata/7710723134-rfi_1_4_ship | AV67: 1 | AW67: 1 | AX67: 1 | AY67: 1 | AZ67: 1 | BA67: 1 | BB67: 1 | BC67: 1 | BD67: 1 | BE67: 1 | BF67: 1 | BG67: 1 | BH67: 5 | BI67: 1 | BJ67: 1 | BK67: 73 | BL67: 77
A68: Росархив | B68: http://archives.gov.ru/ | C68: http://archives.gov.ru/opendata | D68: 2 | E68: 1 | F68: 0 | G68: 3 | H68: 1 | I68: 1 | J68: 0 | K68: 0 | L68: 0 | M68: 1 | N68: 0 | O68: http://archives.gov.ru/opendata/7710474216-passport.shtml | P68: 1 | Q68: 1 | R68: 1 | S68: 1 | T68: 1 | U68: 1 | V68: 1 | W68: 1 | X68: 1 | Y68: 1 | Z68: 1 | AA68: 1 | AB68: 0 | AC68: 1 | AD68: 1 | AE68: http://archives.gov.ru/opendata/7710474216-nimr.shtml | AF68: 1 | AG68: 1 | AH68: 1 | AI68: 1 | AJ68: 1 | AK68: 1 | AL68: 1 | AM68: 1 | AN68: 1 | AO68: 1 | AP68: 1 | AQ68: 1 | AR68: 5 | AS68: 1 | AT68: 1 | AU68: http://archives.gov.ru/opendata/7710474216-planobshtvsovet.shtml | AV68: 1 | AW68: 1 | AX68: 1 | AY68: 1 | AZ68: 1 | BA68: 1 | BB68: 1 | BC68: 1 | BD68: 1 | BE68: 1 | BF68: 1 | BG68: 1 | BH68: 5 | BI68: 1 | BJ68: 1 | BK68: 61 | BL68: 77
A69: Росавтодор | B69: https://rosavtodor.gov.ru/ | C69: https://rosavtodor.gov.ru/opendata | D69: 2 | E69: 1 | F69: 3 | G69: 3 | H69: 1 | I69: 1 | J69: 0 | K69: 1 | L69: 1 | M69: 1 | N69: 1 | O69: https://rosavtodor.gov.ru/opendata/7717509757-kontrolrezult | P69: 1 | Q69: 1 | R69: 1 | S69: 1 | T69: 1 | U69: 1 | V69: 1 | W69: 1 | X69: 1 | Y69: 1 | Z69: 1 | AA69: 1 | AB69: 5 | AC69: 1 | AD69: 1 | AE69: https://rosavtodor.gov.ru/opendata/7717509757-statbzklgrd | AF69: 1 | AG69: 1 | AH69: 1 | AI69: 1 | AJ69: 1 | AK69: 1 | AL69: 1 | AM69: 1 | AN69: 1 | AO69: 1 | AP69: 1 | AQ69: 1 | AR69: 5 | AS69: 1 | AT69: 1 | AU69: https://rosavtodor.gov.ru/opendata/7717509757-fkuuprdorrossia | AV69: 1 | AW69: 1 | AX69: 1 | AY69: 1 | AZ69: 1 | BA69: 1 | BB69: 1 | BC69: 1 | BD69: 1 | BE69: 1 | BF69: 1 | BG69: 1 | BH69: 5 | BI69: 1 | BJ69: 1 | BK69: 72 | BL69: 77
A70: Казначейство России | B70: http://roskazna.gov.ru/ | C70: https://roskazna.gov.ru/opendata/ | D70: 1 | E70: 1 | F70: 3 | G70: 3 | H70: 1 | I70: 1 | J70: 0 | K70: 1 | L70: 1 | M70: 1 | N70: 1 | O70: https://roskazna.gov.ru/opendata/7710568760-svedeniyapokazatelej/ | P70: 1 | Q70: 1 | R70: 1 | S70: 1 | T70: 1 | U70: 1 | V70: 1 | W70: 1 | X70: 1 | Y70: 1 | Z70: 1 | AA70: 1 | AB70: 5 | AC70: 1 | AD70: 1 | AE70: https://roskazna.gov.ru/opendata/7710568760-pokazateligosprogrammy/ | AF70: 1 | AG70: 1 | AH70: 1 | AI70: 1 | AJ70: 1 | AK70: 1 | AL70: 1 | AM70: 1 | AN70: 1 | AO70: 1 | AP70: 1 | AQ70: 1 | AR70: 5 | AS70: 1 | AT70: 1 | AU70: https://roskazna.gov.ru/opendata/7710568760-informaciyapostatistikefinanso/ | AV70: 1 | AW70: 1 | AX70: 1 | AY70: 1 | AZ70: 1 | BA70: 1 | BB70: 1 | BC70: 1 | BD70: 1 | BE70: 1 | BF70: 1 | BG70: 1 | BH70: 5 | BI70: 1 | BJ70: 1 | BK70: 71 | BL70: 77
A71: ФМБА России | B71: http://fmba.gov.ru | C71: https://fmba.gov.ru/opendata/ | D71: 2 | E71: 1 | F71: 3 | G71: 3 | H71: 1 | I71: 0 | J71: 0 | K71: 0 | L71: 0 | M71: 0 | N71: 0 | O71: https://fmba.gov.ru/opendata/7734521419-infdis/ | P71: 1 | Q71: 1 | R71: 1 | S71: 1 | T71: 1 | U71: 1 | V71: 1 | W71: 1 | X71: 1 | Y71: 1 | Z71: 1 | AA71: 1 | AB71: 5 | AC71: 1 | AD71: 1 | AE71: https://fmba.gov.ru/opendata/7734521419-vaccnas/ | AF71: 1 | AG71: 1 | AH71: 1 | AI71: 1 | AJ71: 1 | AK71: 1 | AL71: 1 | AM71: 1 | AN71: 1 | AO71: 1 | AP71: 1 | AQ71: 1 | AR71: 0 | AS71: 1 | AT71: 1 | AU71: https://fmba.gov.ru/opendata/7734521419-donor/ | AV71: 1 | AW71: 1 | AX71: 1 | AY71: 1 | AZ71: 1 | BA71: 1 | BB71: 1 | BC71: 1 | BD71: 1 | BE71: 1 | BF71: 1 | BG71: 1 | BH71: 5 | BI71: 1 | BJ71: 1 | BK71: 62 | BL71: 77
